Workbook

Sheet DASHBOARD
B1: STATE-TO-STATE POPULATION MIGRATION IN UNITED STATES
C3: % American population moving to a new State | I3: Fastest growth of a State's population | O3: State that American prefers the most
C4: =AVERAGE(STATISTICS!$L$3:$N$3) -> 0.02251638568 | I4: =TEXT(MAX(STATISTICS!$G$4:$G$55),"0.00%")&" - "&INDEX(STATISTICS!$A$1:$N$55,MATCH(MAX(STATISTICS!$G$4:$G$55),STATISTICS!$G$1:$G$55,0),1) -> 2.33% - District of Columbia | O4: =INDEX(STATISTICS!$A$1:$N$55,MATCH(MAX(STATISTICS!$K$4:$K$55),STATISTICS!$K$1:$K$55,0),1) -> Florida
B7: Choose State:
B8: Choose Period:

Sheet CHART
A1: Chosen State: | B1: =INDEX(lov_state,$C$1,) -> Georgia | C1: 12
A2: Period: | B2: =INDEX(lov_year,$C$2,) -> 2012 | C2: 2
B5: Population 1yr and over | D5: # Same residence 1yr ago (% of population) | H5: # Different residence, same State 1yr ago (% of population) | L5: # Different State 1yr ago (% of population)
B6: Chosen | C6: Unchosen | D6: Chosen | E6: Unchosen | F6: Blank | G6: % | H6: Chosen | I6: Unchosen | J6: Blank | K6: % | L6: Chosen | M6: Unchosen | N6: Blank | O6: %
A7: 2010 | B7: =IF(OR($C$2=1,$A7=$B$2),SUMPRODUCT(N(INDEX(data,,1)=$A7),N(INDEX(data,,2)=$B$1),INDEX(data,,3)),0) -> 0 | C7: =SUMPRODUCT(N(INDEX(data,,1)=$A7),N(INDEX(data,,2)=$B$1),INDEX(data,,3))-B7 -> 9587237 | D7: =IF(OR($C$2=1,$A7=$B$2),SUMPRODUCT(N(INDEX(data,,1)=$A7),N(INDEX(data,,2)=$B$1),INDEX(data,,4)),0) -> 0 | E7: =SUMPRODUCT(N(INDEX(data,,1)=$A7),N(INDEX(data,,2)=$B$1),INDEX(data,,4))-D7 -> 8015409 | F7: =MAX(0,SUM($B7:$C7)-SUM(D7:E7)) -> 1571828 | G7: =SUM(D7:E7)/SUM($B7:$C7) -> 0.8360499485 | H7: =IF(OR($C$2=1,$A7=$B$2),SUMPRODUCT(N(INDEX(data,,1)=$A7),N(INDEX(data,,2)=$B$1),INDEX(data,,5)),0) -> 0 | I7: =SUMPRODUCT(N(INDEX(data,,1)=$A7),N(INDEX(data,,2)=$B$1),INDEX(data,,5))-H7 -> 1278548 | J7: =MAX(0,SUM($B7:$C7)-SUM(H7:I7)) -> 8308689 | K7: =SUM(H7:I7)/SUM($B7:$C7) -> 0.1333593819 | L7: =IF(OR($C$2=1,$A7=$B$2),SUMPRODUCT(N(INDEX(data,,1)=$A7),N(INDEX(data,,2)=$B$1),INDEX(data,,6)),0) -> 0 | M7: =SUMPRODUCT(N(INDEX(data,,1)=$A7),N(INDEX(data,,2)=$B$1),INDEX(data,,6))-L7 -> 249459 | N7: =MAX(0,SUM($B7:$C7)-SUM(L7:M7)) -> 9337778 | O7: =SUM(L7:M7)/SUM($B7:$C7) -> 0.02601990542
A8: 2011 | B8: =IF(OR($C$2=1,$A8=$B$2),SUMPRODUCT(N(INDEX(data,,1)=$A8),N(INDEX(data,,2)=$B$1),INDEX(data,,3)),0) -> 0 | C8: =SUMPRODUCT(N(INDEX(data,,1)=$A8),N(INDEX(data,,2)=$B$1),INDEX(data,,3))-B8 -> 9699859 | D8: =IF(OR($C$2=1,$A8=$B$2),SUMPRODUCT(N(INDEX(data,,1)=$A8),N(INDEX(data,,2)=$B$1),INDEX(data,,4)),0) -> 0 | E8: =SUMPRODUCT(N(INDEX(data,,1)=$A8),N(INDEX(data,,2)=$B$1),INDEX(data,,4))-D8 -> 8095407 | F8: =MAX(0,SUM($B8:$C8)-SUM(D8:E8)) -> 1604452 | G8: =SUM(D8:E8)/SUM($B8:$C8) -> 0.8345901729 | H8: =IF(OR($C$2=1,$A8=$B$2),SUMPRODUCT(N(INDEX(data,,1)=$A8),N(INDEX(data,,2)=$B$1),INDEX(data,,5)),0) -> 0 | I8: =SUMPRODUCT(N(INDEX(data,,1)=$A8),N(INDEX(data,,2)=$B$1),INDEX(data,,5))-H8 -> 1289450 | J8: =MAX(0,SUM($B8:$C8)-SUM(H8:I8)) -> 8410409 | K8: =SUM(H8:I8)/SUM($B8:$C8) -> 0.132934922 | L8: =IF(OR($C$2=1,$A8=$B$2),SUMPRODUCT(N(INDEX(data,,1)=$A8),N(INDEX(data,,2)=$B$1),INDEX(data,,6)),0) -> 0 | M8: =SUMPRODUCT(N(INDEX(data,,1)=$A8),N(INDEX(data,,2)=$B$1),INDEX(data,,6))-L8 -> 271077 | N8: =MAX(0,SUM($B8:$C8)-SUM(L8:M8)) -> 9428782 | O8: =SUM(L8:M8)/SUM($B8:$C8) -> 0.02794648871
A9: 2012 | B9: =IF(OR($C$2=1,$A9=$B$2),SUMPRODUCT(N(INDEX(data,,1)=$A9),N(INDEX(data,,2)=$B$1),INDEX(data,,3)),0) -> 9796547 | C9: =SUMPRODUCT(N(INDEX(data,,1)=$A9),N(INDEX(data,,2)=$B$1),INDEX(data,,3))-B9 -> 0 | D9: =IF(OR($C$2=1,$A9=$B$2),SUMPRODUCT(N(INDEX(data,,1)=$A9),N(INDEX(data,,2)=$B$1),INDEX(data,,4)),0) -> 8231384 | E9: =SUMPRODUCT(N(INDEX(data,,1)=$A9),N(INDEX(data,,2)=$B$1),INDEX(data,,4))-D9 -> 0 | F9: 1565163 | G9: 0.8402331965 | H9: =IF(OR($C$2=1,$A9=$B$2),SUMPRODUCT(N(INDEX(data,,1)=$A9),N(INDEX(data,,2)=$B$1),INDEX(data,,5)),0) -> 1236302 | I9: =SUMPRODUCT(N(INDEX(data,,1)=$A9),N(INDEX(data,,2)=$B$1),INDEX(data,,5))-H9 -> 0 | J9: =MAX(0,SUM($B9:$C9)-SUM(H9:I9)) -> 8560245 | K9: 0.1261977307 | L9: =IF(OR($C$2=1,$A9=$B$2),SUMPRODUCT(N(INDEX(data,,1)=$A9),N(INDEX(data,,2)=$B$1),INDEX(data,,6)),0) -> 277466 | M9: =SUMPRODUCT(N(INDEX(data,,1)=$A9),N(INDEX(data,,2)=$B$1),INDEX(data,,6))-L9 -> 0 | N9: =MAX(0,SUM($B9:$C9)-SUM(L9:M9)) -> 9519081 | O9: 0.02832283661
B12: State | C12: ="Moving from "&IF($C$1=1,"other States",$B$1) -> Moving from Georgia | D12: ="Moving to "&IF($C$1=1,"other States",$B$1) -> Moving to Georgia | E12: Net
B13: Florida | C13: =IF($C$2>1,SUMPRODUCT(N(INDEX(data,,1)=$B$2),N(INDEX(data,,2)=$B13),INDEX(data,,MATCH($B$1,INDEX(data,3,),0))),SUMPRODUCT(N(INDEX(data,,2)=$B13),INDEX(data,,MATCH($B$1,INDEX(data,3,),0)))) -> 42754 | D13: =-IF($C$2>1,SUMPRODUCT(N(INDEX(data,,1)=$B$2),N(INDEX(data,,2)=$B$1),INDEX(data,,MATCH($B13,INDEX(data,3,),0))),SUMPRODUCT(N(INDEX(data,,2)=$B$1),INDEX(data,,MATCH($B13,INDEX(data,3,),0)))) -> -42870 | E13: =SUM(C13:D13) -> -116
B14: Texas | C14: =IF($C$2>1,SUMPRODUCT(N(INDEX(data,,1)=$B$2),N(INDEX(data,,2)=$B14),INDEX(data,,MATCH($B$1,INDEX(data,3,),0))),SUMPRODUCT(N(INDEX(data,,2)=$B14),INDEX(data,,MATCH($B$1,INDEX(data,3,),0)))) -> 20362 | D14: =-IF($C$2>1,SUMPRODUCT(N(INDEX(data,,1)=$B$2),N(INDEX(data,,2)=$B$1),INDEX(data,,MATCH($B14,INDEX(data,3,),0))),SUMPRODUCT(N(INDEX(data,,2)=$B$1),INDEX(data,,MATCH($B14,INDEX(data,3,),0)))) -> -16198 | E14: 4164
B15: Alabama | C15: =IF($C$2>1,SUMPRODUCT(N(INDEX(data,,1)=$B$2),N(INDEX(data,,2)=$B15),INDEX(data,,MATCH($B$1,INDEX(data,3,),0))),SUMPRODUCT(N(INDEX(data,,2)=$B15),INDEX(data,,MATCH($B$1,INDEX(data,3,),0)))) -> 19920 | D15: =-IF($C$2>1,SUMPRODUCT(N(INDEX(data,,1)=$B$2),N(INDEX(data,,2)=$B$1),INDEX(data,,MATCH($B15,INDEX(data,3,),0))),SUMPRODUCT(N(INDEX(data,,2)=$B$1),INDEX(data,,MATCH($B15,INDEX(data,3,),0)))) -> -13864 | E15: 6056
B16: South Carolina | C16: =IF($C$2>1,SUMPRODUCT(N(INDEX(data,,1)=$B$2),N(INDEX(data,,2)=$B16),INDEX(data,,MATCH($B$1,INDEX(data,3,),0))),SUMPRODUCT(N(INDEX(data,,2)=$B16),INDEX(data,,MATCH($B$1,INDEX(data,3,),0)))) -> 18570 | D16: =-IF($C$2>1,SUMPRODUCT(N(INDEX(data,,1)=$B$2),N(INDEX(data,,2)=$B$1),INDEX(data,,MATCH($B16,INDEX(data,3,),0))),SUMPRODUCT(N(INDEX(data,,2)=$B$1),INDEX(data,,MATCH($B16,INDEX(data,3,),0)))) -> -18611 | E16: -41
B17: North Carolina | C17: =IF($C$2>1,SUMPRODUCT(N(INDEX(data,,1)=$B$2),N(INDEX(data,,2)=$B17),INDEX(data,,MATCH($B$1,INDEX(data,3,),0))),SUMPRODUCT(N(INDEX(data,,2)=$B17),INDEX(data,,MATCH($B$1,INDEX(data,3,),0)))) -> 16823 | D17: =-IF($C$2>1,SUMPRODUCT(N(INDEX(data,,1)=$B$2),N(INDEX(data,,2)=$B$1),INDEX(data,,MATCH($B17,INDEX(data,3,),0))),SUMPRODUCT(N(INDEX(data,,2)=$B$1),INDEX(data,,MATCH($B17,INDEX(data,3,),0)))) -> -16009 | E17: 814
B18: Tennessee | C18: =IF($C$2>1,SUMPRODUCT(N(INDEX(data,,1)=$B$2),N(INDEX(data,,2)=$B18),INDEX(data,,MATCH($B$1,INDEX(data,3,),0))),SUMPRODUCT(N(INDEX(data,,2)=$B18),INDEX(data,,MATCH($B$1,INDEX(data,3,),0)))) -> 16012 | D18: =-IF($C$2>1,SUMPRODUCT(N(INDEX(data,,1)=$B$2),N(INDEX(data,,2)=$B$1),INDEX(data,,MATCH($B18,INDEX(data,3,),0))),SUMPRODUCT(N(INDEX(data,,2)=$B$1),INDEX(data,,MATCH($B18,INDEX(data,3,),0)))) -> -17606 | E18: -1594
B19: California | C19: =IF($C$2>1,SUMPRODUCT(N(INDEX(data,,1)=$B$2),N(INDEX(data,,2)=$B19),INDEX(data,,MATCH($B$1,INDEX(data,3,),0))),SUMPRODUCT(N(INDEX(data,,2)=$B19),INDEX(data,,MATCH($B$1,INDEX(data,3,),0)))) -> 10790 | D19: =-IF($C$2>1,SUMPRODUCT(N(INDEX(data,,1)=$B$2),N(INDEX(data,,2)=$B$1),INDEX(data,,MATCH($B19,INDEX(data,3,),0))),SUMPRODUCT(N(INDEX(data,,2)=$B$1),INDEX(data,,MATCH($B19,INDEX(data,3,),0)))) -> -14174 | E19: -3384
B20: Virginia | C20: =IF($C$2>1,SUMPRODUCT(N(INDEX(data,,1)=$B$2),N(INDEX(data,,2)=$B20),INDEX(data,,MATCH($B$1,INDEX(data,3,),0))),SUMPRODUCT(N(INDEX(data,,2)=$B20),INDEX(data,,MATCH($B$1,INDEX(data,3,),0)))) -> 9535 | D20: =-IF($C$2>1,SUMPRODUCT(N(INDEX(data,,1)=$B$2),N(INDEX(data,,2)=$B$1),INDEX(data,,MATCH($B20,INDEX(data,3,),0))),SUMPRODUCT(N(INDEX(data,,2)=$B$1),INDEX(data,,MATCH($B20,INDEX(data,3,),0)))) -> -10702 | E20: -1167
B21: Illinois | C21: =IF($C$2>1,SUMPRODUCT(N(INDEX(data,,1)=$B$2),N(INDEX(data,,2)=$B21),INDEX(data,,MATCH($B$1,INDEX(data,3,),0))),SUMPRODUCT(N(INDEX(data,,2)=$B21),INDEX(data,,MATCH($B$1,INDEX(data,3,),0)))) -> 8745 | D21: =-IF($C$2>1,SUMPRODUCT(N(INDEX(data,,1)=$B$2),N(INDEX(data,,2)=$B$1),INDEX(data,,MATCH($B21,INDEX(data,3,),0))),SUMPRODUCT(N(INDEX(data,,2)=$B$1),INDEX(data,,MATCH($B21,INDEX(data,3,),0)))) -> -7143 | E21: 1602
B22: Ohio | C22: =IF($C$2>1,SUMPRODUCT(N(INDEX(data,,1)=$B$2),N(INDEX(data,,2)=$B22),INDEX(data,,MATCH($B$1,INDEX(data,3,),0))),SUMPRODUCT(N(INDEX(data,,2)=$B22),INDEX(data,,MATCH($B$1,INDEX(data,3,),0)))) -> 8052 | D22: =-IF($C$2>1,SUMPRODUCT(N(INDEX(data,,1)=$B$2),N(INDEX(data,,2)=$B$1),INDEX(data,,MATCH($B22,INDEX(data,3,),0))),SUMPRODUCT(N(INDEX(data,,2)=$B$1),INDEX(data,,MATCH($B22,INDEX(data,3,),0)))) -> -7501 | E22: 551
B23: New York | C23: =IF($C$2>1,SUMPRODUCT(N(INDEX(data,,1)=$B$2),N(INDEX(data,,2)=$B23),INDEX(data,,MATCH($B$1,INDEX(data,3,),0))),SUMPRODUCT(N(INDEX(data,,2)=$B23),INDEX(data,,MATCH($B$1,INDEX(data,3,),0)))) -> 7592 | D23: =-IF($C$2>1,SUMPRODUCT(N(INDEX(data,,1)=$B$2),N(INDEX(data,,2)=$B$1),INDEX(data,,MATCH($B23,INDEX(data,3,),0))),SUMPRODUCT(N(INDEX(data,,2)=$B$1),INDEX(data,,MATCH($B23,INDEX(data,3,),0)))) -> -13957 | E23: -6365
B24: Washington | C24: =IF($C$2>1,SUMPRODUCT(N(INDEX(data,,1)=$B$2),N(INDEX(data,,2)=$B24),INDEX(data,,MATCH($B$1,INDEX(data,3,),0))),SUMPRODUCT(N(INDEX(data,,2)=$B24),INDEX(data,,MATCH($B$1,INDEX(data,3,),0)))) -> 6363 | D24: =-IF($C$2>1,SUMPRODUCT(N(INDEX(data,,1)=$B$2),N(INDEX(data,,2)=$B$1),INDEX(data,,MATCH($B24,INDEX(data,3,),0))),SUMPRODUCT(N(INDEX(data,,2)=$B$1),INDEX(data,,MATCH($B24,INDEX(data,3,),0)))) -> -1965 | E24: 4398
B25: Colorado | C25: =IF($C$2>1,SUMPRODUCT(N(INDEX(data,,1)=$B$2),N(INDEX(data,,2)=$B25),INDEX(data,,MATCH($B$1,INDEX(data,3,),0))),SUMPRODUCT(N(INDEX(data,,2)=$B25),INDEX(data,,MATCH($B$1,INDEX(data,3,),0)))) -> 5834 | D25: =-IF($C$2>1,SUMPRODUCT(N(INDEX(data,,1)=$B$2),N(INDEX(data,,2)=$B$1),INDEX(data,,MATCH($B25,INDEX(data,3,),0))),SUMPRODUCT(N(INDEX(data,,2)=$B$1),INDEX(data,,MATCH($B25,INDEX(data,3,),0)))) -> -4710 | E25: 1124
B26: Maryland | C26: =IF($C$2>1,SUMPRODUCT(N(INDEX(data,,1)=$B$2),N(INDEX(data,,2)=$B26),INDEX(data,,MATCH($B$1,INDEX(data,3,),0))),SUMPRODUCT(N(INDEX(data,,2)=$B26),INDEX(data,,MATCH($B$1,INDEX(data,3,),0)))) -> 4610 | D26: =-IF($C$2>1,SUMPRODUCT(N(INDEX(data,,1)=$B$2),N(INDEX(data,,2)=$B$1),INDEX(data,,MATCH($B26,INDEX(data,3,),0))),SUMPRODUCT(N(INDEX(data,,2)=$B$1),INDEX(data,,MATCH($B26,INDEX(data,3,),0)))) -> -3619 | E26: 991
B27: Louisiana | C27: =IF($C$2>1,SUMPRODUCT(N(INDEX(data,,1)=$B$2),N(INDEX(data,,2)=$B27),INDEX(data,,MATCH($B$1,INDEX(data,3,),0))),SUMPRODUCT(N(INDEX(data,,2)=$B27),INDEX(data,,MATCH($B$1,INDEX(data,3,),0)))) -> 4478 | D27: =-IF($C$2>1,SUMPRODUCT(N(INDEX(data,,1)=$B$2),N(INDEX(data,,2)=$B$1),INDEX(data,,MATCH($B27,INDEX(data,3,),0))),SUMPRODUCT(N(INDEX(data,,2)=$B$1),INDEX(data,,MATCH($B27,INDEX(data,3,),0)))) -> -4100 | E27: 378
B28: Pennsylvania | C28: =IF($C$2>1,SUMPRODUCT(N(INDEX(data,,1)=$B$2),N(INDEX(data,,2)=$B28),INDEX(data,,MATCH($B$1,INDEX(data,3,),0))),SUMPRODUCT(N(INDEX(data,,2)=$B28),INDEX(data,,MATCH($B$1,INDEX(data,3,),0)))) -> 4337 | D28: =-IF($C$2>1,SUMPRODUCT(N(INDEX(data,,1)=$B$2),N(INDEX(data,,2)=$B$1),INDEX(data,,MATCH($B28,INDEX(data,3,),0))),SUMPRODUCT(N(INDEX(data,,2)=$B$1),INDEX(data,,MATCH($B28,INDEX(data,3,),0)))) -> -9076 | E28: -4739
B29: Michigan | C29: =IF($C$2>1,SUMPRODUCT(N(INDEX(data,,1)=$B$2),N(INDEX(data,,2)=$B29),INDEX(data,,MATCH($B$1,INDEX(data,3,),0))),SUMPRODUCT(N(INDEX(data,,2)=$B29),INDEX(data,,MATCH($B$1,INDEX(data,3,),0)))) -> 4270 | D29: =-IF($C$2>1,SUMPRODUCT(N(INDEX(data,,1)=$B$2),N(INDEX(data,,2)=$B$1),INDEX(data,,MATCH($B29,INDEX(data,3,),0))),SUMPRODUCT(N(INDEX(data,,2)=$B$1),INDEX(data,,MATCH($B29,INDEX(data,3,),0)))) -> -9949 | E29: -5679
B30: Kentucky | C30: =IF($C$2>1,SUMPRODUCT(N(INDEX(data,,1)=$B$2),N(INDEX(data,,2)=$B30),INDEX(data,,MATCH($B$1,INDEX(data,3,),0))),SUMPRODUCT(N(INDEX(data,,2)=$B30),INDEX(data,,MATCH($B$1,INDEX(data,3,),0)))) -> 4173 | D30: =-IF($C$2>1,SUMPRODUCT(N(INDEX(data,,1)=$B$2),N(INDEX(data,,2)=$B$1),INDEX(data,,MATCH($B30,INDEX(data,3,),0))),SUMPRODUCT(N(INDEX(data,,2)=$B$1),INDEX(data,,MATCH($B30,INDEX(data,3,),0)))) -> -6172 | E30: -1999
B31: Missouri | C31: =IF($C$2>1,SUMPRODUCT(N(INDEX(data,,1)=$B$2),N(INDEX(data,,2)=$B31),INDEX(data,,MATCH($B$1,INDEX(data,3,),0))),SUMPRODUCT(N(INDEX(data,,2)=$B31),INDEX(data,,MATCH($B$1,INDEX(data,3,),0)))) -> 3451 | D31: =-IF($C$2>1,SUMPRODUCT(N(INDEX(data,,1)=$B$2),N(INDEX(data,,2)=$B$1),INDEX(data,,MATCH($B31,INDEX(data,3,),0))),SUMPRODUCT(N(INDEX(data,,2)=$B$1),INDEX(data,,MATCH($B31,INDEX(data,3,),0)))) -> -3377 | E31: 74
B32: New Jersey | C32: =IF($C$2>1,SUMPRODUCT(N(INDEX(data,,1)=$B$2),N(INDEX(data,,2)=$B32),INDEX(data,,MATCH($B$1,INDEX(data,3,),0))),SUMPRODUCT(N(INDEX(data,,2)=$B32),INDEX(data,,MATCH($B$1,INDEX(data,3,),0)))) -> 3002 | D32: =-IF($C$2>1,SUMPRODUCT(N(INDEX(data,,1)=$B$2),N(INDEX(data,,2)=$B$1),INDEX(data,,MATCH($B32,INDEX(data,3,),0))),SUMPRODUCT(N(INDEX(data,,2)=$B$1),INDEX(data,,MATCH($B32,INDEX(data,3,),0)))) -> -4920 | E32: -1918
B33: Massachusetts | C33: =IF($C$2>1,SUMPRODUCT(N(INDEX(data,,1)=$B$2),N(INDEX(data,,2)=$B33),INDEX(data,,MATCH($B$1,INDEX(data,3,),0))),SUMPRODUCT(N(INDEX(data,,2)=$B33),INDEX(data,,MATCH($B$1,INDEX(data,3,),0)))) -> 2789 | D33: =-IF($C$2>1,SUMPRODUCT(N(INDEX(data,,1)=$B$2),N(INDEX(data,,2)=$B$1),INDEX(data,,MATCH($B33,INDEX(data,3,),0))),SUMPRODUCT(N(INDEX(data,,2)=$B$1),INDEX(data,,MATCH($B33,INDEX(data,3,),0)))) -> -4153 | E33: -1364
B34: Mississippi | C34: =IF($C$2>1,SUMPRODUCT(N(INDEX(data,,1)=$B$2),N(INDEX(data,,2)=$B34),INDEX(data,,MATCH($B$1,INDEX(data,3,),0))),SUMPRODUCT(N(INDEX(data,,2)=$B34),INDEX(data,,MATCH($B$1,INDEX(data,3,),0)))) -> 2669 | D34: =-IF($C$2>1,SUMPRODUCT(N(INDEX(data,,1)=$B$2),N(INDEX(data,,2)=$B$1),INDEX(data,,MATCH($B34,INDEX(data,3,),0))),SUMPRODUCT(N(INDEX(data,,2)=$B$1),INDEX(data,,MATCH($B34,INDEX(data,3,),0)))) -> -3280 | E34: -611
B35: Oklahoma | C35: =IF($C$2>1,SUMPRODUCT(N(INDEX(data,,1)=$B$2),N(INDEX(data,,2)=$B35),INDEX(data,,MATCH($B$1,INDEX(data,3,),0))),SUMPRODUCT(N(INDEX(data,,2)=$B35),INDEX(data,,MATCH($B$1,INDEX(data,3,),0)))) -> 2581 | D35: =-IF($C$2>1,SUMPRODUCT(N(INDEX(data,,1)=$B$2),N(INDEX(data,,2)=$B$1),INDEX(data,,MATCH($B35,INDEX(data,3,),0))),SUMPRODUCT(N(INDEX(data,,2)=$B$1),INDEX(data,,MATCH($B35,INDEX(data,3,),0)))) -> -3299 | E35: -718
B36: Arizona | C36: =IF($C$2>1,SUMPRODUCT(N(INDEX(data,,1)=$B$2),N(INDEX(data,,2)=$B36),INDEX(data,,MATCH($B$1,INDEX(data,3,),0))),SUMPRODUCT(N(INDEX(data,,2)=$B36),INDEX(data,,MATCH($B$1,INDEX(data,3,),0)))) -> 2263 | D36: =-IF($C$2>1,SUMPRODUCT(N(INDEX(data,,1)=$B$2),N(INDEX(data,,2)=$B$1),INDEX(data,,MATCH($B36,INDEX(data,3,),0))),SUMPRODUCT(N(INDEX(data,,2)=$B$1),INDEX(data,,MATCH($B36,INDEX(data,3,),0)))) -> -6657 | E36: -4394
B37: Indiana | C37: =IF($C$2>1,SUMPRODUCT(N(INDEX(data,,1)=$B$2),N(INDEX(data,,2)=$B37),INDEX(data,,MATCH($B$1,INDEX(data,3,),0))),SUMPRODUCT(N(INDEX(data,,2)=$B37),INDEX(data,,MATCH($B$1,INDEX(data,3,),0)))) -> 2258 | D37: =-IF($C$2>1,SUMPRODUCT(N(INDEX(data,,1)=$B$2),N(INDEX(data,,2)=$B$1),INDEX(data,,MATCH($B37,INDEX(data,3,),0))),SUMPRODUCT(N(INDEX(data,,2)=$B$1),INDEX(data,,MATCH($B37,INDEX(data,3,),0)))) -> -5972 | E37: -3714
B38: Minnesota | C38: =IF($C$2>1,SUMPRODUCT(N(INDEX(data,,1)=$B$2),N(INDEX(data,,2)=$B38),INDEX(data,,MATCH($B$1,INDEX(data,3,),0))),SUMPRODUCT(N(INDEX(data,,2)=$B38),INDEX(data,,MATCH($B$1,INDEX(data,3,),0)))) -> 2235 | D38: =-IF($C$2>1,SUMPRODUCT(N(INDEX(data,,1)=$B$2),N(INDEX(data,,2)=$B$1),INDEX(data,,MATCH($B38,INDEX(data,3,),0))),SUMPRODUCT(N(INDEX(data,,2)=$B$1),INDEX(data,,MATCH($B38,INDEX(data,3,),0)))) -> -2237 | E38: -2
B39: Kansas | C39: =IF($C$2>1,SUMPRODUCT(N(INDEX(data,,1)=$B$2),N(INDEX(data,,2)=$B39),INDEX(data,,MATCH($B$1,INDEX(data,3,),0))),SUMPRODUCT(N(INDEX(data,,2)=$B39),INDEX(data,,MATCH($B$1,INDEX(data,3,),0)))) -> 1896 | D39: =-IF($C$2>1,SUMPRODUCT(N(INDEX(data,,1)=$B$2),N(INDEX(data,,2)=$B$1),INDEX(data,,MATCH($B39,INDEX(data,3,),0))),SUMPRODUCT(N(INDEX(data,,2)=$B$1),INDEX(data,,MATCH($B39,INDEX(data,3,),0)))) -> -1497 | E39: 399
B40: Connecticut | C40: =IF($C$2>1,SUMPRODUCT(N(INDEX(data,,1)=$B$2),N(INDEX(data,,2)=$B40),INDEX(data,,MATCH($B$1,INDEX(data,3,),0))),SUMPRODUCT(N(INDEX(data,,2)=$B40),INDEX(data,,MATCH($B$1,INDEX(data,3,),0)))) -> 1702 | D40: =-IF($C$2>1,SUMPRODUCT(N(INDEX(data,,1)=$B$2),N(INDEX(data,,2)=$B$1),INDEX(data,,MATCH($B40,INDEX(data,3,),0))),SUMPRODUCT(N(INDEX(data,,2)=$B$1),INDEX(data,,MATCH($B40,INDEX(data,3,),0)))) -> -1829 | E40: -127
B41: Arkansas | C41: =IF($C$2>1,SUMPRODUCT(N(INDEX(data,,1)=$B$2),N(INDEX(data,,2)=$B41),INDEX(data,,MATCH($B$1,INDEX(data,3,),0))),SUMPRODUCT(N(INDEX(data,,2)=$B41),INDEX(data,,MATCH($B$1,INDEX(data,3,),0)))) -> 1525 | D41: =-IF($C$2>1,SUMPRODUCT(N(INDEX(data,,1)=$B$2),N(INDEX(data,,2)=$B$1),INDEX(data,,MATCH($B41,INDEX(data,3,),0))),SUMPRODUCT(N(INDEX(data,,2)=$B$1),INDEX(data,,MATCH($B41,INDEX(data,3,),0)))) -> -1041 | E41: 484
B42: Hawaii | C42: =IF($C$2>1,SUMPRODUCT(N(INDEX(data,,1)=$B$2),N(INDEX(data,,2)=$B42),INDEX(data,,MATCH($B$1,INDEX(data,3,),0))),SUMPRODUCT(N(INDEX(data,,2)=$B42),INDEX(data,,MATCH($B$1,INDEX(data,3,),0)))) -> 1448 | D42: =-IF($C$2>1,SUMPRODUCT(N(INDEX(data,,1)=$B$2),N(INDEX(data,,2)=$B$1),INDEX(data,,MATCH($B42,INDEX(data,3,),0))),SUMPRODUCT(N(INDEX(data,,2)=$B$1),INDEX(data,,MATCH($B42,INDEX(data,3,),0)))) -> -1409 | E42: 39
B43: Utah | C43: =IF($C$2>1,SUMPRODUCT(N(INDEX(data,,1)=$B$2),N(INDEX(data,,2)=$B43),INDEX(data,,MATCH($B$1,INDEX(data,3,),0))),SUMPRODUCT(N(INDEX(data,,2)=$B43),INDEX(data,,MATCH($B$1,INDEX(data,3,),0)))) -> 1142 | D43: =-IF($C$2>1,SUMPRODUCT(N(INDEX(data,,1)=$B$2),N(INDEX(data,,2)=$B$1),INDEX(data,,MATCH($B43,INDEX(data,3,),0))),SUMPRODUCT(N(INDEX(data,,2)=$B$1),INDEX(data,,MATCH($B43,INDEX(data,3,),0)))) -> -20 | E43: 1122
B44: West Virginia | C44: =IF($C$2>1,SUMPRODUCT(N(INDEX(data,,1)=$B$2),N(INDEX(data,,2)=$B44),INDEX(data,,MATCH($B$1,INDEX(data,3,),0))),SUMPRODUCT(N(INDEX(data,,2)=$B44),INDEX(data,,MATCH($B$1,INDEX(data,3,),0)))) -> 1108 | D44: =-IF($C$2>1,SUMPRODUCT(N(INDEX(data,,1)=$B$2),N(INDEX(data,,2)=$B$1),INDEX(data,,MATCH($B44,INDEX(data,3,),0))),SUMPRODUCT(N(INDEX(data,,2)=$B$1),INDEX(data,,MATCH($B44,INDEX(data,3,),0)))) -> -1237 | E44: -129
B45: District of Columbia | C45: =IF($C$2>1,SUMPRODUCT(N(INDEX(data,,1)=$B$2),N(INDEX(data,,2)=$B45),INDEX(data,,MATCH($B$1,INDEX(data,3,),0))),SUMPRODUCT(N(INDEX(data,,2)=$B45),INDEX(data,,MATCH($B$1,INDEX(data,3,),0)))) -> 1079 | D45: =-IF($C$2>1,SUMPRODUCT(N(INDEX(data,,1)=$B$2),N(INDEX(data,,2)=$B$1),INDEX(data,,MATCH($B45,INDEX(data,3,),0))),SUMPRODUCT(N(INDEX(data,,2)=$B$1),INDEX(data,,MATCH($B45,INDEX(data,3,),0)))) -> -1352 | E45: =SUM(C45:D45) -> -273
B46: Oregon | C46: =IF($C$2>1,SUMPRODUCT(N(INDEX(data,,1)=$B$2),N(INDEX(data,,2)=$B46),INDEX(data,,MATCH($B$1,INDEX(data,3,),0))),SUMPRODUCT(N(INDEX(data,,2)=$B46),INDEX(data,,MATCH($B$1,INDEX(data,3,),0)))) -> 1032 | D46: =-IF($C$2>1,SUMPRODUCT(N(INDEX(data,,1)=$B$2),N(INDEX(data,,2)=$B$1),INDEX(data,,MATCH($B46,INDEX(data,3,),0))),SUMPRODUCT(N(INDEX(data,,2)=$B$1),INDEX(data,,MATCH($B46,INDEX(data,3,),0)))) -> -453 | E46: 579
B47: Wisconsin | C47: =IF($C$2>1,SUMPRODUCT(N(INDEX(data,,1)=$B$2),N(INDEX(data,,2)=$B47),INDEX(data,,MATCH($B$1,INDEX(data,3,),0))),SUMPRODUCT(N(INDEX(data,,2)=$B47),INDEX(data,,MATCH($B$1,INDEX(data,3,),0)))) -> 970 | D47: =-IF($C$2>1,SUMPRODUCT(N(INDEX(data,,1)=$B$2),N(INDEX(data,,2)=$B$1),INDEX(data,,MATCH($B47,INDEX(data,3,),0))),SUMPRODUCT(N(INDEX(data,,2)=$B$1),INDEX(data,,MATCH($B47,INDEX(data,3,),0)))) -> -3441 | E47: -2471
B48: Alaska | C48: =IF($C$2>1,SUMPRODUCT(N(INDEX(data,,1)=$B$2),N(INDEX(data,,2)=$B48),INDEX(data,,MATCH($B$1,INDEX(data,3,),0))),SUMPRODUCT(N(INDEX(data,,2)=$B48),INDEX(data,,MATCH($B$1,INDEX(data,3,),0)))) -> 928 | D48: =-IF($C$2>1,SUMPRODUCT(N(INDEX(data,,1)=$B$2),N(INDEX(data,,2)=$B$1),INDEX(data,,MATCH($B48,INDEX(data,3,),0))),SUMPRODUCT(N(INDEX(data,,2)=$B$1),INDEX(data,,MATCH($B48,INDEX(data,3,),0)))) -> -2654 | E48: -1726
B49: Nebraska | C49: =IF($C$2>1,SUMPRODUCT(N(INDEX(data,,1)=$B$2),N(INDEX(data,,2)=$B49),INDEX(data,,MATCH($B$1,INDEX(data,3,),0))),SUMPRODUCT(N(INDEX(data,,2)=$B49),INDEX(data,,MATCH($B$1,INDEX(data,3,),0)))) -> 786 | D49: =-IF($C$2>1,SUMPRODUCT(N(INDEX(data,,1)=$B$2),N(INDEX(data,,2)=$B$1),INDEX(data,,MATCH($B49,INDEX(data,3,),0))),SUMPRODUCT(N(INDEX(data,,2)=$B$1),INDEX(data,,MATCH($B49,INDEX(data,3,),0)))) -> -1283 | E49: -497
B50: Nevada | C50: =IF($C$2>1,SUMPRODUCT(N(INDEX(data,,1)=$B$2),N(INDEX(data,,2)=$B50),INDEX(data,,MATCH($B$1,INDEX(data,3,),0))),SUMPRODUCT(N(INDEX(data,,2)=$B50),INDEX(data,,MATCH($B$1,INDEX(data,3,),0)))) -> 745 | D50: =-IF($C$2>1,SUMPRODUCT(N(INDEX(data,,1)=$B$2),N(INDEX(data,,2)=$B$1),INDEX(data,,MATCH($B50,INDEX(data,3,),0))),SUMPRODUCT(N(INDEX(data,,2)=$B$1),INDEX(data,,MATCH($B50,INDEX(data,3,),0)))) -> -3783 | E50: -3038
B51: Iowa | C51: =IF($C$2>1,SUMPRODUCT(N(INDEX(data,,1)=$B$2),N(INDEX(data,,2)=$B51),INDEX(data,,MATCH($B$1,INDEX(data,3,),0))),SUMPRODUCT(N(INDEX(data,,2)=$B51),INDEX(data,,MATCH($B$1,INDEX(data,3,),0)))) -> 596 | D51: =-IF($C$2>1,SUMPRODUCT(N(INDEX(data,,1)=$B$2),N(INDEX(data,,2)=$B$1),INDEX(data,,MATCH($B51,INDEX(data,3,),0))),SUMPRODUCT(N(INDEX(data,,2)=$B$1),INDEX(data,,MATCH($B51,INDEX(data,3,),0)))) -> -1687 | E51: -1091
B52: Idaho | C52: =IF($C$2>1,SUMPRODUCT(N(INDEX(data,,1)=$B$2),N(INDEX(data,,2)=$B52),INDEX(data,,MATCH($B$1,INDEX(data,3,),0))),SUMPRODUCT(N(INDEX(data,,2)=$B52),INDEX(data,,MATCH($B$1,INDEX(data,3,),0)))) -> 583 | D52: =-IF($C$2>1,SUMPRODUCT(N(INDEX(data,,1)=$B$2),N(INDEX(data,,2)=$B$1),INDEX(data,,MATCH($B52,INDEX(data,3,),0))),SUMPRODUCT(N(INDEX(data,,2)=$B$1),INDEX(data,,MATCH($B52,INDEX(data,3,),0)))) -> -936 | E52: -353
B53: Maine | C53: =IF($C$2>1,SUMPRODUCT(N(INDEX(data,,1)=$B$2),N(INDEX(data,,2)=$B53),INDEX(data,,MATCH($B$1,INDEX(data,3,),0))),SUMPRODUCT(N(INDEX(data,,2)=$B53),INDEX(data,,MATCH($B$1,INDEX(data,3,),0)))) -> 511 | D53: =-IF($C$2>1,SUMPRODUCT(N(INDEX(data,,1)=$B$2),N(INDEX(data,,2)=$B$1),INDEX(data,,MATCH($B53,INDEX(data,3,),0))),SUMPRODUCT(N(INDEX(data,,2)=$B$1),INDEX(data,,MATCH($B53,INDEX(data,3,),0)))) -> -222 | E53: 289
B54: New Hampshire | C54: =IF($C$2>1,SUMPRODUCT(N(INDEX(data,,1)=$B$2),N(INDEX(data,,2)=$B54),INDEX(data,,MATCH($B$1,INDEX(data,3,),0))),SUMPRODUCT(N(INDEX(data,,2)=$B54),INDEX(data,,MATCH($B$1,INDEX(data,3,),0)))) -> 470 | D54: =-IF($C$2>1,SUMPRODUCT(N(INDEX(data,,1)=$B$2),N(INDEX(data,,2)=$B$1),INDEX(data,,MATCH($B54,INDEX(data,3,),0))),SUMPRODUCT(N(INDEX(data,,2)=$B$1),INDEX(data,,MATCH($B54,INDEX(data,3,),0)))) -> -15 | E54: 455
B55: Montana | C55: =IF($C$2>1,SUMPRODUCT(N(INDEX(data,,1)=$B$2),N(INDEX(data,,2)=$B55),INDEX(data,,MATCH($B$1,INDEX(data,3,),0))),SUMPRODUCT(N(INDEX(data,,2)=$B55),INDEX(data,,MATCH($B$1,INDEX(data,3,),0)))) -> 292 | D55: =-IF($C$2>1,SUMPRODUCT(N(INDEX(data,,1)=$B$2),N(INDEX(data,,2)=$B$1),INDEX(data,,MATCH($B55,INDEX(data,3,),0))),SUMPRODUCT(N(INDEX(data,,2)=$B$1),INDEX(data,,MATCH($B55,INDEX(data,3,),0)))) -> -251 | E55: 41
B56: Puerto Rico | C56: =IF($C$2>1,SUMPRODUCT(N(INDEX(data,,1)=$B$2),N(INDEX(data,,2)=$B56),INDEX(data,,MATCH($B$1,INDEX(data,3,),0))),SUMPRODUCT(N(INDEX(data,,2)=$B56),INDEX(data,,MATCH($B$1,INDEX(data,3,),0)))) -> 232 | D56: =-IF($C$2>1,SUMPRODUCT(N(INDEX(data,,1)=$B$2),N(INDEX(data,,2)=$B$1),INDEX(data,,MATCH($B56,INDEX(data,3,),0))),SUMPRODUCT(N(INDEX(data,,2)=$B$1),INDEX(data,,MATCH($B56,INDEX(data,3,),0)))) -> -1730 | E56: -1498
B57: New Mexico | C57: =IF($C$2>1,SUMPRODUCT(N(INDEX(data,,1)=$B$2),N(INDEX(data,,2)=$B57),INDEX(data,,MATCH($B$1,INDEX(data,3,),0))),SUMPRODUCT(N(INDEX(data,,2)=$B57),INDEX(data,,MATCH($B$1,INDEX(data,3,),0)))) -> 192 | D57: =-IF($C$2>1,SUMPRODUCT(N(INDEX(data,,1)=$B$2),N(INDEX(data,,2)=$B$1),INDEX(data,,MATCH($B57,INDEX(data,3,),0))),SUMPRODUCT(N(INDEX(data,,2)=$B$1),INDEX(data,,MATCH($B57,INDEX(data,3,),0)))) -> -915 | E57: -723
B58: Delaware | C58: =IF($C$2>1,SUMPRODUCT(N(INDEX(data,,1)=$B$2),N(INDEX(data,,2)=$B58),INDEX(data,,MATCH($B$1,INDEX(data,3,),0))),SUMPRODUCT(N(INDEX(data,,2)=$B58),INDEX(data,,MATCH($B$1,INDEX(data,3,),0)))) -> 179 | D58: =-IF($C$2>1,SUMPRODUCT(N(INDEX(data,,1)=$B$2),N(INDEX(data,,2)=$B$1),INDEX(data,,MATCH($B58,INDEX(data,3,),0))),SUMPRODUCT(N(INDEX(data,,2)=$B$1),INDEX(data,,MATCH($B58,INDEX(data,3,),0)))) -> -226 | E58: -47
B59: Rhode Island | C59: =IF($C$2>1,SUMPRODUCT(N(INDEX(data,,1)=$B$2),N(INDEX(data,,2)=$B59),INDEX(data,,MATCH($B$1,INDEX(data,3,),0))),SUMPRODUCT(N(INDEX(data,,2)=$B59),INDEX(data,,MATCH($B$1,INDEX(data,3,),0)))) -> 168 | D59: =-IF($C$2>1,SUMPRODUCT(N(INDEX(data,,1)=$B$2),N(INDEX(data,,2)=$B$1),INDEX(data,,MATCH($B59,INDEX(data,3,),0))),SUMPRODUCT(N(INDEX(data,,2)=$B$1),INDEX(data,,MATCH($B59,INDEX(data,3,),0)))) -> -440 | E59: -272
B60: Wyoming | C60: =IF($C$2>1,SUMPRODUCT(N(INDEX(data,,1)=$B$2),N(INDEX(data,,2)=$B60),INDEX(data,,MATCH($B$1,INDEX(data,3,),0))),SUMPRODUCT(N(INDEX(data,,2)=$B60),INDEX(data,,MATCH($B$1,INDEX(data,3,),0)))) -> 166 | D60: =-IF($C$2>1,SUMPRODUCT(N(INDEX(data,,1)=$B$2),N(INDEX(data,,2)=$B$1),INDEX(data,,MATCH($B60,INDEX(data,3,),0))),SUMPRODUCT(N(INDEX(data,,2)=$B$1),INDEX(data,,MATCH($B60,INDEX(data,3,),0)))) -> -106 | E60: 60
B61: South Dakota | C61: =IF($C$2>1,SUMPRODUCT(N(INDEX(data,,1)=$B$2),N(INDEX(data,,2)=$B61),INDEX(data,,MATCH($B$1,INDEX(data,3,),0))),SUMPRODUCT(N(INDEX(data,,2)=$B61),INDEX(data,,MATCH($B$1,INDEX(data,3,),0)))) -> 122 | D61: =-IF($C$2>1,SUMPRODUCT(N(INDEX(data,,1)=$B$2),N(INDEX(data,,2)=$B$1),INDEX(data,,MATCH($B61,INDEX(data,3,),0))),SUMPRODUCT(N(INDEX(data,,2)=$B$1),INDEX(data,,MATCH($B61,INDEX(data,3,),0)))) -> -257 | E61: -135
B62: North Dakota | C62: =IF($C$2>1,SUMPRODUCT(N(INDEX(data,,1)=$B$2),N(INDEX(data,,2)=$B62),INDEX(data,,MATCH($B$1,INDEX(data,3,),0))),SUMPRODUCT(N(INDEX(data,,2)=$B62),INDEX(data,,MATCH($B$1,INDEX(data,3,),0)))) -> 98 | D62: =-IF($C$2>1,SUMPRODUCT(N(INDEX(data,,1)=$B$2),N(INDEX(data,,2)=$B$1),INDEX(data,,MATCH($B62,INDEX(data,3,),0))),SUMPRODUCT(N(INDEX(data,,2)=$B$1),INDEX(data,,MATCH($B62,INDEX(data,3,),0)))) -> -207 | E62: -109
B63: Vermont | C63: =IF($C$2>1,SUMPRODUCT(N(INDEX(data,,1)=$B$2),N(INDEX(data,,2)=$B63),INDEX(data,,MATCH($B$1,INDEX(data,3,),0))),SUMPRODUCT(N(INDEX(data,,2)=$B63),INDEX(data,,MATCH($B$1,INDEX(data,3,),0)))) -> 56 | D63: =-IF($C$2>1,SUMPRODUCT(N(INDEX(data,,1)=$B$2),N(INDEX(data,,2)=$B$1),INDEX(data,,MATCH($B63,INDEX(data,3,),0))),SUMPRODUCT(N(INDEX(data,,2)=$B$1),INDEX(data,,MATCH($B63,INDEX(data,3,),0)))) -> -84 | E63: -28
B64: Georgia | C64: =IF($C$2>1,SUMPRODUCT(N(INDEX(data,,1)=$B$2),N(INDEX(data,,2)=$B64),INDEX(data,,MATCH($B$1,INDEX(data,3,),0))),SUMPRODUCT(N(INDEX(data,,2)=$B64),INDEX(data,,MATCH($B$1,INDEX(data,3,),0)))) -> 0 | D64: =-IF($C$2>1,SUMPRODUCT(N(INDEX(data,,1)=$B$2),N(INDEX(data,,2)=$B$1),INDEX(data,,MATCH($B64,INDEX(data,3,),0))),SUMPRODUCT(N(INDEX(data,,2)=$B$1),INDEX(data,,MATCH($B64,INDEX(data,3,),0)))) -> 0 | E64: 0

Sheet STATISTICS
B1: Population 1yr and over | E1: Growth rate | H1: In-migration | L1: % of Population | O1: Out-migration | S1: Net
A2: State | B2: 2010 | C2: 2011 | D2: 2012 | E2: 2011 | F2: 2012 | G2: Average | H2: 2010 | I2: 2011 | J2: 2012 | K2: Average | L2: 2010 | M2: 2011 | N2: 2012 | O2: 2010 | P2: 2011 | Q2: 2012 | R2: Average
A3: (All) | B3: =SUMPRODUCT(N(INDEX(data,,1)=B$2),N(INDEX(data,,2)=$A3),INDEX(data,,3)) -> 305628607 | C3: =SUMPRODUCT(N(INDEX(data,,1)=C$2),N(INDEX(data,,2)=$A3),INDEX(data,,3)) -> 307900319 | D3: =SUMPRODUCT(N(INDEX(data,,1)=D$2),N(INDEX(data,,2)=$A3),INDEX(data,,3)) -> 310212755 | E3: =IFERROR(C3/B3-1,0) -> 0.007432916775 | F3: =IFERROR(D3/C3-1,0) -> 0.007510339734 | G3: =AVERAGE(E3:F3) -> 0.007471628255 | H3: =SUMPRODUCT(N(INDEX(data,,1)=H$2),N(INDEX(data,,2)=$A3),INDEX(data,,6)) -> 6743229 | I3: =SUMPRODUCT(N(INDEX(data,,1)=I$2),N(INDEX(data,,2)=$A3),INDEX(data,,6)) -> 6987416 | J3: =SUMPRODUCT(N(INDEX(data,,1)=J$2),N(INDEX(data,,2)=$A3),INDEX(data,,6)) -> 7070345 | K3: =AVERAGE(H3:J3) -> 6933663.333 | L3: =H3/B3 -> 0.02206347458 | M3: =I3/C3 -> 0.02269376018 | N3: =J3/D3 -> 0.02279192227 | O3: =SUMPRODUCT(N(INDEX(data,,1)=O$2),N(INDEX(data,,2)="(All)"),INDEX(data,,MATCH($A3,INDEX(data,3,),0))) -> 6743229 | P3: =SUMPRODUCT(N(INDEX(data,,1)=P$2),N(INDEX(data,,2)="(All)"),INDEX(data,,MATCH($A3,INDEX(data,3,),0))) -> 6987416 | Q3: =SUMPRODUCT(N(INDEX(data,,1)=Q$2),N(INDEX(data,,2)="(All)"),INDEX(data,,MATCH($A3,INDEX(data,3,),0))) -> 7070345 | R3: =AVERAGE(O3:Q3) -> 6933663.333 | S3: =K3-R3 -> 0
A4: Alabama | B4: =SUMPRODUCT(N(INDEX(data,,1)=B$2),N(INDEX(data,,2)=$A4),INDEX(data,,3)) -> 4729509 | C4: =SUMPRODUCT(N(INDEX(data,,1)=C$2),N(INDEX(data,,2)=$A4),INDEX(data,,3)) -> 4745278 | D4: =SUMPRODUCT(N(INDEX(data,,1)=D$2),N(INDEX(data,,2)=$A4),INDEX(data,,3)) -> 4764428 | E4: 0.003334172744 | F4: 0.004035590749 | G4: 0.003684881747 | H4: =SUMPRODUCT(N(INDEX(data,,1)=H$2),N(INDEX(data,,2)=$A4),INDEX(data,,6)) -> 108723 | I4: =SUMPRODUCT(N(INDEX(data,,1)=I$2),N(INDEX(data,,2)=$A4),INDEX(data,,6)) -> 117726 | J4: =SUMPRODUCT(N(INDEX(data,,1)=J$2),N(INDEX(data,,2)=$A4),INDEX(data,,6)) -> 104600 | K4: 110349.6667 | L4: 0.0229882214 | M4: 0.02480908389 | N4: 0.02195436682 | O4: =SUMPRODUCT(N(INDEX(data,,1)=O$2),N(INDEX(data,,2)="(All)"),INDEX(data,,MATCH($A4,INDEX(data,3,),0))) -> 99221 | P4: =SUMPRODUCT(N(INDEX(data,,1)=P$2),N(INDEX(data,,2)="(All)"),INDEX(data,,MATCH($A4,INDEX(data,3,),0))) -> 106806 | Q4: =SUMPRODUCT(N(INDEX(data,,1)=Q$2),N(INDEX(data,,2)="(All)"),INDEX(data,,MATCH($A4,INDEX(data,3,),0))) -> 109210 | R4: 105079 | S4: =K4-R4 -> 5270.666667
A5: Alaska | B5: =SUMPRODUCT(N(INDEX(data,,1)=B$2),N(INDEX(data,,2)=$A5),INDEX(data,,3)) -> 702974 | C5: =SUMPRODUCT(N(INDEX(data,,1)=C$2),N(INDEX(data,,2)=$A5),INDEX(data,,3)) -> 711962 | D5: =SUMPRODUCT(N(INDEX(data,,1)=D$2),N(INDEX(data,,2)=$A5),INDEX(data,,3)) -> 721186 | E5: 0.01278567913 | F5: 0.01295574764 | G5: 0.01287071338 | H5: =SUMPRODUCT(N(INDEX(data,,1)=H$2),N(INDEX(data,,2)=$A5),INDEX(data,,6)) -> 36326 | I5: =SUMPRODUCT(N(INDEX(data,,1)=I$2),N(INDEX(data,,2)=$A5),INDEX(data,,6)) -> 35084 | J5: =SUMPRODUCT(N(INDEX(data,,1)=J$2),N(INDEX(data,,2)=$A5),INDEX(data,,6)) -> 33415 | K5: 34941.66667 | L5: 0.05167474188 | M5: 0.0492779109 | N5: 0.04633340081 | O5: =SUMPRODUCT(N(INDEX(data,,1)=O$2),N(INDEX(data,,2)="(All)"),INDEX(data,,MATCH($A5,INDEX(data,3,),0))) -> 94692 | P5: =SUMPRODUCT(N(INDEX(data,,1)=P$2),N(INDEX(data,,2)="(All)"),INDEX(data,,MATCH($A5,INDEX(data,3,),0))) -> 88850 | Q5: =SUMPRODUCT(N(INDEX(data,,1)=Q$2),N(INDEX(data,,2)="(All)"),INDEX(data,,MATCH($A5,INDEX(data,3,),0))) -> 84068 | R5: 89203.33333 | S5: -54261.66667
A6: Arizona | B6: =SUMPRODUCT(N(INDEX(data,,1)=B$2),N(INDEX(data,,2)=$A6),INDEX(data,,3)) -> 6332786 | C6: =SUMPRODUCT(N(INDEX(data,,1)=C$2),N(INDEX(data,,2)=$A6),INDEX(data,,3)) -> 6402301 | D6: =SUMPRODUCT(N(INDEX(data,,1)=D$2),N(INDEX(data,,2)=$A6),INDEX(data,,3)) -> 6468907 | E6: 0.01097700128 | F6: 0.01040344714 | G6: 0.01069022421 | H6: =SUMPRODUCT(N(INDEX(data,,1)=H$2),N(INDEX(data,,2)=$A6),INDEX(data,,6)) -> 222725 | I6: =SUMPRODUCT(N(INDEX(data,,1)=I$2),N(INDEX(data,,2)=$A6),INDEX(data,,6)) -> 222877 | J6: =SUMPRODUCT(N(INDEX(data,,1)=J$2),N(INDEX(data,,2)=$A6),INDEX(data,,6)) -> 232457 | K6: 226019.6667 | L6: 0.0351701447 | M6: 0.03481201524 | N6: 0.03593450949 | O6: =SUMPRODUCT(N(INDEX(data,,1)=O$2),N(INDEX(data,,2)="(All)"),INDEX(data,,MATCH($A6,INDEX(data,3,),0))) -> 176768 | P6: =SUMPRODUCT(N(INDEX(data,,1)=P$2),N(INDEX(data,,2)="(All)"),INDEX(data,,MATCH($A6,INDEX(data,3,),0))) -> 211816 | Q6: =SUMPRODUCT(N(INDEX(data,,1)=Q$2),N(INDEX(data,,2)="(All)"),INDEX(data,,MATCH($A6,INDEX(data,3,),0))) -> 206842 | R6: 198475.3333 | S6: 27544.33333
A7: Arkansas | B7: =SUMPRODUCT(N(INDEX(data,,1)=B$2),N(INDEX(data,,2)=$A7),INDEX(data,,3)) -> 2888304 | C7: =SUMPRODUCT(N(INDEX(data,,1)=C$2),N(INDEX(data,,2)=$A7),INDEX(data,,3)) -> 2906632 | D7: =SUMPRODUCT(N(INDEX(data,,1)=D$2),N(INDEX(data,,2)=$A7),INDEX(data,,3)) -> 2912680 | E7: 0.006345592431 | F7: 0.002080758761 | G7: 0.004213175596 | H7: =SUMPRODUCT(N(INDEX(data,,1)=H$2),N(INDEX(data,,2)=$A7),INDEX(data,,6)) -> 79127 | I7: =SUMPRODUCT(N(INDEX(data,,1)=I$2),N(INDEX(data,,2)=$A7),INDEX(data,,6)) -> 69845 | J7: =SUMPRODUCT(N(INDEX(data,,1)=J$2),N(INDEX(data,,2)=$A7),INDEX(data,,6)) -> 76948 | K7: 75306.66667 | L7: 0.02739566195 | M7: 0.02402952971 | N7: 0.02641828145 | O7: =SUMPRODUCT(N(INDEX(data,,1)=O$2),N(INDEX(data,,2)="(All)"),INDEX(data,,MATCH($A7,INDEX(data,3,),0))) -> 64264 | P7: =SUMPRODUCT(N(INDEX(data,,1)=P$2),N(INDEX(data,,2)="(All)"),INDEX(data,,MATCH($A7,INDEX(data,3,),0))) -> 77226 | Q7: =SUMPRODUCT(N(INDEX(data,,1)=Q$2),N(INDEX(data,,2)="(All)"),INDEX(data,,MATCH($A7,INDEX(data,3,),0))) -> 64967 | R7: 68819 | S7: 6487.666667
A8: California | B8: =SUMPRODUCT(N(INDEX(data,,1)=B$2),N(INDEX(data,,2)=$A8),INDEX(data,,3)) -> 36907897 | C8: =SUMPRODUCT(N(INDEX(data,,1)=C$2),N(INDEX(data,,2)=$A8),INDEX(data,,3)) -> 37222678 | D8: =SUMPRODUCT(N(INDEX(data,,1)=D$2),N(INDEX(data,,2)=$A8),INDEX(data,,3)) -> 37572738 | E8: 0.008528825145 | F8: 0.009404481859 | G8: 0.008966653502 | H8: =SUMPRODUCT(N(INDEX(data,,1)=H$2),N(INDEX(data,,2)=$A8),INDEX(data,,6)) -> 444749 | I8: =SUMPRODUCT(N(INDEX(data,,1)=I$2),N(INDEX(data,,2)=$A8),INDEX(data,,6)) -> 468428 | J8: =SUMPRODUCT(N(INDEX(data,,1)=J$2),N(INDEX(data,,2)=$A8),INDEX(data,,6)) -> 493641 | K8: 468939.3333 | L8: 0.01205023955 | M8: 0.01258447874 | N8: 0.01313827595 | O8: =SUMPRODUCT(N(INDEX(data,,1)=O$2),N(INDEX(data,,2)="(All)"),INDEX(data,,MATCH($A8,INDEX(data,3,),0))) -> 573988 | P8: =SUMPRODUCT(N(INDEX(data,,1)=P$2),N(INDEX(data,,2)="(All)"),INDEX(data,,MATCH($A8,INDEX(data,3,),0))) -> 562343 | Q8: =SUMPRODUCT(N(INDEX(data,,1)=Q$2),N(INDEX(data,,2)="(All)"),INDEX(data,,MATCH($A8,INDEX(data,3,),0))) -> 566986 | R8: 567772.3333 | S8: -98833
A9: Colorado | B9: =SUMPRODUCT(N(INDEX(data,,1)=B$2),N(INDEX(data,,2)=$A9),INDEX(data,,3)) -> 4988190 | C9: =SUMPRODUCT(N(INDEX(data,,1)=C$2),N(INDEX(data,,2)=$A9),INDEX(data,,3)) -> 5048443 | D9: =SUMPRODUCT(N(INDEX(data,,1)=D$2),N(INDEX(data,,2)=$A9),INDEX(data,,3)) -> 5123944 | E9: 0.01207913091 | F9: 0.01495530404 | G9: 0.01351721747 | H9: =SUMPRODUCT(N(INDEX(data,,1)=H$2),N(INDEX(data,,2)=$A9),INDEX(data,,6)) -> 186366 | I9: =SUMPRODUCT(N(INDEX(data,,1)=I$2),N(INDEX(data,,2)=$A9),INDEX(data,,6)) -> 202124 | J9: =SUMPRODUCT(N(INDEX(data,,1)=J$2),N(INDEX(data,,2)=$A9),INDEX(data,,6)) -> 205060 | K9: 197850 | L9: 0.03736144774 | M9: 0.04003689851 | N9: 0.04001995338 | O9: =SUMPRODUCT(N(INDEX(data,,1)=O$2),N(INDEX(data,,2)="(All)"),INDEX(data,,MATCH($A9,INDEX(data,3,),0))) -> 140620 | P9: =SUMPRODUCT(N(INDEX(data,,1)=P$2),N(INDEX(data,,2)="(All)"),INDEX(data,,MATCH($A9,INDEX(data,3,),0))) -> 160623 | Q9: =SUMPRODUCT(N(INDEX(data,,1)=Q$2),N(INDEX(data,,2)="(All)"),INDEX(data,,MATCH($A9,INDEX(data,3,),0))) -> 161530 | R9: 154257.6667 | S9: 43592.33333
A10: Connecticut | B10: =SUMPRODUCT(N(INDEX(data,,1)=B$2),N(INDEX(data,,2)=$A10),INDEX(data,,3)) -> 3541146 | C10: =SUMPRODUCT(N(INDEX(data,,1)=C$2),N(INDEX(data,,2)=$A10),INDEX(data,,3)) -> 3548667 | D10: =SUMPRODUCT(N(INDEX(data,,1)=D$2),N(INDEX(data,,2)=$A10),INDEX(data,,3)) -> 3555319 | E10: 0.002123888707 | F10: 0.001874506681 | G10: 0.001999197694 | H10: =SUMPRODUCT(N(INDEX(data,,1)=H$2),N(INDEX(data,,2)=$A10),INDEX(data,,6)) -> 77333 | I10: =SUMPRODUCT(N(INDEX(data,,1)=I$2),N(INDEX(data,,2)=$A10),INDEX(data,,6)) -> 71502 | J10: =SUMPRODUCT(N(INDEX(data,,1)=J$2),N(INDEX(data,,2)=$A10),INDEX(data,,6)) -> 80311 | K10: 76382 | L10: 0.0218384105 | M10: 0.02014897425 | N10: 0.02258897162 | O10: =SUMPRODUCT(N(INDEX(data,,1)=O$2),N(INDEX(data,,2)="(All)"),INDEX(data,,MATCH($A10,INDEX(data,3,),0))) -> 89360 | P10: =SUMPRODUCT(N(INDEX(data,,1)=P$2),N(INDEX(data,,2)="(All)"),INDEX(data,,MATCH($A10,INDEX(data,3,),0))) -> 91295 | Q10: =SUMPRODUCT(N(INDEX(data,,1)=Q$2),N(INDEX(data,,2)="(All)"),INDEX(data,,MATCH($A10,INDEX(data,3,),0))) -> 87023 | R10: 89226 | S10: -12844
A11: Delaware | B11: =SUMPRODUCT(N(INDEX(data,,1)=B$2),N(INDEX(data,,2)=$A11),INDEX(data,,3)) -> 889812 | C11: =SUMPRODUCT(N(INDEX(data,,1)=C$2),N(INDEX(data,,2)=$A11),INDEX(data,,3)) -> 897187 | D11: =SUMPRODUCT(N(INDEX(data,,1)=D$2),N(INDEX(data,,2)=$A11),INDEX(data,,3)) -> 906576 | E11: 0.008288267634 | F11: 0.01046493095 | G11: 0.00937659929 | H11: =SUMPRODUCT(N(INDEX(data,,1)=H$2),N(INDEX(data,,2)=$A11),INDEX(data,,6)) -> 30759 | I11: =SUMPRODUCT(N(INDEX(data,,1)=I$2),N(INDEX(data,,2)=$A11),INDEX(data,,6)) -> 33912 | J11: =SUMPRODUCT(N(INDEX(data,,1)=J$2),N(INDEX(data,,2)=$A11),INDEX(data,,6)) -> 34757 | K11: 33142.66667 | L11: 0.03456797616 | M11: 0.03779814019 | N11: 0.03833876035 | O11: =SUMPRODUCT(N(INDEX(data,,1)=O$2),N(INDEX(data,,2)="(All)"),INDEX(data,,MATCH($A11,INDEX(data,3,),0))) -> 30055 | P11: =SUMPRODUCT(N(INDEX(data,,1)=P$2),N(INDEX(data,,2)="(All)"),INDEX(data,,MATCH($A11,INDEX(data,3,),0))) -> 26631 | Q11: =SUMPRODUCT(N(INDEX(data,,1)=Q$2),N(INDEX(data,,2)="(All)"),INDEX(data,,MATCH($A11,INDEX(data,3,),0))) -> 25149 | R11: 27278.33333 | S11: 5864.333333
A12: District of Columbia | B12: =SUMPRODUCT(N(INDEX(data,,1)=B$2),N(INDEX(data,,2)=$A12),INDEX(data,,3)) -> 596747 | C12: =SUMPRODUCT(N(INDEX(data,,1)=C$2),N(INDEX(data,,2)=$A12),INDEX(data,,3)) -> 611608 | D12: =SUMPRODUCT(N(INDEX(data,,1)=D$2),N(INDEX(data,,2)=$A12),INDEX(data,,3)) -> 624847 | E12: 0.024903351 | F12: 0.02164621784 | G12: 0.02327478442 | H12: =SUMPRODUCT(N(INDEX(data,,1)=H$2),N(INDEX(data,,2)=$A12),INDEX(data,,6)) -> 51244 | I12: =SUMPRODUCT(N(INDEX(data,,1)=I$2),N(INDEX(data,,2)=$A12),INDEX(data,,6)) -> 48066 | J12: =SUMPRODUCT(N(INDEX(data,,1)=J$2),N(INDEX(data,,2)=$A12),INDEX(data,,6)) -> 53830 | K12: 51046.66667 | L12: 0.08587223731 | M12: 0.07858955409 | N12: 0.0861490893 | O12: =SUMPRODUCT(N(INDEX(data,,1)=O$2),N(INDEX(data,,2)="(All)"),INDEX(data,,MATCH($A12,INDEX(data,3,),0))) -> 56052 | P12: =SUMPRODUCT(N(INDEX(data,,1)=P$2),N(INDEX(data,,2)="(All)"),INDEX(data,,MATCH($A12,INDEX(data,3,),0))) -> 49732 | Q12: =SUMPRODUCT(N(INDEX(data,,1)=Q$2),N(INDEX(data,,2)="(All)"),INDEX(data,,MATCH($A12,INDEX(data,3,),0))) -> 59513 | R12: 55099 | S12: -4052.333333
A13: Florida | B13: =SUMPRODUCT(N(INDEX(data,,1)=B$2),N(INDEX(data,,2)=$A13),INDEX(data,,3)) -> 18647600 | C13: =SUMPRODUCT(N(INDEX(data,,1)=C$2),N(INDEX(data,,2)=$A13),INDEX(data,,3)) -> 18863948 | D13: =SUMPRODUCT(N(INDEX(data,,1)=D$2),N(INDEX(data,,2)=$A13),INDEX(data,,3)) -> 19114620 | E13: 0.01160192196 | F13: 0.01328841661 | G13: 0.01244516929 | H13: =SUMPRODUCT(N(INDEX(data,,1)=H$2),N(INDEX(data,,2)=$A13),INDEX(data,,6)) -> 482889 | I13: =SUMPRODUCT(N(INDEX(data,,1)=I$2),N(INDEX(data,,2)=$A13),INDEX(data,,6)) -> 498597 | J13: =SUMPRODUCT(N(INDEX(data,,1)=J$2),N(INDEX(data,,2)=$A13),INDEX(data,,6)) -> 537148 | K13: 506211.3333 | L13: 0.02589550398 | M13: 0.02643121154 | N13: 0.02810142184 | O13: =SUMPRODUCT(N(INDEX(data,,1)=O$2),N(INDEX(data,,2)="(All)"),INDEX(data,,MATCH($A13,INDEX(data,3,),0))) -> 427853 | P13: =SUMPRODUCT(N(INDEX(data,,1)=P$2),N(INDEX(data,,2)="(All)"),INDEX(data,,MATCH($A13,INDEX(data,3,),0))) -> 437202 | Q13: =SUMPRODUCT(N(INDEX(data,,1)=Q$2),N(INDEX(data,,2)="(All)"),INDEX(data,,MATCH($A13,INDEX(data,3,),0))) -> 428325 | R13: 431126.6667 | S13: 75084.66667
A14: Georgia | B14: =SUMPRODUCT(N(INDEX(data,,1)=B$2),N(INDEX(data,,2)=$A14),INDEX(data,,3)) -> 9587237 | C14: =SUMPRODUCT(N(INDEX(data,,1)=C$2),N(INDEX(data,,2)=$A14),INDEX(data,,3)) -> 9699859 | D14: =SUMPRODUCT(N(INDEX(data,,1)=D$2),N(INDEX(data,,2)=$A14),INDEX(data,,3)) -> 9796547 | E14: 0.01174707583 | F14: 0.009967979947 | G14: 0.01085752789 | H14: =SUMPRODUCT(N(INDEX(data,,1)=H$2),N(INDEX(data,,2)=$A14),INDEX(data,,6)) -> 249459 | I14: =SUMPRODUCT(N(INDEX(data,,1)=I$2),N(INDEX(data,,2)=$A14),INDEX(data,,6)) -> 271077 | J14: =SUMPRODUCT(N(INDEX(data,,1)=J$2),N(INDEX(data,,2)=$A14),INDEX(data,,6)) -> 277466 | K14: 266000.6667 | L14: 0.02601990542 | M14: 0.02794648871 | N14: 0.02832283661 | O14: =SUMPRODUCT(N(INDEX(data,,1)=O$2),N(INDEX(data,,2)="(All)"),INDEX(data,,MATCH($A14,INDEX(data,3,),0))) -> 244992 | P14: =SUMPRODUCT(N(INDEX(data,,1)=P$2),N(INDEX(data,,2)="(All)"),INDEX(data,,MATCH($A14,INDEX(data,3,),0))) -> 248892 | Q14: =SUMPRODUCT(N(INDEX(data,,1)=Q$2),N(INDEX(data,,2)="(All)"),INDEX(data,,MATCH($A14,INDEX(data,3,),0))) -> 252262 | R14: 248715.3333 | S14: 17285.33333
A15: Hawaii | B15: =SUMPRODUCT(N(INDEX(data,,1)=B$2),N(INDEX(data,,2)=$A15),INDEX(data,,3)) -> 1346274 | C15: =SUMPRODUCT(N(INDEX(data,,1)=C$2),N(INDEX(data,,2)=$A15),INDEX(data,,3)) -> 1357806 | D15: =SUMPRODUCT(N(INDEX(data,,1)=D$2),N(INDEX(data,,2)=$A15),INDEX(data,,3)) -> 1374852 | E15: 0.008565864007 | F15: 0.01255407621 | G15: 0.01055997011 | H15: =SUMPRODUCT(N(INDEX(data,,1)=H$2),N(INDEX(data,,2)=$A15),INDEX(data,,6)) -> 53581 | I15: =SUMPRODUCT(N(INDEX(data,,1)=I$2),N(INDEX(data,,2)=$A15),INDEX(data,,6)) -> 57542 | J15: =SUMPRODUCT(N(INDEX(data,,1)=J$2),N(INDEX(data,,2)=$A15),INDEX(data,,6)) -> 55145 | K15: 55422.66667 | L15: 0.03979947618 | M15: 0.04237866087 | N15: 0.04010977182 | O15: =SUMPRODUCT(N(INDEX(data,,1)=O$2),N(INDEX(data,,2)="(All)"),INDEX(data,,MATCH($A15,INDEX(data,3,),0))) -> 49218 | P15: =SUMPRODUCT(N(INDEX(data,,1)=P$2),N(INDEX(data,,2)="(All)"),INDEX(data,,MATCH($A15,INDEX(data,3,),0))) -> 61940 | Q15: =SUMPRODUCT(N(INDEX(data,,1)=Q$2),N(INDEX(data,,2)="(All)"),INDEX(data,,MATCH($A15,INDEX(data,3,),0))) -> 61509 | R15: 57555.66667 | S15: -2133
A16: Idaho | B16: =SUMPRODUCT(N(INDEX(data,,1)=B$2),N(INDEX(data,,2)=$A16),INDEX(data,,3)) -> 1550967 | C16: =SUMPRODUCT(N(INDEX(data,,1)=C$2),N(INDEX(data,,2)=$A16),INDEX(data,,3)) -> 1559637 | D16: =SUMPRODUCT(N(INDEX(data,,1)=D$2),N(INDEX(data,,2)=$A16),INDEX(data,,3)) -> 1573036 | E16: 0.00559006091 | F16: 0.008591101647 | G16: 0.007090581279 | H16: =SUMPRODUCT(N(INDEX(data,,1)=H$2),N(INDEX(data,,2)=$A16),INDEX(data,,6)) -> 55638 | I16: =SUMPRODUCT(N(INDEX(data,,1)=I$2),N(INDEX(data,,2)=$A16),INDEX(data,,6)) -> 60336 | J16: =SUMPRODUCT(N(INDEX(data,,1)=J$2),N(INDEX(data,,2)=$A16),INDEX(data,,6)) -> 59283 | K16: 58419 | L16: 0.03587310368 | M16: 0.03868592499 | N16: 0.03768699508 | O16: =SUMPRODUCT(N(INDEX(data,,1)=O$2),N(INDEX(data,,2)="(All)"),INDEX(data,,MATCH($A16,INDEX(data,3,),0))) -> 53122 | P16: =SUMPRODUCT(N(INDEX(data,,1)=P$2),N(INDEX(data,,2)="(All)"),INDEX(data,,MATCH($A16,INDEX(data,3,),0))) -> 57831 | Q16: =SUMPRODUCT(N(INDEX(data,,1)=Q$2),N(INDEX(data,,2)="(All)"),INDEX(data,,MATCH($A16,INDEX(data,3,),0))) -> 55191 | R16: 55381.33333 | S16: 3037.666667
A17: Illinois | B17: =SUMPRODUCT(N(INDEX(data,,1)=B$2),N(INDEX(data,,2)=$A17),INDEX(data,,3)) -> 12680126 | C17: =SUMPRODUCT(N(INDEX(data,,1)=C$2),N(INDEX(data,,2)=$A17),INDEX(data,,3)) -> 12718402 | D17: =SUMPRODUCT(N(INDEX(data,,1)=D$2),N(INDEX(data,,2)=$A17),INDEX(data,,3)) -> 12725119 | E17: 0.003018581992 | F17: 0.0005281323864 | G17: 0.001773357189 | H17: =SUMPRODUCT(N(INDEX(data,,1)=H$2),N(INDEX(data,,2)=$A17),INDEX(data,,6)) -> 203959 | I17: =SUMPRODUCT(N(INDEX(data,,1)=I$2),N(INDEX(data,,2)=$A17),INDEX(data,,6)) -> 216204 | J17: =SUMPRODUCT(N(INDEX(data,,1)=J$2),N(INDEX(data,,2)=$A17),INDEX(data,,6)) -> 208755 | K17: 209639.3333 | L17: 0.0160849348 | M17: 0.01699930542 | N17: 0.01640495464 | O17: =SUMPRODUCT(N(INDEX(data,,1)=O$2),N(INDEX(data,,2)="(All)"),INDEX(data,,MATCH($A17,INDEX(data,3,),0))) -> 277579 | P17: =SUMPRODUCT(N(INDEX(data,,1)=P$2),N(INDEX(data,,2)="(All)"),INDEX(data,,MATCH($A17,INDEX(data,3,),0))) -> 269008 | Q17: =SUMPRODUCT(N(INDEX(data,,1)=Q$2),N(INDEX(data,,2)="(All)"),INDEX(data,,MATCH($A17,INDEX(data,3,),0))) -> 277953 | R17: 274846.6667 | S17: -65207.33333
A18: Indiana | B18: =SUMPRODUCT(N(INDEX(data,,1)=B$2),N(INDEX(data,,2)=$A18),INDEX(data,,3)) -> 6414862 | C18: =SUMPRODUCT(N(INDEX(data,,1)=C$2),N(INDEX(data,,2)=$A18),INDEX(data,,3)) -> 6437155 | D18: =SUMPRODUCT(N(INDEX(data,,1)=D$2),N(INDEX(data,,2)=$A18),INDEX(data,,3)) -> 6457067 | E18: 0.003475211158 | F18: 0.00309329199 | G18: 0.003284251574 | H18: =SUMPRODUCT(N(INDEX(data,,1)=H$2),N(INDEX(data,,2)=$A18),INDEX(data,,6)) -> 127353 | I18: =SUMPRODUCT(N(INDEX(data,,1)=I$2),N(INDEX(data,,2)=$A18),INDEX(data,,6)) -> 127874 | J18: =SUMPRODUCT(N(INDEX(data,,1)=J$2),N(INDEX(data,,2)=$A18),INDEX(data,,6)) -> 134137 | K18: 129788 | L18: 0.01985280432 | M18: 0.01986498694 | N18: 0.02077367325 | O18: =SUMPRODUCT(N(INDEX(data,,1)=O$2),N(INDEX(data,,2)="(All)"),INDEX(data,,MATCH($A18,INDEX(data,3,),0))) -> 130170 | P18: =SUMPRODUCT(N(INDEX(data,,1)=P$2),N(INDEX(data,,2)="(All)"),INDEX(data,,MATCH($A18,INDEX(data,3,),0))) -> 143228 | Q18: =SUMPRODUCT(N(INDEX(data,,1)=Q$2),N(INDEX(data,,2)="(All)"),INDEX(data,,MATCH($A18,INDEX(data,3,),0))) -> 144597 | R18: 139331.6667 | S18: -9543.666667
A19: Iowa | B19: =SUMPRODUCT(N(INDEX(data,,1)=B$2),N(INDEX(data,,2)=$A19),INDEX(data,,3)) -> 3013053 | C19: =SUMPRODUCT(N(INDEX(data,,1)=C$2),N(INDEX(data,,2)=$A19),INDEX(data,,3)) -> 3027718 | D19: =SUMPRODUCT(N(INDEX(data,,1)=D$2),N(INDEX(data,,2)=$A19),INDEX(data,,3)) -> 3035469 | E19: 0.004867156336 | F19: 0.002560013845 | G19: 0.003713585091 | H19: =SUMPRODUCT(N(INDEX(data,,1)=H$2),N(INDEX(data,,2)=$A19),INDEX(data,,6)) -> 72557 | I19: =SUMPRODUCT(N(INDEX(data,,1)=I$2),N(INDEX(data,,2)=$A19),INDEX(data,,6)) -> 70405 | J19: =SUMPRODUCT(N(INDEX(data,,1)=J$2),N(INDEX(data,,2)=$A19),INDEX(data,,6)) -> 75760 | K19: 72907.33333 | L19: 0.02408089071 | M19: 0.02325348662 | N19: 0.02495825192 | O19: =SUMPRODUCT(N(INDEX(data,,1)=O$2),N(INDEX(data,,2)="(All)"),INDEX(data,,MATCH($A19,INDEX(data,3,),0))) -> 66922 | P19: =SUMPRODUCT(N(INDEX(data,,1)=P$2),N(INDEX(data,,2)="(All)"),INDEX(data,,MATCH($A19,INDEX(data,3,),0))) -> 74516 | Q19: =SUMPRODUCT(N(INDEX(data,,1)=Q$2),N(INDEX(data,,2)="(All)"),INDEX(data,,MATCH($A19,INDEX(data,3,),0))) -> 73325 | R19: 71587.66667 | S19: 1319.666667
A20: Kansas | B20: =SUMPRODUCT(N(INDEX(data,,1)=B$2),N(INDEX(data,,2)=$A20),INDEX(data,,3)) -> 2820894 | C20: =SUMPRODUCT(N(INDEX(data,,1)=C$2),N(INDEX(data,,2)=$A20),INDEX(data,,3)) -> 2833584 | D20: =SUMPRODUCT(N(INDEX(data,,1)=D$2),N(INDEX(data,,2)=$A20),INDEX(data,,3)) -> 2848708 | E20: 0.004498573856 | F20: 0.005337410149 | G20: 0.004917992003 | H20: =SUMPRODUCT(N(INDEX(data,,1)=H$2),N(INDEX(data,,2)=$A20),INDEX(data,,6)) -> 95059 | I20: =SUMPRODUCT(N(INDEX(data,,1)=I$2),N(INDEX(data,,2)=$A20),INDEX(data,,6)) -> 83640 | J20: =SUMPRODUCT(N(INDEX(data,,1)=J$2),N(INDEX(data,,2)=$A20),INDEX(data,,6)) -> 88284 | K20: 88994.33333 | L20: 0.03369818221 | M20: 0.02951738858 | N20: 0.03099089131 | O20: =SUMPRODUCT(N(INDEX(data,,1)=O$2),N(INDEX(data,,2)="(All)"),INDEX(data,,MATCH($A20,INDEX(data,3,),0))) -> 90681 | P20: =SUMPRODUCT(N(INDEX(data,,1)=P$2),N(INDEX(data,,2)="(All)"),INDEX(data,,MATCH($A20,INDEX(data,3,),0))) -> 94180 | Q20: =SUMPRODUCT(N(INDEX(data,,1)=Q$2),N(INDEX(data,,2)="(All)"),INDEX(data,,MATCH($A20,INDEX(data,3,),0))) -> 93134 | R20: 92665 | S20: -3670.666667
A21: Kentucky | B21: =SUMPRODUCT(N(INDEX(data,,1)=B$2),N(INDEX(data,,2)=$A21),INDEX(data,,3)) -> 4296639 | C21: =SUMPRODUCT(N(INDEX(data,,1)=C$2),N(INDEX(data,,2)=$A21),INDEX(data,,3)) -> 4316297 | D21: =SUMPRODUCT(N(INDEX(data,,1)=D$2),N(INDEX(data,,2)=$A21),INDEX(data,,3)) -> 4328626 | E21: 0.004575204014 | F21: 0.002856383608 | G21: 0.003715793811 | H21: =SUMPRODUCT(N(INDEX(data,,1)=H$2),N(INDEX(data,,2)=$A21),INDEX(data,,6)) -> 118443 | I21: =SUMPRODUCT(N(INDEX(data,,1)=I$2),N(INDEX(data,,2)=$A21),INDEX(data,,6)) -> 110031 | J21: =SUMPRODUCT(N(INDEX(data,,1)=J$2),N(INDEX(data,,2)=$A21),INDEX(data,,6)) -> 112787 | K21: 113753.6667 | L21: 0.02756643041 | M21: 0.02549199001 | N21: 0.02605607414 | O21: =SUMPRODUCT(N(INDEX(data,,1)=O$2),N(INDEX(data,,2)="(All)"),INDEX(data,,MATCH($A21,INDEX(data,3,),0))) -> 92999 | P21: =SUMPRODUCT(N(INDEX(data,,1)=P$2),N(INDEX(data,,2)="(All)"),INDEX(data,,MATCH($A21,INDEX(data,3,),0))) -> 99256 | Q21: =SUMPRODUCT(N(INDEX(data,,1)=Q$2),N(INDEX(data,,2)="(All)"),INDEX(data,,MATCH($A21,INDEX(data,3,),0))) -> 103004 | R21: 98419.66667 | S21: 15334
A22: Louisiana | B22: =SUMPRODUCT(N(INDEX(data,,1)=B$2),N(INDEX(data,,2)=$A22),INDEX(data,,3)) -> 4483529 | C22: =SUMPRODUCT(N(INDEX(data,,1)=C$2),N(INDEX(data,,2)=$A22),INDEX(data,,3)) -> 4518629 | D22: =SUMPRODUCT(N(INDEX(data,,1)=D$2),N(INDEX(data,,2)=$A22),INDEX(data,,3)) -> 4545914 | E22: 0.007828654616 | F22: 0.006038335964 | G22: 0.00693349529 | H22: =SUMPRODUCT(N(INDEX(data,,1)=H$2),N(INDEX(data,,2)=$A22),INDEX(data,,6)) -> 97889 | I22: =SUMPRODUCT(N(INDEX(data,,1)=I$2),N(INDEX(data,,2)=$A22),INDEX(data,,6)) -> 99138 | J22: =SUMPRODUCT(N(INDEX(data,,1)=J$2),N(INDEX(data,,2)=$A22),INDEX(data,,6)) -> 91215 | K22: 96080.66667 | L22: 0.02183302483 | M22: 0.0219398406 | N22: 0.0200652718 | O22: =SUMPRODUCT(N(INDEX(data,,1)=O$2),N(INDEX(data,,2)="(All)"),INDEX(data,,MATCH($A22,INDEX(data,3,),0))) -> 88131 | P22: =SUMPRODUCT(N(INDEX(data,,1)=P$2),N(INDEX(data,,2)="(All)"),INDEX(data,,MATCH($A22,INDEX(data,3,),0))) -> 86593 | Q22: =SUMPRODUCT(N(INDEX(data,,1)=Q$2),N(INDEX(data,,2)="(All)"),INDEX(data,,MATCH($A22,INDEX(data,3,),0))) -> 95956 | R22: 90226.66667 | S22: 5854
A23: Maine | B23: =SUMPRODUCT(N(INDEX(data,,1)=B$2),N(INDEX(data,,2)=$A23),INDEX(data,,3)) -> 1313902 | C23: =SUMPRODUCT(N(INDEX(data,,1)=C$2),N(INDEX(data,,2)=$A23),INDEX(data,,3)) -> 1315833 | D23: =SUMPRODUCT(N(INDEX(data,,1)=D$2),N(INDEX(data,,2)=$A23),INDEX(data,,3)) -> 1315586 | E23: 0.00146966821 | F23: -0.0001877137904 | G23: 0.0006409772096 | H23: =SUMPRODUCT(N(INDEX(data,,1)=H$2),N(INDEX(data,,2)=$A23),INDEX(data,,6)) -> 27758 | I23: =SUMPRODUCT(N(INDEX(data,,1)=I$2),N(INDEX(data,,2)=$A23),INDEX(data,,6)) -> 33818 | J23: =SUMPRODUCT(N(INDEX(data,,1)=J$2),N(INDEX(data,,2)=$A23),INDEX(data,,6)) -> 27523 | K23: 29699.66667 | L23: 0.02112638538 | M23: 0.02570082982 | N23: 0.02092071518 | O23: =SUMPRODUCT(N(INDEX(data,,1)=O$2),N(INDEX(data,,2)="(All)"),INDEX(data,,MATCH($A23,INDEX(data,3,),0))) -> 32209 | P23: =SUMPRODUCT(N(INDEX(data,,1)=P$2),N(INDEX(data,,2)="(All)"),INDEX(data,,MATCH($A23,INDEX(data,3,),0))) -> 33729 | Q23: =SUMPRODUCT(N(INDEX(data,,1)=Q$2),N(INDEX(data,,2)="(All)"),INDEX(data,,MATCH($A23,INDEX(data,3,),0))) -> 38574 | R23: 34837.33333 | S23: -5137.666667
A24: Maryland | B24: =SUMPRODUCT(N(INDEX(data,,1)=B$2),N(INDEX(data,,2)=$A24),INDEX(data,,3)) -> 5716785 | C24: =SUMPRODUCT(N(INDEX(data,,1)=C$2),N(INDEX(data,,2)=$A24),INDEX(data,,3)) -> 5759087 | D24: =SUMPRODUCT(N(INDEX(data,,1)=D$2),N(INDEX(data,,2)=$A24),INDEX(data,,3)) -> 5816472 | E24: 0.007399613594 | F24: 0.009964253014 | G24: 0.008681933304 | H24: =SUMPRODUCT(N(INDEX(data,,1)=H$2),N(INDEX(data,,2)=$A24),INDEX(data,,6)) -> 164484 | I24: =SUMPRODUCT(N(INDEX(data,,1)=I$2),N(INDEX(data,,2)=$A24),INDEX(data,,6)) -> 153979 | J24: =SUMPRODUCT(N(INDEX(data,,1)=J$2),N(INDEX(data,,2)=$A24),INDEX(data,,6)) -> 154983 | K24: 157815.3333 | L24: 0.0287721158 | M24: 0.02673670323 | N24: 0.02664553358 | O24: =SUMPRODUCT(N(INDEX(data,,1)=O$2),N(INDEX(data,,2)="(All)"),INDEX(data,,MATCH($A24,INDEX(data,3,),0))) -> 159866 | P24: =SUMPRODUCT(N(INDEX(data,,1)=P$2),N(INDEX(data,,2)="(All)"),INDEX(data,,MATCH($A24,INDEX(data,3,),0))) -> 165041 | Q24: =SUMPRODUCT(N(INDEX(data,,1)=Q$2),N(INDEX(data,,2)="(All)"),INDEX(data,,MATCH($A24,INDEX(data,3,),0))) -> 157664 | R24: 160857 | S24: -3041.666667
A25: Massachusetts | B25: =SUMPRODUCT(N(INDEX(data,,1)=B$2),N(INDEX(data,,2)=$A25),INDEX(data,,3)) -> 6489250 | C25: =SUMPRODUCT(N(INDEX(data,,1)=C$2),N(INDEX(data,,2)=$A25),INDEX(data,,3)) -> 6515057 | D25: =SUMPRODUCT(N(INDEX(data,,1)=D$2),N(INDEX(data,,2)=$A25),INDEX(data,,3)) -> 6580641 | E25: 0.003976884848 | F25: 0.01006652743 | G25: 0.007021706139 | H25: =SUMPRODUCT(N(INDEX(data,,1)=H$2),N(INDEX(data,,2)=$A25),INDEX(data,,6)) -> 140162 | I25: =SUMPRODUCT(N(INDEX(data,,1)=I$2),N(INDEX(data,,2)=$A25),INDEX(data,,6)) -> 139830 | J25: =SUMPRODUCT(N(INDEX(data,,1)=J$2),N(INDEX(data,,2)=$A25),INDEX(data,,6)) -> 142577 | K25: 140856.3333 | L25: 0.02159910621 | M25: 0.02146259043 | N25: 0.02166612645 | O25: =SUMPRODUCT(N(INDEX(data,,1)=O$2),N(INDEX(data,,2)="(All)"),INDEX(data,,MATCH($A25,INDEX(data,3,),0))) -> 144152 | P25: =SUMPRODUCT(N(INDEX(data,,1)=P$2),N(INDEX(data,,2)="(All)"),INDEX(data,,MATCH($A25,INDEX(data,3,),0))) -> 145869 | Q25: =SUMPRODUCT(N(INDEX(data,,1)=Q$2),N(INDEX(data,,2)="(All)"),INDEX(data,,MATCH($A25,INDEX(data,3,),0))) -> 158156 | R25: 149392.3333 | S25: -8536
A26: Michigan | B26: =SUMPRODUCT(N(INDEX(data,,1)=B$2),N(INDEX(data,,2)=$A26),INDEX(data,,3)) -> 9762127 | C26: =SUMPRODUCT(N(INDEX(data,,1)=C$2),N(INDEX(data,,2)=$A26),INDEX(data,,3)) -> 9766574 | D26: =SUMPRODUCT(N(INDEX(data,,1)=D$2),N(INDEX(data,,2)=$A26),INDEX(data,,3)) -> 9778980 | E26: 0.0004555359708 | F26: 0.00127025096 | G26: 0.0008628934654 | H26: =SUMPRODUCT(N(INDEX(data,,1)=H$2),N(INDEX(data,,2)=$A26),INDEX(data,,6)) -> 116149 | I26: =SUMPRODUCT(N(INDEX(data,,1)=I$2),N(INDEX(data,,2)=$A26),INDEX(data,,6)) -> 139158 | J26: =SUMPRODUCT(N(INDEX(data,,1)=J$2),N(INDEX(data,,2)=$A26),INDEX(data,,6)) -> 133981 | K26: 129762.6667 | L26: 0.01189791938 | M26: 0.01424839458 | N26: 0.01370091768 | O26: =SUMPRODUCT(N(INDEX(data,,1)=O$2),N(INDEX(data,,2)="(All)"),INDEX(data,,MATCH($A26,INDEX(data,3,),0))) -> 178207 | P26: =SUMPRODUCT(N(INDEX(data,,1)=P$2),N(INDEX(data,,2)="(All)"),INDEX(data,,MATCH($A26,INDEX(data,3,),0))) -> 186505 | Q26: =SUMPRODUCT(N(INDEX(data,,1)=Q$2),N(INDEX(data,,2)="(All)"),INDEX(data,,MATCH($A26,INDEX(data,3,),0))) -> 175733 | R26: 180148.3333 | S26: -50385.66667
A27: Minnesota | B27: =SUMPRODUCT(N(INDEX(data,,1)=B$2),N(INDEX(data,,2)=$A27),INDEX(data,,3)) -> 5244256 | C27: =SUMPRODUCT(N(INDEX(data,,1)=C$2),N(INDEX(data,,2)=$A27),INDEX(data,,3)) -> 5277329 | D27: =SUMPRODUCT(N(INDEX(data,,1)=D$2),N(INDEX(data,,2)=$A27),INDEX(data,,3)) -> 5315228 | E27: 0.00630651898 | F27: 0.00718147381 | G27: 0.006743996395 | H27: =SUMPRODUCT(N(INDEX(data,,1)=H$2),N(INDEX(data,,2)=$A27),INDEX(data,,6)) -> 89872 | I27: =SUMPRODUCT(N(INDEX(data,,1)=I$2),N(INDEX(data,,2)=$A27),INDEX(data,,6)) -> 101029 | J27: =SUMPRODUCT(N(INDEX(data,,1)=J$2),N(INDEX(data,,2)=$A27),INDEX(data,,6)) -> 101042 | K27: 97314.33333 | L27: 0.01713722595 | M27: 0.01914396468 | N27: 0.01900990889 | O27: =SUMPRODUCT(N(INDEX(data,,1)=O$2),N(INDEX(data,,2)="(All)"),INDEX(data,,MATCH($A27,INDEX(data,3,),0))) -> 104765 | P27: =SUMPRODUCT(N(INDEX(data,,1)=P$2),N(INDEX(data,,2)="(All)"),INDEX(data,,MATCH($A27,INDEX(data,3,),0))) -> 103253 | Q27: =SUMPRODUCT(N(INDEX(data,,1)=Q$2),N(INDEX(data,,2)="(All)"),INDEX(data,,MATCH($A27,INDEX(data,3,),0))) -> 115946 | R27: 107988 | S27: -10673.66667
A28: Mississippi | B28: =SUMPRODUCT(N(INDEX(data,,1)=B$2),N(INDEX(data,,2)=$A28),INDEX(data,,3)) -> 2931228 | C28: =SUMPRODUCT(N(INDEX(data,,1)=C$2),N(INDEX(data,,2)=$A28),INDEX(data,,3)) -> 2943021 | D28: =SUMPRODUCT(N(INDEX(data,,1)=D$2),N(INDEX(data,,2)=$A28),INDEX(data,,3)) -> 2947696 | E28: 0.00402322849 | F28: 0.001588503786 | G28: 0.002805866138 | H28: =SUMPRODUCT(N(INDEX(data,,1)=H$2),N(INDEX(data,,2)=$A28),INDEX(data,,6)) -> 72321 | I28: =SUMPRODUCT(N(INDEX(data,,1)=I$2),N(INDEX(data,,2)=$A28),INDEX(data,,6)) -> 68511 | J28: =SUMPRODUCT(N(INDEX(data,,1)=J$2),N(INDEX(data,,2)=$A28),INDEX(data,,6)) -> 73500 | K28: 71444 | L28: 0.02467259456 | M28: 0.02327914072 | N28: 0.02493472868 | O28: =SUMPRODUCT(N(INDEX(data,,1)=O$2),N(INDEX(data,,2)="(All)"),INDEX(data,,MATCH($A28,INDEX(data,3,),0))) -> 68363 | P28: =SUMPRODUCT(N(INDEX(data,,1)=P$2),N(INDEX(data,,2)="(All)"),INDEX(data,,MATCH($A28,INDEX(data,3,),0))) -> 68597 | Q28: =SUMPRODUCT(N(INDEX(data,,1)=Q$2),N(INDEX(data,,2)="(All)"),INDEX(data,,MATCH($A28,INDEX(data,3,),0))) -> 66947 | R28: 67969 | S28: 3475
A29: Missouri | B29: =SUMPRODUCT(N(INDEX(data,,1)=B$2),N(INDEX(data,,2)=$A29),INDEX(data,,3)) -> 5920858 | C29: =SUMPRODUCT(N(INDEX(data,,1)=C$2),N(INDEX(data,,2)=$A29),INDEX(data,,3)) -> 5937896 | D29: =SUMPRODUCT(N(INDEX(data,,1)=D$2),N(INDEX(data,,2)=$A29),INDEX(data,,3)) -> 5951913 | E29: 0.00287762348 | F29: 0.002360600455 | G29: 0.002619111967 | H29: =SUMPRODUCT(N(INDEX(data,,1)=H$2),N(INDEX(data,,2)=$A29),INDEX(data,,6)) -> 145226 | I29: =SUMPRODUCT(N(INDEX(data,,1)=I$2),N(INDEX(data,,2)=$A29),INDEX(data,,6)) -> 149439 | J29: =SUMPRODUCT(N(INDEX(data,,1)=J$2),N(INDEX(data,,2)=$A29),INDEX(data,,6)) -> 162930 | K29: 152531.6667 | L29: 0.02452786404 | M29: 0.02516699518 | N29: 0.02737439207 | O29: =SUMPRODUCT(N(INDEX(data,,1)=O$2),N(INDEX(data,,2)="(All)"),INDEX(data,,MATCH($A29,INDEX(data,3,),0))) -> 148055 | P29: =SUMPRODUCT(N(INDEX(data,,1)=P$2),N(INDEX(data,,2)="(All)"),INDEX(data,,MATCH($A29,INDEX(data,3,),0))) -> 138404 | Q29: =SUMPRODUCT(N(INDEX(data,,1)=Q$2),N(INDEX(data,,2)="(All)"),INDEX(data,,MATCH($A29,INDEX(data,3,),0))) -> 142754 | R29: 143071 | S29: 9460.666667
A30: Montana | B30: =SUMPRODUCT(N(INDEX(data,,1)=B$2),N(INDEX(data,,2)=$A30),INDEX(data,,3)) -> 978507 | C30: =SUMPRODUCT(N(INDEX(data,,1)=C$2),N(INDEX(data,,2)=$A30),INDEX(data,,3)) -> 987076 | D30: =SUMPRODUCT(N(INDEX(data,,1)=D$2),N(INDEX(data,,2)=$A30),INDEX(data,,3)) -> 995544 | E30: 0.008757218906 | F30: 0.008578873359 | G30: 0.008668046133 | H30: =SUMPRODUCT(N(INDEX(data,,1)=H$2),N(INDEX(data,,2)=$A30),INDEX(data,,6)) -> 35630 | I30: =SUMPRODUCT(N(INDEX(data,,1)=I$2),N(INDEX(data,,2)=$A30),INDEX(data,,6)) -> 33553 | J30: =SUMPRODUCT(N(INDEX(data,,1)=J$2),N(INDEX(data,,2)=$A30),INDEX(data,,6)) -> 37690 | K30: 35624.33333 | L30: 0.03641261636 | M30: 0.0339923167 | N30: 0.03785869836 | O30: =SUMPRODUCT(N(INDEX(data,,1)=O$2),N(INDEX(data,,2)="(All)"),INDEX(data,,MATCH($A30,INDEX(data,3,),0))) -> 35870 | P30: =SUMPRODUCT(N(INDEX(data,,1)=P$2),N(INDEX(data,,2)="(All)"),INDEX(data,,MATCH($A30,INDEX(data,3,),0))) -> 31204 | Q30: =SUMPRODUCT(N(INDEX(data,,1)=Q$2),N(INDEX(data,,2)="(All)"),INDEX(data,,MATCH($A30,INDEX(data,3,),0))) -> 33832 | R30: 33635.33333 | S30: 1989
A31: Nebraska | B31: =SUMPRODUCT(N(INDEX(data,,1)=B$2),N(INDEX(data,,2)=$A31),INDEX(data,,3)) -> 1802697 | C31: =SUMPRODUCT(N(INDEX(data,,1)=C$2),N(INDEX(data,,2)=$A31),INDEX(data,,3)) -> 1817126 | D31: =SUMPRODUCT(N(INDEX(data,,1)=D$2),N(INDEX(data,,2)=$A31),INDEX(data,,3)) -> 1829420 | E31: 0.008004118274 | F31: 0.006765628801 | G31: 0.007384873537 | H31: =SUMPRODUCT(N(INDEX(data,,1)=H$2),N(INDEX(data,,2)=$A31),INDEX(data,,6)) -> 51290 | I31: =SUMPRODUCT(N(INDEX(data,,1)=I$2),N(INDEX(data,,2)=$A31),INDEX(data,,6)) -> 52070 | J31: =SUMPRODUCT(N(INDEX(data,,1)=J$2),N(INDEX(data,,2)=$A31),INDEX(data,,6)) -> 43266 | K31: 48875.33333 | L31: 0.02845181414 | M31: 0.02865514004 | N31: 0.02365011862 | O31: =SUMPRODUCT(N(INDEX(data,,1)=O$2),N(INDEX(data,,2)="(All)"),INDEX(data,,MATCH($A31,INDEX(data,3,),0))) -> 43531 | P31: =SUMPRODUCT(N(INDEX(data,,1)=P$2),N(INDEX(data,,2)="(All)"),INDEX(data,,MATCH($A31,INDEX(data,3,),0))) -> 52809 | Q31: =SUMPRODUCT(N(INDEX(data,,1)=Q$2),N(INDEX(data,,2)="(All)"),INDEX(data,,MATCH($A31,INDEX(data,3,),0))) -> 48816 | R31: 48385.33333 | S31: 490
A32: Nevada | B32: =SUMPRODUCT(N(INDEX(data,,1)=B$2),N(INDEX(data,,2)=$A32),INDEX(data,,3)) -> 2667364 | C32: =SUMPRODUCT(N(INDEX(data,,1)=C$2),N(INDEX(data,,2)=$A32),INDEX(data,,3)) -> 2688336 | D32: =SUMPRODUCT(N(INDEX(data,,1)=D$2),N(INDEX(data,,2)=$A32),INDEX(data,,3)) -> 2725280 | E32: 0.007862443971 | F32: 0.01374232983 | G32: 0.0108023869 | H32: =SUMPRODUCT(N(INDEX(data,,1)=H$2),N(INDEX(data,,2)=$A32),INDEX(data,,6)) -> 102677 | I32: =SUMPRODUCT(N(INDEX(data,,1)=I$2),N(INDEX(data,,2)=$A32),INDEX(data,,6)) -> 110345 | J32: =SUMPRODUCT(N(INDEX(data,,1)=J$2),N(INDEX(data,,2)=$A32),INDEX(data,,6)) -> 124285 | K32: 112435.6667 | L32: 0.03849380887 | M32: 0.04104583653 | N32: 0.04560448835 | O32: =SUMPRODUCT(N(INDEX(data,,1)=O$2),N(INDEX(data,,2)="(All)"),INDEX(data,,MATCH($A32,INDEX(data,3,),0))) -> 109409 | P32: =SUMPRODUCT(N(INDEX(data,,1)=P$2),N(INDEX(data,,2)="(All)"),INDEX(data,,MATCH($A32,INDEX(data,3,),0))) -> 115943 | Q32: =SUMPRODUCT(N(INDEX(data,,1)=Q$2),N(INDEX(data,,2)="(All)"),INDEX(data,,MATCH($A32,INDEX(data,3,),0))) -> 98882 | R32: 108078 | S32: 4357.666667
A33: New Hampshire | B33: =SUMPRODUCT(N(INDEX(data,,1)=B$2),N(INDEX(data,,2)=$A33),INDEX(data,,3)) -> 1303865 | C33: =SUMPRODUCT(N(INDEX(data,,1)=C$2),N(INDEX(data,,2)=$A33),INDEX(data,,3)) -> 1305678 | D33: =SUMPRODUCT(N(INDEX(data,,1)=D$2),N(INDEX(data,,2)=$A33),INDEX(data,,3)) -> 1309203 | E33: 0.001390481377 | F33: 0.002699746798 | G33: 0.002045114087 | H33: =SUMPRODUCT(N(INDEX(data,,1)=H$2),N(INDEX(data,,2)=$A33),INDEX(data,,6)) -> 39367 | I33: =SUMPRODUCT(N(INDEX(data,,1)=I$2),N(INDEX(data,,2)=$A33),INDEX(data,,6)) -> 37000 | J33: =SUMPRODUCT(N(INDEX(data,,1)=J$2),N(INDEX(data,,2)=$A33),INDEX(data,,6)) -> 50484 | K33: 42283.66667 | L33: 0.03019254294 | M33: 0.02833776781 | N33: 0.03856086489 | O33: =SUMPRODUCT(N(INDEX(data,,1)=O$2),N(INDEX(data,,2)="(All)"),INDEX(data,,MATCH($A33,INDEX(data,3,),0))) -> 38399 | P33: =SUMPRODUCT(N(INDEX(data,,1)=P$2),N(INDEX(data,,2)="(All)"),INDEX(data,,MATCH($A33,INDEX(data,3,),0))) -> 43277 | Q33: =SUMPRODUCT(N(INDEX(data,,1)=Q$2),N(INDEX(data,,2)="(All)"),INDEX(data,,MATCH($A33,INDEX(data,3,),0))) -> 38696 | R33: 40124 | S33: 2159.666667
A34: New Jersey | B34: =SUMPRODUCT(N(INDEX(data,,1)=B$2),N(INDEX(data,,2)=$A34),INDEX(data,,3)) -> 8709933 | C34: =SUMPRODUCT(N(INDEX(data,,1)=C$2),N(INDEX(data,,2)=$A34),INDEX(data,,3)) -> 8719952 | D34: =SUMPRODUCT(N(INDEX(data,,1)=D$2),N(INDEX(data,,2)=$A34),INDEX(data,,3)) -> 8772744 | E34: 0.001150295875 | F34: 0.006054161766 | G34: 0.00360222882 | H34: =SUMPRODUCT(N(INDEX(data,,1)=H$2),N(INDEX(data,,2)=$A34),INDEX(data,,6)) -> 127369 | I34: =SUMPRODUCT(N(INDEX(data,,1)=I$2),N(INDEX(data,,2)=$A34),INDEX(data,,6)) -> 140194 | J34: =SUMPRODUCT(N(INDEX(data,,1)=J$2),N(INDEX(data,,2)=$A34),INDEX(data,,6)) -> 130223 | K34: 132595.3333 | L34: 0.01462341903 | M34: 0.01607738208 | N34: 0.01484404424 | O34: =SUMPRODUCT(N(INDEX(data,,1)=O$2),N(INDEX(data,,2)="(All)"),INDEX(data,,MATCH($A34,INDEX(data,3,),0))) -> 193972 | P34: =SUMPRODUCT(N(INDEX(data,,1)=P$2),N(INDEX(data,,2)="(All)"),INDEX(data,,MATCH($A34,INDEX(data,3,),0))) -> 216369 | Q34: =SUMPRODUCT(N(INDEX(data,,1)=Q$2),N(INDEX(data,,2)="(All)"),INDEX(data,,MATCH($A34,INDEX(data,3,),0))) -> 219202 | R34: 209847.6667 | S34: -77252.33333
A35: New Mexico | B35: =SUMPRODUCT(N(INDEX(data,,1)=B$2),N(INDEX(data,,2)=$A35),INDEX(data,,3)) -> 2039549 | C35: =SUMPRODUCT(N(INDEX(data,,1)=C$2),N(INDEX(data,,2)=$A35),INDEX(data,,3)) -> 2055293 | D35: =SUMPRODUCT(N(INDEX(data,,1)=D$2),N(INDEX(data,,2)=$A35),INDEX(data,,3)) -> 2060595 | E35: =IFERROR(C35/B35-1,0) -> 0.007719353641 | F35: =IFERROR(D35/C35-1,0) -> 0.002579680853 | G35: =AVERAGE(E35:F35) -> 0.005149517247 | H35: =SUMPRODUCT(N(INDEX(data,,1)=H$2),N(INDEX(data,,2)=$A35),INDEX(data,,6)) -> 73605 | I35: =SUMPRODUCT(N(INDEX(data,,1)=I$2),N(INDEX(data,,2)=$A35),INDEX(data,,6)) -> 62130 | J35: =SUMPRODUCT(N(INDEX(data,,1)=J$2),N(INDEX(data,,2)=$A35),INDEX(data,,6)) -> 54693 | K35: =AVERAGE(H35:J35) -> 63476 | L35: =H35/B35 -> 0.03608886082 | M35: =I35/C35 -> 0.03022926658 | N35: =J35/D35 -> 0.02654233365 | O35: =SUMPRODUCT(N(INDEX(data,,1)=O$2),N(INDEX(data,,2)="(All)"),INDEX(data,,MATCH($A35,INDEX(data,3,),0))) -> 50438 | P35: =SUMPRODUCT(N(INDEX(data,,1)=P$2),N(INDEX(data,,2)="(All)"),INDEX(data,,MATCH($A35,INDEX(data,3,),0))) -> 61431 | Q35: =SUMPRODUCT(N(INDEX(data,,1)=Q$2),N(INDEX(data,,2)="(All)"),INDEX(data,,MATCH($A35,INDEX(data,3,),0))) -> 63921 | R35: =AVERAGE(O35:Q35) -> 58596.66667 | S35: 4879.333333
A36: New York | B36: =SUMPRODUCT(N(INDEX(data,,1)=B$2),N(INDEX(data,,2)=$A36),INDEX(data,,3)) -> 19171916 | C36: =SUMPRODUCT(N(INDEX(data,,1)=C$2),N(INDEX(data,,2)=$A36),INDEX(data,,3)) -> 19248685 | D36: =SUMPRODUCT(N(INDEX(data,,1)=D$2),N(INDEX(data,,2)=$A36),INDEX(data,,3)) -> 19352153 | E36: 0.004004242455 | F36: 0.005375328237 | G36: 0.004689785346 | H36: =SUMPRODUCT(N(INDEX(data,,1)=H$2),N(INDEX(data,,2)=$A36),INDEX(data,,6)) -> 269427 | I36: =SUMPRODUCT(N(INDEX(data,,1)=I$2),N(INDEX(data,,2)=$A36),INDEX(data,,6)) -> 282209 | J36: =SUMPRODUCT(N(INDEX(data,,1)=J$2),N(INDEX(data,,2)=$A36),INDEX(data,,6)) -> 270053 | K36: 273896.3333 | L36: 0.014053212 | M36: 0.01466120932 | N36: 0.01395467471 | O36: =SUMPRODUCT(N(INDEX(data,,1)=O$2),N(INDEX(data,,2)="(All)"),INDEX(data,,MATCH($A36,INDEX(data,3,),0))) -> 363139 | P36: =SUMPRODUCT(N(INDEX(data,,1)=P$2),N(INDEX(data,,2)="(All)"),INDEX(data,,MATCH($A36,INDEX(data,3,),0))) -> 377800 | Q36: =SUMPRODUCT(N(INDEX(data,,1)=Q$2),N(INDEX(data,,2)="(All)"),INDEX(data,,MATCH($A36,INDEX(data,3,),0))) -> 405864 | R36: 382267.6667 | S36: -108371.3333
A37: North Carolina | B37: =SUMPRODUCT(N(INDEX(data,,1)=B$2),N(INDEX(data,,2)=$A37),INDEX(data,,3)) -> 9443000 | C37: =SUMPRODUCT(N(INDEX(data,,1)=C$2),N(INDEX(data,,2)=$A37),INDEX(data,,3)) -> 9539412 | D37: =SUMPRODUCT(N(INDEX(data,,1)=D$2),N(INDEX(data,,2)=$A37),INDEX(data,,3)) -> 9640490 | E37: 0.01020989092 | F37: 0.01059583127 | G37: 0.0104028611 | H37: =SUMPRODUCT(N(INDEX(data,,1)=H$2),N(INDEX(data,,2)=$A37),INDEX(data,,6)) -> 263256 | I37: =SUMPRODUCT(N(INDEX(data,,1)=I$2),N(INDEX(data,,2)=$A37),INDEX(data,,6)) -> 265291 | J37: =SUMPRODUCT(N(INDEX(data,,1)=J$2),N(INDEX(data,,2)=$A37),INDEX(data,,6)) -> 273149 | K37: 267232 | L37: 0.02787842847 | M37: 0.027809995 | N37: 0.02833351832 | O37: =SUMPRODUCT(N(INDEX(data,,1)=O$2),N(INDEX(data,,2)="(All)"),INDEX(data,,MATCH($A37,INDEX(data,3,),0))) -> 207025 | P37: =SUMPRODUCT(N(INDEX(data,,1)=P$2),N(INDEX(data,,2)="(All)"),INDEX(data,,MATCH($A37,INDEX(data,3,),0))) -> 225147 | Q37: =SUMPRODUCT(N(INDEX(data,,1)=Q$2),N(INDEX(data,,2)="(All)"),INDEX(data,,MATCH($A37,INDEX(data,3,),0))) -> 238663 | R37: 223611.6667 | S37: 43620.33333
A38: North Dakota | B38: =SUMPRODUCT(N(INDEX(data,,1)=B$2),N(INDEX(data,,2)=$A38),INDEX(data,,3)) -> 665654 | C38: =SUMPRODUCT(N(INDEX(data,,1)=C$2),N(INDEX(data,,2)=$A38),INDEX(data,,3)) -> 675161 | D38: =SUMPRODUCT(N(INDEX(data,,1)=D$2),N(INDEX(data,,2)=$A38),INDEX(data,,3)) -> 689838 | E38: 0.01428219465 | F38: 0.02173851866 | G38: 0.01801035666 | H38: =SUMPRODUCT(N(INDEX(data,,1)=H$2),N(INDEX(data,,2)=$A38),INDEX(data,,6)) -> 30100 | I38: =SUMPRODUCT(N(INDEX(data,,1)=I$2),N(INDEX(data,,2)=$A38),INDEX(data,,6)) -> 32510 | J38: =SUMPRODUCT(N(INDEX(data,,1)=J$2),N(INDEX(data,,2)=$A38),INDEX(data,,6)) -> 38213 | K38: 33607.66667 | L38: 0.04521868719 | M38: 0.04815147794 | N38: 0.05539416501 | O38: =SUMPRODUCT(N(INDEX(data,,1)=O$2),N(INDEX(data,,2)="(All)"),INDEX(data,,MATCH($A38,INDEX(data,3,),0))) -> 24450 | P38: =SUMPRODUCT(N(INDEX(data,,1)=P$2),N(INDEX(data,,2)="(All)"),INDEX(data,,MATCH($A38,INDEX(data,3,),0))) -> 26563 | Q38: =SUMPRODUCT(N(INDEX(data,,1)=Q$2),N(INDEX(data,,2)="(All)"),INDEX(data,,MATCH($A38,INDEX(data,3,),0))) -> 23959 | R38: 24990.66667 | S38: 8617
A39: Ohio | B39: =SUMPRODUCT(N(INDEX(data,,1)=B$2),N(INDEX(data,,2)=$A39),INDEX(data,,3)) -> 11405101 | C39: =SUMPRODUCT(N(INDEX(data,,1)=C$2),N(INDEX(data,,2)=$A39),INDEX(data,,3)) -> 11418944 | D39: =SUMPRODUCT(N(INDEX(data,,1)=D$2),N(INDEX(data,,2)=$A39),INDEX(data,,3)) -> 11414635 | E39: 0.001213755143 | F39: -0.0003773553842 | G39: 0.0004181998796 | H39: =SUMPRODUCT(N(INDEX(data,,1)=H$2),N(INDEX(data,,2)=$A39),INDEX(data,,6)) -> 172633 | I39: =SUMPRODUCT(N(INDEX(data,,1)=I$2),N(INDEX(data,,2)=$A39),INDEX(data,,6)) -> 191778 | J39: =SUMPRODUCT(N(INDEX(data,,1)=J$2),N(INDEX(data,,2)=$A39),INDEX(data,,6)) -> 196391 | K39: 186934 | L39: 0.01513647271 | M39: 0.01679472287 | N39: 0.01720519316 | O39: =SUMPRODUCT(N(INDEX(data,,1)=O$2),N(INDEX(data,,2)="(All)"),INDEX(data,,MATCH($A39,INDEX(data,3,),0))) -> 188013 | P39: =SUMPRODUCT(N(INDEX(data,,1)=P$2),N(INDEX(data,,2)="(All)"),INDEX(data,,MATCH($A39,INDEX(data,3,),0))) -> 206049 | Q39: =SUMPRODUCT(N(INDEX(data,,1)=Q$2),N(INDEX(data,,2)="(All)"),INDEX(data,,MATCH($A39,INDEX(data,3,),0))) -> 199202 | R39: 197754.6667 | S39: -10820.66667
A40: Oklahoma | B40: =SUMPRODUCT(N(INDEX(data,,1)=B$2),N(INDEX(data,,2)=$A40),INDEX(data,,3)) -> 3716264 | C40: =SUMPRODUCT(N(INDEX(data,,1)=C$2),N(INDEX(data,,2)=$A40),INDEX(data,,3)) -> 3742698 | D40: =SUMPRODUCT(N(INDEX(data,,1)=D$2),N(INDEX(data,,2)=$A40),INDEX(data,,3)) -> 3762311 | E40: 0.00711305763 | F40: 0.005240337318 | G40: 0.006176697474 | H40: =SUMPRODUCT(N(INDEX(data,,1)=H$2),N(INDEX(data,,2)=$A40),INDEX(data,,6)) -> 106511 | I40: =SUMPRODUCT(N(INDEX(data,,1)=I$2),N(INDEX(data,,2)=$A40),INDEX(data,,6)) -> 108878 | J40: =SUMPRODUCT(N(INDEX(data,,1)=J$2),N(INDEX(data,,2)=$A40),INDEX(data,,6)) -> 108972 | K40: 108120.3333 | L40: 0.02866077329 | M40: 0.0290907789 | N40: 0.02896411275 | O40: =SUMPRODUCT(N(INDEX(data,,1)=O$2),N(INDEX(data,,2)="(All)"),INDEX(data,,MATCH($A40,INDEX(data,3,),0))) -> 90616 | P40: =SUMPRODUCT(N(INDEX(data,,1)=P$2),N(INDEX(data,,2)="(All)"),INDEX(data,,MATCH($A40,INDEX(data,3,),0))) -> 81009 | Q40: =SUMPRODUCT(N(INDEX(data,,1)=Q$2),N(INDEX(data,,2)="(All)"),INDEX(data,,MATCH($A40,INDEX(data,3,),0))) -> 102572 | R40: 91399 | S40: 16721.33333
A41: Oregon | B41: =SUMPRODUCT(N(INDEX(data,,1)=B$2),N(INDEX(data,,2)=$A41),INDEX(data,,3)) -> 3794008 | C41: =SUMPRODUCT(N(INDEX(data,,1)=C$2),N(INDEX(data,,2)=$A41),INDEX(data,,3)) -> 3828714 | D41: =SUMPRODUCT(N(INDEX(data,,1)=D$2),N(INDEX(data,,2)=$A41),INDEX(data,,3)) -> 3857465 | E41: 0.009147582187 | F41: 0.007509309915 | G41: 0.008328446051 | H41: =SUMPRODUCT(N(INDEX(data,,1)=H$2),N(INDEX(data,,2)=$A41),INDEX(data,,6)) -> 116700 | I41: =SUMPRODUCT(N(INDEX(data,,1)=I$2),N(INDEX(data,,2)=$A41),INDEX(data,,6)) -> 127906 | J41: =SUMPRODUCT(N(INDEX(data,,1)=J$2),N(INDEX(data,,2)=$A41),INDEX(data,,6)) -> 118925 | K41: 121177 | L41: 0.03075902845 | M41: 0.03340703954 | N41: 0.03082983255 | O41: =SUMPRODUCT(N(INDEX(data,,1)=O$2),N(INDEX(data,,2)="(All)"),INDEX(data,,MATCH($A41,INDEX(data,3,),0))) -> 100185 | P41: =SUMPRODUCT(N(INDEX(data,,1)=P$2),N(INDEX(data,,2)="(All)"),INDEX(data,,MATCH($A41,INDEX(data,3,),0))) -> 109795 | Q41: =SUMPRODUCT(N(INDEX(data,,1)=Q$2),N(INDEX(data,,2)="(All)"),INDEX(data,,MATCH($A41,INDEX(data,3,),0))) -> 108182 | R41: 106054 | S41: 15123
A42: Pennsylvania | B42: =SUMPRODUCT(N(INDEX(data,,1)=B$2),N(INDEX(data,,2)=$A42),INDEX(data,,3)) -> 12577555 | C42: =SUMPRODUCT(N(INDEX(data,,1)=C$2),N(INDEX(data,,2)=$A42),INDEX(data,,3)) -> 12610486 | D42: =SUMPRODUCT(N(INDEX(data,,1)=D$2),N(INDEX(data,,2)=$A42),INDEX(data,,3)) -> 12630082 | E42: 0.00261823542 | F42: 0.001553944868 | G42: 0.002086090144 | H42: =SUMPRODUCT(N(INDEX(data,,1)=H$2),N(INDEX(data,,2)=$A42),INDEX(data,,6)) -> 235580 | I42: =SUMPRODUCT(N(INDEX(data,,1)=I$2),N(INDEX(data,,2)=$A42),INDEX(data,,6)) -> 234291 | J42: =SUMPRODUCT(N(INDEX(data,,1)=J$2),N(INDEX(data,,2)=$A42),INDEX(data,,6)) -> 215500 | K42: 228457 | L42: 0.01873019041 | M42: 0.0185790619 | N42: 0.01706243871 | O42: =SUMPRODUCT(N(INDEX(data,,1)=O$2),N(INDEX(data,,2)="(All)"),INDEX(data,,MATCH($A42,INDEX(data,3,),0))) -> 209810 | P42: =SUMPRODUCT(N(INDEX(data,,1)=P$2),N(INDEX(data,,2)="(All)"),INDEX(data,,MATCH($A42,INDEX(data,3,),0))) -> 215127 | Q42: =SUMPRODUCT(N(INDEX(data,,1)=Q$2),N(INDEX(data,,2)="(All)"),INDEX(data,,MATCH($A42,INDEX(data,3,),0))) -> 237156 | R42: 220697.6667 | S42: 7759.333333
A43: Puerto Rico | B43: =SUMPRODUCT(N(INDEX(data,,1)=B$2),N(INDEX(data,,2)=$A43),INDEX(data,,3)) -> 3676493 | C43: =SUMPRODUCT(N(INDEX(data,,1)=C$2),N(INDEX(data,,2)=$A43),INDEX(data,,3)) -> 3669195 | D43: =SUMPRODUCT(N(INDEX(data,,1)=D$2),N(INDEX(data,,2)=$A43),INDEX(data,,3)) -> 3628402 | E43: -0.001985043899 | F43: -0.01111769748 | G43: -0.006551370689 | H43: =SUMPRODUCT(N(INDEX(data,,1)=H$2),N(INDEX(data,,2)=$A43),INDEX(data,,6)) -> 31732 | I43: =SUMPRODUCT(N(INDEX(data,,1)=I$2),N(INDEX(data,,2)=$A43),INDEX(data,,6)) -> 22649 | J43: =SUMPRODUCT(N(INDEX(data,,1)=J$2),N(INDEX(data,,2)=$A43),INDEX(data,,6)) -> 20044 | K43: 24808.33333 | L43: 0.008631051385 | M43: 0.006172743613 | N43: 0.005524194949 | O43: =SUMPRODUCT(N(INDEX(data,,1)=O$2),N(INDEX(data,,2)="(All)"),INDEX(data,,MATCH($A43,INDEX(data,3,),0))) -> 59885 | P43: =SUMPRODUCT(N(INDEX(data,,1)=P$2),N(INDEX(data,,2)="(All)"),INDEX(data,,MATCH($A43,INDEX(data,3,),0))) -> 76218 | Q43: =SUMPRODUCT(N(INDEX(data,,1)=Q$2),N(INDEX(data,,2)="(All)"),INDEX(data,,MATCH($A43,INDEX(data,3,),0))) -> 74500 | R43: 70201 | S43: -45392.66667
A44: Rhode Island | B44: =SUMPRODUCT(N(INDEX(data,,1)=B$2),N(INDEX(data,,2)=$A44),INDEX(data,,3)) -> 1042240 | C44: =SUMPRODUCT(N(INDEX(data,,1)=C$2),N(INDEX(data,,2)=$A44),INDEX(data,,3)) -> 1040022 | D44: =SUMPRODUCT(N(INDEX(data,,1)=D$2),N(INDEX(data,,2)=$A44),INDEX(data,,3)) -> 1040527 | E44: -0.002128108689 | F44: 0.0004855666515 | G44: -0.0008212710188 | H44: =SUMPRODUCT(N(INDEX(data,,1)=H$2),N(INDEX(data,,2)=$A44),INDEX(data,,6)) -> 32059 | I44: =SUMPRODUCT(N(INDEX(data,,1)=I$2),N(INDEX(data,,2)=$A44),INDEX(data,,6)) -> 26769 | J44: =SUMPRODUCT(N(INDEX(data,,1)=J$2),N(INDEX(data,,2)=$A44),INDEX(data,,6)) -> 33446 | K44: 30758 | L44: 0.03075970986 | M44: 0.0257388786 | N44: 0.03214332737 | O44: =SUMPRODUCT(N(INDEX(data,,1)=O$2),N(INDEX(data,,2)="(All)"),INDEX(data,,MATCH($A44,INDEX(data,3,),0))) -> 24948 | P44: =SUMPRODUCT(N(INDEX(data,,1)=P$2),N(INDEX(data,,2)="(All)"),INDEX(data,,MATCH($A44,INDEX(data,3,),0))) -> 31065 | Q44: =SUMPRODUCT(N(INDEX(data,,1)=Q$2),N(INDEX(data,,2)="(All)"),INDEX(data,,MATCH($A44,INDEX(data,3,),0))) -> 30498 | R44: 28837 | S44: 1921
A45: South Carolina | B45: =SUMPRODUCT(N(INDEX(data,,1)=B$2),N(INDEX(data,,2)=$A45),INDEX(data,,3)) -> 4577399 | C45: =SUMPRODUCT(N(INDEX(data,,1)=C$2),N(INDEX(data,,2)=$A45),INDEX(data,,3)) -> 4624180 | D45: =SUMPRODUCT(N(INDEX(data,,1)=D$2),N(INDEX(data,,2)=$A45),INDEX(data,,3)) -> 4668886 | E45: 0.01021999612 | F45: 0.00966787625 | G45: 0.009943936183 | H45: =SUMPRODUCT(N(INDEX(data,,1)=H$2),N(INDEX(data,,2)=$A45),INDEX(data,,6)) -> 152441 | I45: =SUMPRODUCT(N(INDEX(data,,1)=I$2),N(INDEX(data,,2)=$A45),INDEX(data,,6)) -> 157644 | J45: =SUMPRODUCT(N(INDEX(data,,1)=J$2),N(INDEX(data,,2)=$A45),INDEX(data,,6)) -> 156705 | K45: 155596.6667 | L45: 0.03330297403 | M45: 0.03409123347 | N45: 0.03356368093 | O45: =SUMPRODUCT(N(INDEX(data,,1)=O$2),N(INDEX(data,,2)="(All)"),INDEX(data,,MATCH($A45,INDEX(data,3,),0))) -> 117569 | P45: =SUMPRODUCT(N(INDEX(data,,1)=P$2),N(INDEX(data,,2)="(All)"),INDEX(data,,MATCH($A45,INDEX(data,3,),0))) -> 121426 | Q45: =SUMPRODUCT(N(INDEX(data,,1)=Q$2),N(INDEX(data,,2)="(All)"),INDEX(data,,MATCH($A45,INDEX(data,3,),0))) -> 127418 | R45: 122137.6667 | S45: 33459
A46: South Dakota | B46: =SUMPRODUCT(N(INDEX(data,,1)=B$2),N(INDEX(data,,2)=$A46),INDEX(data,,3)) -> 805616 | C46: =SUMPRODUCT(N(INDEX(data,,1)=C$2),N(INDEX(data,,2)=$A46),INDEX(data,,3)) -> 814175 | D46: =SUMPRODUCT(N(INDEX(data,,1)=D$2),N(INDEX(data,,2)=$A46),INDEX(data,,3)) -> 821669 | E46: 0.01062416834 | F46: 0.009204409371 | G46: 0.009914288855 | H46: =SUMPRODUCT(N(INDEX(data,,1)=H$2),N(INDEX(data,,2)=$A46),INDEX(data,,6)) -> 25777 | I46: =SUMPRODUCT(N(INDEX(data,,1)=I$2),N(INDEX(data,,2)=$A46),INDEX(data,,6)) -> 27506 | J46: =SUMPRODUCT(N(INDEX(data,,1)=J$2),N(INDEX(data,,2)=$A46),INDEX(data,,6)) -> 26051 | K46: 26444.66667 | L46: 0.03199663363 | M46: 0.03378389167 | N46: 0.03170498096 | O46: =SUMPRODUCT(N(INDEX(data,,1)=O$2),N(INDEX(data,,2)="(All)"),INDEX(data,,MATCH($A46,INDEX(data,3,),0))) -> 27915 | P46: =SUMPRODUCT(N(INDEX(data,,1)=P$2),N(INDEX(data,,2)="(All)"),INDEX(data,,MATCH($A46,INDEX(data,3,),0))) -> 29383 | Q46: =SUMPRODUCT(N(INDEX(data,,1)=Q$2),N(INDEX(data,,2)="(All)"),INDEX(data,,MATCH($A46,INDEX(data,3,),0))) -> 22534 | R46: 26610.66667 | S46: -166
A47: Tennessee | B47: =SUMPRODUCT(N(INDEX(data,,1)=B$2),N(INDEX(data,,2)=$A47),INDEX(data,,3)) -> 6282706 | C47: =SUMPRODUCT(N(INDEX(data,,1)=C$2),N(INDEX(data,,2)=$A47),INDEX(data,,3)) -> 6333466 | D47: =SUMPRODUCT(N(INDEX(data,,1)=D$2),N(INDEX(data,,2)=$A47),INDEX(data,,3)) -> 6378278 | E47: 0.008079321235 | F47: 0.007075430736 | G47: 0.007577375985 | H47: =SUMPRODUCT(N(INDEX(data,,1)=H$2),N(INDEX(data,,2)=$A47),INDEX(data,,6)) -> 159778 | I47: =SUMPRODUCT(N(INDEX(data,,1)=I$2),N(INDEX(data,,2)=$A47),INDEX(data,,6)) -> 170969 | J47: =SUMPRODUCT(N(INDEX(data,,1)=J$2),N(INDEX(data,,2)=$A47),INDEX(data,,6)) -> 177098 | K47: 169281.6667 | L47: 0.02543139851 | M47: 0.0269945398 | N47: 0.02776580137 | O47: =SUMPRODUCT(N(INDEX(data,,1)=O$2),N(INDEX(data,,2)="(All)"),INDEX(data,,MATCH($A47,INDEX(data,3,),0))) -> 143135 | P47: =SUMPRODUCT(N(INDEX(data,,1)=P$2),N(INDEX(data,,2)="(All)"),INDEX(data,,MATCH($A47,INDEX(data,3,),0))) -> 154243 | Q47: =SUMPRODUCT(N(INDEX(data,,1)=Q$2),N(INDEX(data,,2)="(All)"),INDEX(data,,MATCH($A47,INDEX(data,3,),0))) -> 163843 | R47: 153740.3333 | S47: 15541.33333
A48: Texas | B48: =SUMPRODUCT(N(INDEX(data,,1)=B$2),N(INDEX(data,,2)=$A48),INDEX(data,,3)) -> 24899075 | C48: =SUMPRODUCT(N(INDEX(data,,1)=C$2),N(INDEX(data,,2)=$A48),INDEX(data,,3)) -> 25327104 | D48: =SUMPRODUCT(N(INDEX(data,,1)=D$2),N(INDEX(data,,2)=$A48),INDEX(data,,3)) -> 25711791 | E48: 0.01719055828 | F48: 0.01518874799 | G48: 0.01618965314 | H48: =SUMPRODUCT(N(INDEX(data,,1)=H$2),N(INDEX(data,,2)=$A48),INDEX(data,,6)) -> 486558 | I48: =SUMPRODUCT(N(INDEX(data,,1)=I$2),N(INDEX(data,,2)=$A48),INDEX(data,,6)) -> 514726 | J48: =SUMPRODUCT(N(INDEX(data,,1)=J$2),N(INDEX(data,,2)=$A48),INDEX(data,,6)) -> 507752 | K48: 503012 | L48: 0.01954120786 | M48: 0.02032312893 | N48: 0.01974782698 | O48: =SUMPRODUCT(N(INDEX(data,,1)=O$2),N(INDEX(data,,2)="(All)"),INDEX(data,,MATCH($A48,INDEX(data,3,),0))) -> 411641 | P48: =SUMPRODUCT(N(INDEX(data,,1)=P$2),N(INDEX(data,,2)="(All)"),INDEX(data,,MATCH($A48,INDEX(data,3,),0))) -> 404839 | Q48: =SUMPRODUCT(N(INDEX(data,,1)=Q$2),N(INDEX(data,,2)="(All)"),INDEX(data,,MATCH($A48,INDEX(data,3,),0))) -> 402187 | R48: 406222.3333 | S48: 96789.66667
A49: Utah | B49: =SUMPRODUCT(N(INDEX(data,,1)=B$2),N(INDEX(data,,2)=$A49),INDEX(data,,3)) -> 2724064 | C49: =SUMPRODUCT(N(INDEX(data,,1)=C$2),N(INDEX(data,,2)=$A49),INDEX(data,,3)) -> 2769627 | D49: =SUMPRODUCT(N(INDEX(data,,1)=D$2),N(INDEX(data,,2)=$A49),INDEX(data,,3)) -> 2805440 | E49: 0.01672611216 | F49: 0.01293062207 | G49: 0.01482836711 | H49: =SUMPRODUCT(N(INDEX(data,,1)=H$2),N(INDEX(data,,2)=$A49),INDEX(data,,6)) -> 77780 | I49: =SUMPRODUCT(N(INDEX(data,,1)=I$2),N(INDEX(data,,2)=$A49),INDEX(data,,6)) -> 85217 | J49: =SUMPRODUCT(N(INDEX(data,,1)=J$2),N(INDEX(data,,2)=$A49),INDEX(data,,6)) -> 87870 | K49: 83622.33333 | L49: 0.0285529268 | M49: 0.03076840311 | N49: 0.03132129007 | O49: =SUMPRODUCT(N(INDEX(data,,1)=O$2),N(INDEX(data,,2)="(All)"),INDEX(data,,MATCH($A49,INDEX(data,3,),0))) -> 75541 | P49: =SUMPRODUCT(N(INDEX(data,,1)=P$2),N(INDEX(data,,2)="(All)"),INDEX(data,,MATCH($A49,INDEX(data,3,),0))) -> 73211 | Q49: =SUMPRODUCT(N(INDEX(data,,1)=Q$2),N(INDEX(data,,2)="(All)"),INDEX(data,,MATCH($A49,INDEX(data,3,),0))) -> 82165 | R49: 76972.33333 | S49: 6650
A50: Vermont | B50: =SUMPRODUCT(N(INDEX(data,,1)=B$2),N(INDEX(data,,2)=$A50),INDEX(data,,3)) -> 619363 | C50: =SUMPRODUCT(N(INDEX(data,,1)=C$2),N(INDEX(data,,2)=$A50),INDEX(data,,3)) -> 621354 | D50: =SUMPRODUCT(N(INDEX(data,,1)=D$2),N(INDEX(data,,2)=$A50),INDEX(data,,3)) -> 620224 | E50: 0.003214593058 | F50: -0.001818609038 | G50: 0.00069799201 | H50: =SUMPRODUCT(N(INDEX(data,,1)=H$2),N(INDEX(data,,2)=$A50),INDEX(data,,6)) -> 22529 | I50: =SUMPRODUCT(N(INDEX(data,,1)=I$2),N(INDEX(data,,2)=$A50),INDEX(data,,6)) -> 20463 | J50: =SUMPRODUCT(N(INDEX(data,,1)=J$2),N(INDEX(data,,2)=$A50),INDEX(data,,6)) -> 24431 | K50: 22474.33333 | L50: 0.03637446861 | M50: 0.03293291747 | N50: 0.03939060726 | O50: =SUMPRODUCT(N(INDEX(data,,1)=O$2),N(INDEX(data,,2)="(All)"),INDEX(data,,MATCH($A50,INDEX(data,3,),0))) -> 18380 | P50: =SUMPRODUCT(N(INDEX(data,,1)=P$2),N(INDEX(data,,2)="(All)"),INDEX(data,,MATCH($A50,INDEX(data,3,),0))) -> 18172 | Q50: =SUMPRODUCT(N(INDEX(data,,1)=Q$2),N(INDEX(data,,2)="(All)"),INDEX(data,,MATCH($A50,INDEX(data,3,),0))) -> 20056 | R50: 18869.33333 | S50: 3605
A51: Virginia | B51: =SUMPRODUCT(N(INDEX(data,,1)=B$2),N(INDEX(data,,2)=$A51),INDEX(data,,3)) -> 7930773 | C51: =SUMPRODUCT(N(INDEX(data,,1)=C$2),N(INDEX(data,,2)=$A51),INDEX(data,,3)) -> 7996552 | D51: =SUMPRODUCT(N(INDEX(data,,1)=D$2),N(INDEX(data,,2)=$A51),INDEX(data,,3)) -> 8085389 | E51: 0.008294147367 | F51: 0.01110941316 | G51: 0.009701780262 | H51: =SUMPRODUCT(N(INDEX(data,,1)=H$2),N(INDEX(data,,2)=$A51),INDEX(data,,6)) -> 259507 | I51: =SUMPRODUCT(N(INDEX(data,,1)=I$2),N(INDEX(data,,2)=$A51),INDEX(data,,6)) -> 257130 | J51: =SUMPRODUCT(N(INDEX(data,,1)=J$2),N(INDEX(data,,2)=$A51),INDEX(data,,6)) -> 250653 | K51: 255763.3333 | L51: 0.03272152664 | M51: 0.03215510885 | N51: 0.03100073478 | O51: =SUMPRODUCT(N(INDEX(data,,1)=O$2),N(INDEX(data,,2)="(All)"),INDEX(data,,MATCH($A51,INDEX(data,3,),0))) -> 232002 | P51: =SUMPRODUCT(N(INDEX(data,,1)=P$2),N(INDEX(data,,2)="(All)"),INDEX(data,,MATCH($A51,INDEX(data,3,),0))) -> 229227 | Q51: =SUMPRODUCT(N(INDEX(data,,1)=Q$2),N(INDEX(data,,2)="(All)"),INDEX(data,,MATCH($A51,INDEX(data,3,),0))) -> 238540 | R51: 233256.3333 | S51: 22507
A52: Washington | B52: =SUMPRODUCT(N(INDEX(data,,1)=B$2),N(INDEX(data,,2)=$A52),INDEX(data,,3)) -> 6661321 | C52: =SUMPRODUCT(N(INDEX(data,,1)=C$2),N(INDEX(data,,2)=$A52),INDEX(data,,3)) -> 6748474 | D52: =SUMPRODUCT(N(INDEX(data,,1)=D$2),N(INDEX(data,,2)=$A52),INDEX(data,,3)) -> 6815763 | E52: 0.01308344096 | F52: 0.009970994924 | G52: 0.01152721794 | H52: =SUMPRODUCT(N(INDEX(data,,1)=H$2),N(INDEX(data,,2)=$A52),INDEX(data,,6)) -> 191784 | I52: =SUMPRODUCT(N(INDEX(data,,1)=I$2),N(INDEX(data,,2)=$A52),INDEX(data,,6)) -> 208507 | J52: =SUMPRODUCT(N(INDEX(data,,1)=J$2),N(INDEX(data,,2)=$A52),INDEX(data,,6)) -> 215494 | K52: 205261.6667 | L52: 0.02879068581 | M52: 0.03089691092 | N52: 0.03161700311 | O52: =SUMPRODUCT(N(INDEX(data,,1)=O$2),N(INDEX(data,,2)="(All)"),INDEX(data,,MATCH($A52,INDEX(data,3,),0))) -> 166162 | P52: =SUMPRODUCT(N(INDEX(data,,1)=P$2),N(INDEX(data,,2)="(All)"),INDEX(data,,MATCH($A52,INDEX(data,3,),0))) -> 190644 | Q52: =SUMPRODUCT(N(INDEX(data,,1)=Q$2),N(INDEX(data,,2)="(All)"),INDEX(data,,MATCH($A52,INDEX(data,3,),0))) -> 180462 | R52: 179089.3333 | S52: 26172.33333
A53: West Virginia | B53: =SUMPRODUCT(N(INDEX(data,,1)=B$2),N(INDEX(data,,2)=$A53),INDEX(data,,3)) -> 1833535 | C53: =SUMPRODUCT(N(INDEX(data,,1)=C$2),N(INDEX(data,,2)=$A53),INDEX(data,,3)) -> 1836614 | D53: =SUMPRODUCT(N(INDEX(data,,1)=D$2),N(INDEX(data,,2)=$A53),INDEX(data,,3)) -> 1837518 | E53: 0.001679269826 | F53: 0.0004922101215 | G53: 0.001085739974 | H53: =SUMPRODUCT(N(INDEX(data,,1)=H$2),N(INDEX(data,,2)=$A53),INDEX(data,,6)) -> 39609 | I53: =SUMPRODUCT(N(INDEX(data,,1)=I$2),N(INDEX(data,,2)=$A53),INDEX(data,,6)) -> 50068 | J53: =SUMPRODUCT(N(INDEX(data,,1)=J$2),N(INDEX(data,,2)=$A53),INDEX(data,,6)) -> 47125 | K53: 45600.66667 | L53: 0.02160253281 | M53: 0.0272610358 | N53: 0.02564600728 | O53: =SUMPRODUCT(N(INDEX(data,,1)=O$2),N(INDEX(data,,2)="(All)"),INDEX(data,,MATCH($A53,INDEX(data,3,),0))) -> 49349 | P53: =SUMPRODUCT(N(INDEX(data,,1)=P$2),N(INDEX(data,,2)="(All)"),INDEX(data,,MATCH($A53,INDEX(data,3,),0))) -> 45956 | Q53: =SUMPRODUCT(N(INDEX(data,,1)=Q$2),N(INDEX(data,,2)="(All)"),INDEX(data,,MATCH($A53,INDEX(data,3,),0))) -> 47425 | R53: 47576.66667 | S53: -1976
A54: Wisconsin | B54: =SUMPRODUCT(N(INDEX(data,,1)=B$2),N(INDEX(data,,2)=$A54),INDEX(data,,3)) -> 5623196 | C54: =SUMPRODUCT(N(INDEX(data,,1)=C$2),N(INDEX(data,,2)=$A54),INDEX(data,,3)) -> 5647213 | D54: =SUMPRODUCT(N(INDEX(data,,1)=D$2),N(INDEX(data,,2)=$A54),INDEX(data,,3)) -> 5660677 | E54: 0.004271058665 | F54: 0.002384184907 | G54: 0.003327621786 | H54: =SUMPRODUCT(N(INDEX(data,,1)=H$2),N(INDEX(data,,2)=$A54),INDEX(data,,6)) -> 93065 | I54: =SUMPRODUCT(N(INDEX(data,,1)=I$2),N(INDEX(data,,2)=$A54),INDEX(data,,6)) -> 109439 | J54: =SUMPRODUCT(N(INDEX(data,,1)=J$2),N(INDEX(data,,2)=$A54),INDEX(data,,6)) -> 99192 | K54: 100565.3333 | L54: 0.01655019672 | M54: 0.01937929382 | N54: 0.01752299239 | O54: =SUMPRODUCT(N(INDEX(data,,1)=O$2),N(INDEX(data,,2)="(All)"),INDEX(data,,MATCH($A54,INDEX(data,3,),0))) -> 111240 | P54: =SUMPRODUCT(N(INDEX(data,,1)=P$2),N(INDEX(data,,2)="(All)"),INDEX(data,,MATCH($A54,INDEX(data,3,),0))) -> 105370 | Q54: =SUMPRODUCT(N(INDEX(data,,1)=Q$2),N(INDEX(data,,2)="(All)"),INDEX(data,,MATCH($A54,INDEX(data,3,),0))) -> 97724 | R54: 104778 | S54: -4212.666667
A55: Wyoming | B55: =SUMPRODUCT(N(INDEX(data,,1)=B$2),N(INDEX(data,,2)=$A55),INDEX(data,,3)) -> 556954 | C55: =SUMPRODUCT(N(INDEX(data,,1)=C$2),N(INDEX(data,,2)=$A55),INDEX(data,,3)) -> 561389 | D55: =SUMPRODUCT(N(INDEX(data,,1)=D$2),N(INDEX(data,,2)=$A55),INDEX(data,,3)) -> 569734 | E55: 0.007962955648 | F55: 0.01486491542 | G55: 0.01141393553 | H55: =SUMPRODUCT(N(INDEX(data,,1)=H$2),N(INDEX(data,,2)=$A55),INDEX(data,,6)) -> 28046 | I55: =SUMPRODUCT(N(INDEX(data,,1)=I$2),N(INDEX(data,,2)=$A55),INDEX(data,,6)) -> 30651 | J55: =SUMPRODUCT(N(INDEX(data,,1)=J$2),N(INDEX(data,,2)=$A55),INDEX(data,,6)) -> 31149 | K55: 29948.66667 | L55: 0.05035604377 | M55: 0.05459850478 | N55: 0.05467288243 | O55: =SUMPRODUCT(N(INDEX(data,,1)=O$2),N(INDEX(data,,2)="(All)"),INDEX(data,,MATCH($A55,INDEX(data,3,),0))) -> 28186 | P55: =SUMPRODUCT(N(INDEX(data,,1)=P$2),N(INDEX(data,,2)="(All)"),INDEX(data,,MATCH($A55,INDEX(data,3,),0))) -> 31991 | Q55: =SUMPRODUCT(N(INDEX(data,,1)=Q$2),N(INDEX(data,,2)="(All)"),INDEX(data,,MATCH($A55,INDEX(data,3,),0))) -> 32228 | R55: 30801.66667 | S55: -853

Sheet DATA
A1: Year | B1: Current residence in -- | C1: Population 1 year and over | D1: Same residence 1 year ago | E1: Different residence, same state 1 year ago | F1: 1 | G1: 2 | H1: 3 | I1: 4 | J1: 5 | K1: 6 | L1: 7 | M1: 8 | N1: 9 | O1: 10 | P1: 11 | Q1: 12 | R1: 13 | S1: 14 | T1: 15 | U1: 16 | V1: 17 | W1: 18 | X1: 19 | Y1: 20 | Z1: 21 | AA1: 22 | AB1: 23 | AC1: 24 | AD1: 25 | AE1: 26 | AF1: 27 | AG1: 28 | AH1: 29 | AI1: 30 | AJ1: 31 | AK1: 32 | AL1: 33 | AM1: 34 | AN1: 35 | AO1: 36 | AP1: 37 | AQ1: 38 | AR1: 39 | AS1: 40 | AT1: 41 | AU1: 42 | AV1: 43 | AW1: 44 | AX1: 45 | AY1: 46 | AZ1: 47 | BA1: 48 | BB1: 49 | BC1: 50 | BD1: 51 | BE1: 52 | BF1: 53
F2: State of Residence Last year (Estimate)
C3: Estimate | D3: Estimate | E3: Estimate | F3: (All) | G3: Alabama | H3: Alaska | I3: Arizona | J3: Arkansas | K3: California | L3: Colorado | M3: Connecticut | N3: Delaware | O3: District of Columbia | P3: Florida | Q3: Georgia | R3: Hawaii | S3: Idaho | T3: Illinois | U3: Indiana | V3: Iowa | W3: Kansas | X3: Kentucky | Y3: Louisiana | Z3: Maine | AA3: Maryland | AB3: Massachusetts | AC3: Michigan | AD3: Minnesota | AE3: Mississippi | AF3: Missouri | AG3: Montana | AH3: Nebraska | AI3: Nevada | AJ3: New Hampshire | AK3: New Jersey | AL3: New Mexico | AM3: New York | AN3: North Carolina | AO3: North Dakota | AP3: Ohio | AQ3: Oklahoma | AR3: Oregon | AS3: Pennsylvania | AT3: Rhode Island | AU3: South Carolina | AV3: South Dakota | AW3: Tennessee | AX3: Texas | AY3: Utah | AZ3: Vermont | BA3: Virginia | BB3: Washington | BC3: West Virginia | BD3: Wisconsin | BE3: Wyoming | BF3: Puerto Rico
A4: 2012 | B4: (All) | C4: 310212755 | D4: 263612596 | E4: 37696597 | F4: 7070345 | G4: 109210 | H4: 84068 | I4: 206842 | J4: 64967 | K4: 566986 | L4: 161530 | M4: 87023 | N4: 25149 | O4: 59513 | P4: 428325 | Q4: 252262 | R4: 61509 | S4: 55191 | T4: 277953 | U4: 144597 | V4: 73325 | W4: 93134 | X4: 103004 | Y4: 95956 | Z4: 38574 | AA4: 157664 | AB4: 158156 | AC4: 175733 | AD4: 115946 | AE4: 66947 | AF4: 142754 | AG4: 33832 | AH4: 48816 | AI4: 98882 | AJ4: 38696 | AK4: 219202 | AL4: 63921 | AM4: 405864 | AN4: 238663 | AO4: 23959 | AP4: 199202 | AQ4: 102572 | AR4: 108182 | AS4: 237156 | AT4: 30498 | AU4: 127418 | AV4: 22534 | AW4: 163843 | AX4: 402187 | AY4: 82165 | AZ4: 20056 | BA4: 238540 | BB4: 180462 | BC4: 47425 | BD4: 97724 | BE4: 32228 | BF4: 74500
A5: 2012 | B5: Alabama | C5: 4764428 | D5: 4054260 | E5: 590326 | F5: 104600 | G5: N/A | H5: 1004 | I5: 962 | J5: 660 | K5: 3077 | L5: 1386 | M5: 284 | N5: 42 | O5: 162 | P5: 11244 | Q5: 19920 | R5: 627 | S5: 493 | T5: 2722 | U5: 1347 | V5: 345 | W5: 865 | X5: 2495 | Y5: 3104 | Z5: 67 | AA5: 1513 | AB5: 334 | AC5: 2298 | AD5: 752 | AE5: 4952 | AF5: 1555 | AG5: 101 | AH5: 151 | AI5: 1009 | AJ5: 161 | AK5: 1702 | AL5: 459 | AM5: 2709 | AN5: 5133 | AO5: 228 | AP5: 1411 | AQ5: 194 | AR5: 200 | AS5: 1837 | AT5: 0 | AU5: 2811 | AV5: 518 | AW5: 10539 | AX5: 7468 | AY5: 579 | AZ5: 0 | BA5: 3170 | BB5: 1034 | BC5: 128 | BD5: 760 | BE5: 88 | BF5: 619
A6: 2012 | B6: Alaska | C6: 721186 | D6: 592551 | E6: 90613 | F6: 33415 | G6: 1097 | H6: N/A | I6: 1520 | J6: 196 | K6: 3494 | L6: 556 | M6: 0 | N6: 0 | O6: 356 | P6: 1991 | Q6: 928 | R6: 1376 | S6: 538 | T6: 58 | U6: 260 | V6: 13 | W6: 221 | X6: 161 | Y6: 120 | Z6: 66 | AA6: 508 | AB6: 297 | AC6: 563 | AD6: 192 | AE6: 56 | AF6: 819 | AG6: 371 | AH6: 1195 | AI6: 803 | AJ6: 118 | AK6: 116 | AL6: 263 | AM6: 736 | AN6: 920 | AO6: 264 | AP6: 1316 | AQ6: 335 | AR6: 3174 | AS6: 255 | AT6: 0 | AU6: 384 | AV6: 99 | AW6: 451 | AX6: 1488 | AY6: 330 | AZ6: 79 | BA6: 1265 | BB6: 3725 | BC6: 0 | BD6: 206 | BE6: 136 | BF6: 25
A7: 2012 | B7: Arizona | C7: 6468907 | D7: 5242674 | E7: 953789 | F7: 232457 | G7: 1331 | H7: 3717 | I7: N/A | J7: 1214 | K7: 44889 | L7: 13790 | M7: 417 | N7: 246 | O7: 36 | P7: 5553 | Q7: 2263 | R7: 2491 | S7: 2934 | T7: 10744 | U7: 2930 | V7: 2702 | W7: 2498 | X7: 1328 | Y7: 724 | Z7: 616 | AA7: 3007 | AB7: 1961 | AC7: 9598 | AD7: 8570 | AE7: 293 | AF7: 2595 | AG7: 1118 | AH7: 2293 | AI7: 6712 | AJ7: 510 | AK7: 2564 | AL7: 6946 | AM7: 7402 | AN7: 2721 | AO7: 877 | AP7: 7906 | AQ7: 1626 | AR7: 8587 | AS7: 4280 | AT7: 614 | AU7: 1070 | AV7: 1472 | AW7: 5075 | AX7: 14788 | AY7: 5916 | AZ7: 207 | BA7: 2763 | BB7: 13247 | BC7: 765 | BD7: 3765 | BE7: 2786 | BF7: 1791
A8: 2012 | B8: Arkansas | C8: 2912680 | D8: 2453347 | E8: 373046 | F8: 76948 | G8: 374 | H8: 855 | I8: 1677 | J8: N/A | K8: 3525 | L8: 603 | M8: 185 | N8: 0 | O8: 205 | P8: 2682 | Q8: 1525 | R8: 0 | S8: 0 | T8: 3576 | U8: 1172 | V8: 409 | W8: 1033 | X8: 1310 | Y8: 3953 | Z8: 17 | AA8: 169 | AB8: 254 | AC8: 1283 | AD8: 295 | AE8: 3689 | AF8: 9105 | AG8: 258 | AH8: 166 | AI8: 121 | AJ8: 0 | AK8: 157 | AL8: 547 | AM8: 2262 | AN8: 3057 | AO8: 0 | AP8: 1135 | AQ8: 9938 | AR8: 193 | AS8: 516 | AT8: 59 | AU8: 52 | AV8: 673 | AW8: 4195 | AX8: 11767 | AY8: 269 | AZ8: 0 | BA8: 1159 | BB8: 251 | BC8: 84 | BD8: 695 | BE8: 1498 | BF8: 0
A9: 2012 | B9: California | C9: 37572738 | D9: 31777868 | E9: 5046618 | F9: 493641 | G9: 2509 | H9: 6995 | I9: 38916 | J9: 3472 | K9: N/A | L9: 15150 | M9: 6764 | N9: 474 | O9: 3199 | P9: 21004 | Q9: 10790 | R9: 11906 | S9: 5331 | T9: 21251 | U9: 5891 | V9: 2284 | W9: 2790 | X9: 3763 | Y9: 5180 | Z9: 1256 | AA9: 7902 | AB9: 14356 | AC9: 8921 | AD9: 8539 | AE9: 2556 | AF9: 6729 | AG9: 3060 | AH9: 3302 | AI9: 27968 | AJ9: 1327 | AK9: 12057 | AL9: 5921 | AM9: 31261 | AN9: 11195 | AO9: 1827 | AP9: 10653 | AQ9: 6671 | AR9: 22724 | AS9: 10466 | AT9: 1648 | AU9: 4110 | AV9: 826 | AW9: 5802 | AX9: 43005 | AY9: 12172 | AZ9: 544 | BA9: 15625 | BB9: 34569 | BC9: 1413 | BD9: 5681 | BE9: 1886 | BF9: 2323
A10: 2012 | B10: Colorado | C10: 5123944 | D10: 4131357 | E10: 751921 | F10: 205060 | G10: 3108 | H10: 3457 | I10: 10589 | J10: 1043 | K10: 22152 | L10: N/A | M10: 1317 | N10: 70 | O10: 488 | P10: 8615 | Q10: 5834 | R10: 2536 | S10: 2660 | T10: 6374 | U10: 4336 | V10: 2776 | W10: 5283 | X10: 2500 | Y10: 5048 | Z10: 20 | AA10: 2844 | AB10: 5939 | AC10: 3343 | AD10: 2992 | AE10: 835 | AF10: 3771 | AG10: 2021 | AH10: 4472 | AI10: 3789 | AJ10: 679 | AK10: 2464 | AL10: 6520 | AM10: 7250 | AN10: 4378 | AO10: 1918 | AP10: 4533 | AQ10: 4582 | AR10: 2419 | AS10: 3950 | AT10: 137 | AU10: 2383 | AV10: 756 | AW10: 2535 | AX10: 17355 | AY10: 6398 | AZ10: 503 | BA10: 3796 | BB10: 4853 | BC10: 837 | BD10: 3000 | BE10: 5602 | BF10: 1144
A11: 2012 | B11: Connecticut | C11: 3555319 | D11: 3114940 | E11: 334918 | F11: 80311 | G11: 46 | H11: 439 | I11: 3167 | J11: 200 | K11: 3161 | L11: 367 | M11: N/A | N11: 22 | O11: 288 | P11: 6578 | Q11: 1702 | R11: 408 | S11: 97 | T11: 912 | U11: 53 | V11: 0 | W11: 0 | X11: 124 | Y11: 909 | Z11: 1224 | AA11: 1752 | AB11: 8743 | AC11: 753 | AD11: 605 | AE11: 276 | AF11: 358 | AG11: 50 | AH11: 45 | AI11: 172 | AJ11: 1009 | AK11: 5665 | AL11: 444 | AM11: 23310 | AN11: 3379 | AO11: 0 | AP11: 287 | AQ11: 415 | AR11: 35 | AS11: 2214 | AT11: 1558 | AU11: 940 | AV11: 0 | AW11: 260 | AX11: 3279 | AY11: 45 | AZ11: 709 | BA11: 1729 | BB11: 1593 | BC11: 174 | BD11: 711 | BE11: 104 | BF11: 3228
A12: 2012 | B12: Delaware | C12: 906576 | D12: 782216 | E12: 86003 | F12: 34757 | G12: 119 | H12: 692 | I12: 188 | J12: 0 | K12: 2221 | L12: 0 | M12: 1489 | N12: N/A | O12: 11 | P12: 715 | Q12: 179 | R12: 0 | S12: 32 | T12: 567 | U12: 62 | V12: 30 | W12: 113 | X12: 0 | Y12: 178 | Z12: 0 | AA12: 5649 | AB12: 157 | AC12: 227 | AD12: 351 | AE12: 58 | AF12: 80 | AG12: 0 | AH12: 91 | AI12: 572 | AJ12: 99 | AK12: 5846 | AL12: 85 | AM12: 3566 | AN12: 1349 | AO12: 0 | AP12: 191 | AQ12: 0 | AR12: 0 | AS12: 6828 | AT12: 135 | AU12: 298 | AV12: 0 | AW12: 344 | AX12: 133 | AY12: 166 | AZ12: 0 | BA12: 1746 | BB12: 29 | BC12: 161 | BD12: 0 | BE12: 0 | BF12: 56
A13: 2012 | B13: District of Columbia | C13: 624847 | D13: 500267 | E13: 61992 | F13: 53830 | G13: 79 | H13: 1247 | I13: 902 | J13: 35 | K13: 4999 | L13: 677 | M13: 618 | N13: 78 | O13: N/A | P13: 1705 | Q13: 1079 | R13: 38 | S13: 46 | T13: 795 | U13: 469 | V13: 133 | W13: 164 | X13: 112 | Y13: 283 | Z13: 194 | AA13: 14120 | AB13: 1524 | AC13: 944 | AD13: 393 | AE13: 44 | AF13: 337 | AG13: 0 | AH13: 172 | AI13: 42 | AJ13: 197 | AK13: 1451 | AL13: 116 | AM13: 3085 | AN13: 985 | AO13: 0 | AP13: 651 | AQ13: 0 | AR13: 157 | AS13: 1494 | AT13: 635 | AU13: 150 | AV13: 0 | AW13: 577 | AX13: 1473 | AY13: 116 | AZ13: 267 | BA13: 9537 | BB13: 481 | BC13: 293 | BD13: 721 | BE13: 215 | BF13: 0
A14: 2012 | B14: Florida | C14: 19114620 | D14: 16032617 | E14: 2380288 | F14: 537148 | G14: 18599 | H14: 10704 | I14: 6473 | J14: 3321 | K14: 20386 | L14: 8766 | M14: 8975 | N14: 1099 | O14: 780 | P14: N/A | Q14: 42754 | R14: 3177 | S14: 1268 | T14: 22565 | U14: 13803 | V14: 3864 | W14: 5661 | X14: 6912 | Y14: 5550 | Z14: 7348 | AA14: 10442 | AB14: 15159 | AC14: 23400 | AD14: 5460 | AE14: 5490 | AF14: 10666 | AG14: 1758 | AH14: 945 | AI14: 1241 | AJ14: 2362 | AK14: 27606 | AL14: 2853 | AM14: 53009 | AN14: 23133 | AO14: 239 | AP14: 22927 | AQ14: 3142 | AR14: 2919 | AS14: 25659 | AT14: 3050 | AU14: 11366 | AV14: 1070 | AW14: 16275 | AX14: 28564 | AY14: 2499 | AZ14: 2747 | BA14: 25697 | BB14: 4943 | BC14: 3533 | BD14: 6216 | BE14: 773 | BF14: 21638
A15: 2012 | B15: Georgia | C15: 9796547 | D15: 8231384 | E15: 1236302 | F15: 277466 | G15: 13864 | H15: 2654 | I15: 6657 | J15: 1041 | K15: 14174 | L15: 4710 | M15: 1829 | N15: 226 | O15: 1352 | P15: 42870 | Q15: N/A | R15: 1409 | S15: 936 | T15: 7143 | U15: 5972 | V15: 1687 | W15: 1497 | X15: 6172 | Y15: 4100 | Z15: 222 | AA15: 3619 | AB15: 4153 | AC15: 9949 | AD15: 2237 | AE15: 3280 | AF15: 3377 | AG15: 251 | AH15: 1283 | AI15: 3783 | AJ15: 15 | AK15: 4920 | AL15: 915 | AM15: 13957 | AN15: 16009 | AO15: 207 | AP15: 7501 | AQ15: 3299 | AR15: 453 | AS15: 9076 | AT15: 440 | AU15: 18611 | AV15: 257 | AW15: 17606 | AX15: 16198 | AY15: 20 | AZ15: 84 | BA15: 10702 | BB15: 1965 | BC15: 1237 | BD15: 3441 | BE15: 106 | BF15: 1730
A16: 2012 | B16: Hawaii | C16: 1374852 | D16: 1164145 | E16: 134827 | F16: 55145 | G16: 608 | H16: 1417 | I16: 1865 | J16: 24 | K16: 9756 | L16: 1216 | M16: 191 | N16: 278 | O16: 230 | P16: 2780 | Q16: 1448 | R16: N/A | S16: 404 | T16: 318 | U16: 292 | V16: 84 | W16: 1135 | X16: 485 | Y16: 207 | Z16: 91 | AA16: 2491 | AB16: 1266 | AC16: 321 | AD16: 192 | AE16: 44 | AF16: 944 | AG16: 131 | AH16: 75 | AI16: 760 | AJ16: 85 | AK16: 410 | AL16: 284 | AM16: 2382 | AN16: 2241 | AO16: 0 | AP16: 884 | AQ16: 1095 | AR16: 1763 | AS16: 1087 | AT16: 106 | AU16: 644 | AV16: 459 | AW16: 1314 | AX16: 3300 | AY16: 2183 | AZ16: 0 | BA16: 1393 | BB16: 5920 | BC16: 197 | BD16: 295 | BE16: 50 | BF16: 336
A17: 2012 | B17: Idaho | C17: 1573036 | D17: 1296975 | E17: 210151 | F17: 59283 | G17: 575 | H17: 1198 | I17: 2424 | J17: 291 | K17: 10280 | L17: 1186 | M17: 44 | N17: 120 | O17: 116 | P17: 2014 | Q17: 583 | R17: 206 | S17: N/A | T17: 532 | U17: 283 | V17: 90 | W17: 63 | X17: 83 | Y17: 54 | Z17: 0 | AA17: 107 | AB17: 338 | AC17: 683 | AD17: 637 | AE17: 87 | AF17: 214 | AG17: 3800 | AH17: 35 | AI17: 2535 | AJ17: 0 | AK17: 214 | AL17: 675 | AM17: 938 | AN17: 817 | AO17: 0 | AP17: 1018 | AQ17: 93 | AR17: 4963 | AS17: 169 | AT17: 0 | AU17: 205 | AV17: 118 | AW17: 1957 | AX17: 1352 | AY17: 6617 | AZ17: 0 | BA17: 269 | BB17: 10398 | BC17: 0 | BD17: 225 | BE17: 677 | BF17: 136
A18: 2012 | B18: Illinois | C18: 12725119 | D18: 11009321 | E18: 1441191 | F18: 208755 | G18: 883 | H18: 2250 | I18: 7139 | J18: 1587 | K18: 14940 | L18: 3036 | M18: 955 | N18: 234 | O18: 1066 | P18: 12687 | Q18: 8745 | R18: 869 | S18: 1384 | T18: N/A | U18: 16907 | V18: 8529 | W18: 2009 | X18: 2923 | Y18: 1229 | Z18: 526 | AA18: 1865 | AB18: 3296 | AC18: 12583 | AD18: 6537 | AE18: 2744 | AF18: 13264 | AG18: 228 | AH18: 1302 | AI18: 1478 | AJ18: 283 | AK18: 2366 | AL18: 1359 | AM18: 7561 | AN18: 3761 | AO18: 196 | AP18: 6872 | AQ18: 1491 | AR18: 954 | AS18: 4588 | AT18: 462 | AU18: 1583 | AV18: 394 | AW18: 4648 | AX18: 16780 | AY18: 1154 | AZ18: 156 | BA18: 4311 | BB18: 2704 | BC18: 1221 | BD18: 14414 | BE18: 302 | BF18: 2049
A19: 2012 | B19: Indiana | C19: 6457067 | D19: 5493090 | E19: 805228 | F19: 134137 | G19: 1625 | H19: 479 | I19: 2763 | J19: 564 | K19: 6033 | L19: 1225 | M19: 823 | N19: 639 | O19: 1045 | P19: 11472 | Q19: 2258 | R19: 856 | S19: 186 | T19: 28436 | U19: N/A | V19: 1678 | W19: 1624 | X19: 11177 | Y19: 736 | Z19: 0 | AA19: 1050 | AB19: 837 | AC19: 11017 | AD19: 1543 | AE19: 1948 | AF19: 4526 | AG19: 134 | AH19: 591 | AI19: 1011 | AJ19: 0 | AK19: 1537 | AL19: 219 | AM19: 2316 | AN19: 2665 | AO19: 113 | AP19: 11235 | AQ19: 1198 | AR19: 387 | AS19: 2419 | AT19: 0 | AU19: 1414 | AV19: 111 | AW19: 3547 | AX19: 4490 | AY19: 105 | AZ19: 0 | BA19: 1932 | BB19: 258 | BC19: 507 | BD19: 1727 | BE19: 1681 | BF19: 136
A20: 2012 | B20: Iowa | C20: 3035469 | D20: 2585979 | E20: 362938 | F20: 75760 | G20: 503 | H20: 951 | I20: 1590 | J20: 451 | K20: 3268 | L20: 3252 | M20: 112 | N20: 0 | O20: 151 | P20: 4335 | Q20: 596 | R20: 521 | S20: 290 | T20: 11969 | U20: 1716 | V20: N/A | W20: 918 | X20: 819 | Y20: 763 | Z20: 78 | AA20: 419 | AB20: 585 | AC20: 946 | AD20: 7505 | AE20: 751 | AF20: 4168 | AG20: 452 | AH20: 7698 | AI20: 681 | AJ20: 56 | AK20: 1018 | AL20: 114 | AM20: 1230 | AN20: 734 | AO20: 833 | AP20: 1127 | AQ20: 1465 | AR20: 348 | AS20: 451 | AT20: 0 | AU20: 943 | AV20: 1158 | AW20: 1148 | AX20: 3553 | AY20: 886 | AZ20: 0 | BA20: 268 | BB20: 919 | BC20: 22 | BD20: 3607 | BE20: 392 | BF20: 786
A21: 2012 | B21: Kansas | C21: 2848708 | D21: 2361899 | E21: 381695 | F21: 88284 | G21: 853 | H21: 333 | I21: 3094 | J21: 2158 | K21: 5411 | L21: 3746 | M21: 210 | N21: 0 | O21: 456 | P21: 3118 | Q21: 1896 | R21: 149 | S21: 456 | T21: 1702 | U21: 1679 | V21: 1527 | W21: N/A | X21: 617 | Y21: 438 | Z21: 211 | AA21: 282 | AB21: 187 | AC21: 1125 | AD21: 682 | AE21: 452 | AF21: 21022 | AG21: 300 | AH21: 4126 | AI21: 851 | AJ21: 0 | AK21: 267 | AL21: 1029 | AM21: 571 | AN21: 813 | AO21: 261 | AP21: 1310 | AQ21: 8408 | AR21: 848 | AS21: 918 | AT21: 18 | AU21: 556 | AV21: 154 | AW21: 1542 | AX21: 8468 | AY21: 97 | AZ21: 70 | BA21: 1705 | BB21: 3265 | BC21: 139 | BD21: 486 | BE21: 278 | BF21: 82
A22: 2012 | B22: Kentucky | C22: 4328626 | D22: 3676472 | E22: 521511 | F22: 112787 | G22: 4137 | H22: 304 | I22: 1103 | J22: 518 | K22: 3415 | L22: 712 | M22: 246 | N22: 706 | O22: 254 | P22: 9232 | Q22: 4173 | R22: 647 | S22: 50 | T22: 4445 | U22: 12203 | V22: 238 | W22: 602 | X22: N/A | Y22: 666 | Z22: 46 | AA22: 1120 | AB22: 419 | AC22: 7302 | AD22: 605 | AE22: 646 | AF22: 2381 | AG22: 0 | AH22: 723 | AI22: 301 | AJ22: 84 | AK22: 496 | AL22: 554 | AM22: 5239 | AN22: 3643 | AO22: 122 | AP22: 17041 | AQ22: 577 | AR22: 298 | AS22: 2226 | AT22: 0 | AU22: 1347 | AV22: 0 | AW22: 10064 | AX22: 3345 | AY22: 464 | AZ22: 45 | BA22: 3319 | BB22: 1988 | BC22: 3346 | BD22: 1395 | BE22: 0 | BF22: 170
A23: 2012 | B23: Louisiana | C23: 4545914 | D23: 3912023 | E23: 528406 | F23: 91215 | G23: 2329 | H23: 403 | I23: 2021 | J23: 3645 | K23: 5139 | L23: 1433 | M23: 164 | N23: 0 | O23: 596 | P23: 6534 | Q23: 4478 | R23: 378 | S23: 265 | T23: 1229 | U23: 1359 | V23: 544 | W23: 420 | X23: 1649 | Y23: N/A | Z23: 251 | AA23: 642 | AB23: 549 | AC23: 1080 | AD23: 330 | AE23: 6791 | AF23: 1591 | AG23: 428 | AH23: 745 | AI23: 931 | AJ23: 11 | AK23: 975 | AL23: 150 | AM23: 2786 | AN23: 2284 | AO23: 64 | AP23: 1115 | AQ23: 2159 | AR23: 195 | AS23: 1239 | AT23: 737 | AU23: 1914 | AV23: 0 | AW23: 2348 | AX23: 24488 | AY23: 277 | AZ23: 45 | BA23: 1857 | BB23: 1581 | BC23: 238 | BD23: 682 | BE23: 146 | BF23: 655
A24: 2012 | B24: Maine | C24: 1315586 | D24: 1132344 | E24: 151438 | F24: 27523 | G24: 129 | H24: 38 | I24: 230 | J24: 0 | K24: 1610 | L24: 314 | M24: 1468 | N24: 234 | O24: 32 | P24: 2926 | Q24: 511 | R24: 0 | S24: 143 | T24: 195 | U24: 0 | V24: 7 | W24: 277 | X24: 482 | Y24: 15 | Z24: N/A | AA24: 325 | AB24: 3887 | AC24: 116 | AD24: 430 | AE24: 79 | AF24: 69 | AG24: 0 | AH24: 82 | AI24: 35 | AJ24: 3655 | AK24: 405 | AL24: 272 | AM24: 2519 | AN24: 1112 | AO24: 0 | AP24: 628 | AQ24: 79 | AR24: 215 | AS24: 976 | AT24: 1024 | AU24: 173 | AV24: 0 | AW24: 985 | AX24: 496 | AY24: 200 | AZ24: 349 | BA24: 573 | BB24: 118 | BC24: 51 | BD24: 0 | BE24: 59 | BF24: 38
A25: 2012 | B25: Maryland | C25: 5816472 | D25: 5068457 | E25: 549973 | F25: 154983 | G25: 1261 | H25: 1947 | I25: 760 | J25: 136 | K25: 8614 | L25: 1071 | M25: 881 | N25: 4100 | O25: 21213 | P25: 9610 | Q25: 4610 | R25: 610 | S25: 429 | T25: 3621 | U25: 1210 | V25: 569 | W25: 1726 | X25: 715 | Y25: 606 | Z25: 332 | AA25: N/A | AB25: 3977 | AC25: 2167 | AD25: 1422 | AE25: 581 | AF25: 256 | AG25: 0 | AH25: 132 | AI25: 330 | AJ25: 1124 | AK25: 6260 | AL25: 638 | AM25: 11736 | AN25: 7507 | AO25: 116 | AP25: 2522 | AQ25: 463 | AR25: 378 | AS25: 15485 | AT25: 82 | AU25: 2297 | AV25: 0 | AW25: 1800 | AX25: 5612 | AY25: 1061 | AZ25: 589 | BA25: 20579 | BB25: 1431 | BC25: 1957 | BD25: 460 | BE25: 0 | BF25: 294
A26: 2012 | B26: Massachusetts | C26: 6580641 | D26: 5752166 | E26: 626380 | F26: 142577 | G26: 636 | H26: 890 | I26: 1972 | J26: 394 | K26: 12770 | L26: 980 | M26: 10525 | N26: 506 | O26: 379 | P26: 12890 | Q26: 2789 | R26: 1108 | S26: 188 | T26: 2886 | U26: 677 | V26: 151 | W26: 565 | X26: 52 | Y26: 1556 | Z26: 3907 | AA26: 2381 | AB26: N/A | AC26: 1337 | AD26: 966 | AE26: 155 | AF26: 453 | AG26: 49 | AH26: 182 | AI26: 787 | AJ26: 13331 | AK26: 8046 | AL26: 521 | AM26: 19467 | AN26: 2514 | AO26: 81 | AP26: 1829 | AQ26: 297 | AR26: 1528 | AS26: 8236 | AT26: 6863 | AU26: 2477 | AV26: 194 | AW26: 823 | AX26: 3694 | AY26: 1027 | AZ26: 2534 | BA26: 4098 | BB26: 1653 | BC26: 385 | BD26: 584 | BE26: 264 | BF26: 4056
A27: 2012 | B27: Michigan | C27: 9778980 | D27: 8330990 | E27: 1268105 | F27: 133981 | G27: 2341 | H27: 1152 | I27: 7168 | J27: 906 | K27: 8085 | L27: 2363 | M27: 798 | N27: 114 | O27: 274 | P27: 13146 | Q27: 4270 | R27: 291 | S27: 242 | T27: 10047 | U27: 10976 | V27: 993 | W27: 805 | X27: 3409 | Y27: 1284 | Z27: 261 | AA27: 2201 | AB27: 1720 | AC27: N/A | AD27: 1127 | AE27: 922 | AF27: 2206 | AG27: 218 | AH27: 113 | AI27: 1354 | AJ27: 446 | AK27: 1617 | AL27: 1318 | AM27: 5731 | AN27: 3912 | AO27: 265 | AP27: 11318 | AQ27: 705 | AR27: 811 | AS27: 2739 | AT27: 68 | AU27: 1822 | AV27: 66 | AW27: 3259 | AX27: 8638 | AY27: 819 | AZ27: 60 | BA27: 3057 | BB27: 2146 | BC27: 353 | BD27: 4768 | BE27: 1277 | BF27: 782
A28: 2012 | B28: Minnesota | C28: 5315228 | D28: 4536303 | E28: 653012 | F28: 101042 | G28: 1299 | H28: 523 | I28: 3065 | J28: 375 | K28: 8086 | L28: 3565 | M28: 696 | N28: 0 | O28: 310 | P28: 2372 | Q28: 2235 | R28: 1277 | S28: 575 | T28: 5896 | U28: 2026 | V28: 7220 | W28: 924 | X28: 57 | Y28: 791 | Z28: 187 | AA28: 1841 | AB28: 814 | AC28: 2212 | AD28: N/A | AE28: 202 | AF28: 1709 | AG28: 1257 | AH28: 992 | AI28: 932 | AJ28: 0 | AK28: 1038 | AL28: 322 | AM28: 1849 | AN28: 1745 | AO28: 6672 | AP28: 2635 | AQ28: 1212 | AR28: 781 | AS28: 1106 | AT28: 299 | AU28: 1705 | AV28: 3442 | AW28: 1738 | AX28: 4001 | AY28: 429 | AZ28: 77 | BA28: 1037 | BB28: 1685 | BC28: 0 | BD28: 17618 | BE28: 213 | BF28: 134
A29: 2012 | B29: Mississippi | C29: 2947696 | D29: 2529377 | E29: 339807 | F29: 73500 | G29: 5141 | H29: 0 | I29: 710 | J29: 2680 | K29: 4371 | L29: 799 | M29: 106 | N29: 0 | O29: 97 | P29: 4676 | Q29: 2669 | R29: 184 | S29: 586 | T29: 2703 | U29: 1200 | V29: 160 | W29: 400 | X29: 446 | Y29: 8588 | Z29: 163 | AA29: 379 | AB29: 67 | AC29: 1768 | AD29: 568 | AE29: N/A | AF29: 2634 | AG29: 166 | AH29: 138 | AI29: 526 | AJ29: 60 | AK29: 2127 | AL29: 86 | AM29: 1492 | AN29: 1709 | AO29: 98 | AP29: 896 | AQ29: 562 | AR29: 465 | AS29: 613 | AT29: 185 | AU29: 596 | AV29: 79 | AW29: 11643 | AX29: 7230 | AY29: 454 | AZ29: 0 | BA29: 1929 | BB29: 433 | BC29: 0 | BD29: 611 | BE29: 307 | BF29: 81
A30: 2012 | B30: Missouri | C30: 5951913 | D30: 4965459 | E30: 801093 | F30: 162930 | G30: 1333 | H30: 2186 | I30: 2297 | J30: 9434 | K30: 10717 | L30: 3798 | M30: 410 | N30: 234 | O30: 144 | P30: 8374 | Q30: 3451 | R30: 2114 | S30: 596 | T30: 22001 | U30: 4184 | V30: 5956 | W30: 20218 | X30: 2291 | Y30: 1178 | Z30: 996 | AA30: 1246 | AB30: 810 | AC30: 2964 | AD30: 2798 | AE30: 1110 | AF30: N/A | AG30: 511 | AH30: 1999 | AI30: 836 | AJ30: 35 | AK30: 960 | AL30: 451 | AM30: 2834 | AN30: 3988 | AO30: 636 | AP30: 3557 | AQ30: 5298 | AR30: 1186 | AS30: 1535 | AT30: 361 | AU30: 2856 | AV30: 527 | AW30: 3122 | AX30: 9278 | AY30: 3287 | AZ30: 318 | BA30: 2609 | BB30: 2312 | BC30: 148 | BD30: 2636 | BE30: 810 | BF30: 826
A31: 2012 | B31: Montana | C31: 995544 | D31: 829489 | E31: 126463 | F31: 37690 | G31: 31 | H31: 726 | I31: 1548 | J31: 63 | K31: 5428 | L31: 2135 | M31: 0 | N31: 0 | O31: 0 | P31: 1875 | Q31: 292 | R31: 556 | S31: 3385 | T31: 542 | U31: 163 | V31: 415 | W31: 224 | X31: 367 | Y31: 0 | Z31: 225 | AA31: 33 | AB31: 97 | AC31: 822 | AD31: 481 | AE31: 32 | AF31: 447 | AG31: N/A | AH31: 108 | AI31: 968 | AJ31: 115 | AK31: 156 | AL31: 259 | AM31: 482 | AN31: 1082 | AO31: 977 | AP31: 402 | AQ31: 1018 | AR31: 2950 | AS31: 457 | AT31: 0 | AU31: 230 | AV31: 191 | AW31: 45 | AX31: 1393 | AY31: 260 | AZ31: 87 | BA31: 156 | BB31: 4783 | BC31: 0 | BD31: 750 | BE31: 934 | BF31: 0
A32: 2012 | B32: Nebraska | C32: 1829420 | D32: 1540361 | E32: 237937 | F32: 43266 | G32: 245 | H32: 626 | I32: 2406 | J32: 363 | K32: 3438 | L32: 2023 | M32: 0 | N32: 0 | O32: 0 | P32: 1368 | Q32: 786 | R32: 165 | S32: 315 | T32: 1193 | U32: 290 | V32: 6815 | W32: 3103 | X32: 131 | Y32: 411 | Z32: 68 | AA32: 129 | AB32: 195 | AC32: 258 | AD32: 1489 | AE32: 176 | AF32: 2223 | AG32: 108 | AH32: N/A | AI32: 233 | AJ32: 0 | AK32: 524 | AL32: 158 | AM32: 318 | AN32: 874 | AO32: 497 | AP32: 563 | AQ32: 587 | AR32: 106 | AS32: 702 | AT32: 0 | AU32: 456 | AV32: 2507 | AW32: 232 | AX32: 3130 | AY32: 229 | AZ32: 79 | BA32: 1076 | BB32: 1327 | BC32: 111 | BD32: 316 | BE32: 917 | BF32: 0
A33: 2012 | B33: Nevada | C33: 2725280 | D33: 2105070 | E33: 481496 | F33: 124285 | G33: 761 | H33: 2161 | I33: 8748 | J33: 353 | K33: 49978 | L33: 6402 | M33: 143 | N33: 373 | O33: 468 | P33: 3381 | Q33: 745 | R33: 2053 | S33: 1503 | T33: 2822 | U33: 362 | V33: 714 | W33: 1202 | X33: 952 | Y33: 421 | Z33: 209 | AA33: 934 | AB33: 318 | AC33: 1235 | AD33: 1157 | AE33: 783 | AF33: 694 | AG33: 1086 | AH33: 714 | AI33: N/A | AJ33: 175 | AK33: 912 | AL33: 1138 | AM33: 3521 | AN33: 767 | AO33: 702 | AP33: 1407 | AQ33: 1520 | AR33: 3101 | AS33: 1601 | AT33: 336 | AU33: 480 | AV33: 0 | AW33: 1699 | AX33: 5484 | AY33: 4605 | AZ33: 121 | BA33: 1135 | BB33: 2997 | BC33: 100 | BD33: 1046 | BE33: 766 | BF33: 237
A34: 2012 | B34: New Hampshire | C34: 1309203 | D34: 1127376 | E34: 125118 | F34: 50484 | G34: 0 | H34: 437 | I34: 440 | J34: 0 | K34: 1514 | L34: 572 | M34: 1345 | N34: 0 | O34: 101 | P34: 2746 | Q34: 470 | R34: 43 | S34: 20 | T34: 673 | U34: 297 | V34: 53 | W34: 102 | X34: 284 | Y34: 7 | Z34: 6118 | AA34: 33 | AB34: 18990 | AC34: 426 | AD34: 0 | AE34: 0 | AF34: 289 | AG34: 0 | AH34: 110 | AI34: 0 | AJ34: N/A | AK34: 591 | AL34: 223 | AM34: 2905 | AN34: 1609 | AO34: 0 | AP34: 324 | AQ34: 186 | AR34: 208 | AS34: 890 | AT34: 1248 | AU34: 323 | AV34: 0 | AW34: 77 | AX34: 2150 | AY34: 557 | AZ34: 2960 | BA34: 660 | BB34: 113 | BC34: 80 | BD34: 239 | BE34: 71 | BF34: 75
A35: 2012 | B35: New Jersey | C35: 8772744 | D35: 7929570 | E35: 655465 | F35: 130223 | G35: 779 | H35: 359 | I35: 1328 | J35: 57 | K35: 4330 | L35: 380 | M35: 3466 | N35: 1921 | O35: 840 | P35: 10649 | Q35: 3002 | R35: 22 | S35: 113 | T35: 2052 | U35: 1039 | V35: 357 | W35: 426 | X35: 631 | Y35: 339 | Z35: 430 | AA35: 3474 | AB35: 4907 | AC35: 324 | AD35: 570 | AE35: 106 | AF35: 384 | AG35: 67 | AH35: 35 | AI35: 908 | AJ35: 126 | AK35: N/A | AL35: 45 | AM35: 40495 | AN35: 3236 | AO35: 55 | AP35: 1452 | AQ35: 1540 | AR35: 760 | AS35: 23597 | AT35: 429 | AU35: 2372 | AV35: 581 | AW35: 1400 | AX35: 2509 | AY35: 425 | AZ35: 35 | BA35: 5024 | BB35: 1847 | BC35: 297 | BD35: 680 | BE35: 23 | BF35: 2574
A36: 2012 | B36: New Mexico | C36: 2060595 | D36: 1769341 | E36: 226243 | F36: 54693 | G36: 787 | H36: 320 | I36: 6391 | J36: 410 | K36: 4536 | L36: 4780 | M36: 280 | N36: 100 | O36: 25 | P36: 4707 | Q36: 192 | R36: 168 | S36: 355 | T36: 790 | U36: 660 | V36: 384 | W36: 672 | X36: 159 | Y36: 790 | Z36: 57 | AA36: 505 | AB36: 303 | AC36: 602 | AD36: 284 | AE36: 451 | AF36: 1216 | AG36: 139 | AH36: 194 | AI36: 604 | AJ36: 268 | AK36: 252 | AL36: N/A | AM36: 1111 | AN36: 335 | AO36: 41 | AP36: 1178 | AQ36: 1076 | AR36: 932 | AS36: 822 | AT36: 0 | AU36: 325 | AV36: 509 | AW36: 338 | AX36: 11955 | AY36: 1382 | AZ36: 81 | BA36: 1560 | BB36: 1251 | BC36: 0 | BD36: 321 | BE36: 95 | BF36: 429
A37: 2012 | B37: New York | C37: 19352153 | D37: 17202134 | E37: 1723117 | F37: 270053 | G37: 1364 | H37: 4002 | I37: 4146 | J37: 247 | K37: 24623 | L37: 3596 | M37: 14595 | N37: 477 | O37: 3936 | P37: 27392 | Q37: 7592 | R37: 1598 | S37: 607 | T37: 8017 | U37: 3040 | V37: 955 | W37: 1437 | X37: 1753 | Y37: 1083 | Z37: 1345 | AA37: 7321 | AB37: 15073 | AC37: 5191 | AD37: 1059 | AE37: 773 | AF37: 3310 | AG37: 421 | AH37: 78 | AI37: 600 | AJ37: 2760 | AK37: 42574 | AL37: 646 | AM37: N/A | AN37: 10544 | AO37: 77 | AP37: 4625 | AQ37: 1327 | AR37: 1055 | AS37: 22895 | AT37: 3222 | AU37: 5952 | AV37: 0 | AW37: 1279 | AX37: 11231 | AY37: 622 | AZ37: 2764 | BA37: 7939 | BB37: 2614 | BC37: 921 | BD37: 979 | BE37: 396 | BF37: 7321
A38: 2012 | B38: North Carolina | C38: 9640490 | D38: 8167830 | E38: 1149080 | F38: 273149 | G38: 4329 | H38: 1458 | I38: 3493 | J38: 861 | K38: 13883 | L38: 4790 | M38: 4914 | N38: 2180 | O38: 1801 | P38: 26365 | Q38: 16823 | R38: 1566 | S38: 334 | T38: 6378 | U38: 4532 | V38: 775 | W38: 1595 | X38: 1531 | Y38: 919 | Z38: 1259 | AA38: 9005 | AB38: 3710 | AC38: 6161 | AD38: 1523 | AE38: 2377 | AF38: 2623 | AG38: 244 | AH38: 628 | AI38: 1627 | AJ38: 754 | AK38: 11468 | AL38: 1138 | AM38: 19891 | AN38: N/A | AO38: 206 | AP38: 9337 | AQ38: 1263 | AR38: 1333 | AS38: 12179 | AT38: 290 | AU38: 25532 | AV38: 351 | AW38: 9230 | AX38: 12638 | AY38: 1189 | AZ38: 445 | BA38: 26759 | BB38: 5915 | BC38: 2677 | BD38: 2266 | BE38: 604 | BF38: 2025
A39: 2012 | B39: North Dakota | C39: 689838 | D39: 563978 | E39: 84294 | F39: 38213 | G39: 83 | H39: 70 | I39: 1571 | J39: 0 | K39: 999 | L39: 546 | M39: 65 | N39: 0 | O39: 70 | P39: 950 | Q39: 98 | R39: 160 | S39: 540 | T39: 799 | U39: 55 | V39: 458 | W39: 161 | X39: 22 | Y39: 18 | Z39: 98 | AA39: 232 | AB39: 187 | AC39: 757 | AD39: 15257 | AE39: 72 | AF39: 1490 | AG39: 1776 | AH39: 950 | AI39: 854 | AJ39: 0 | AK39: 140 | AL39: 161 | AM39: 331 | AN39: 231 | AO39: N/A | AP39: 6 | AQ39: 280 | AR39: 724 | AS39: 114 | AT39: 244 | AU39: 14 | AV39: 1754 | AW39: 746 | AX39: 1414 | AY39: 43 | AZ39: 758 | BA39: 403 | BB39: 1604 | BC39: 0 | BD39: 543 | BE39: 365 | BF39: 0
A40: 2012 | B40: Ohio | C40: 11414635 | D40: 9735390 | E40: 1440815 | F40: 196391 | G40: 3705 | H40: 2207 | I40: 4929 | J40: 884 | K40: 8995 | L40: 3180 | M40: 1355 | N40: 1079 | O40: 985 | P40: 16366 | Q40: 8052 | R40: 1198 | S40: 412 | T40: 9510 | U40: 13534 | V40: 1039 | W40: 1166 | X40: 13227 | Y40: 2214 | Z40: 1189 | AA40: 5026 | AB40: 2189 | AC40: 16336 | AD40: 1122 | AE40: 1017 | AF40: 3026 | AG40: 276 | AH40: 1052 | AI40: 907 | AJ40: 189 | AK40: 4703 | AL40: 1361 | AM40: 8732 | AN40: 5498 | AO40: 453 | AP40: N/A | AQ40: 858 | AR40: 432 | AS40: 14147 | AT40: 435 | AU40: 2445 | AV40: 47 | AW40: 3542 | AX40: 11760 | AY40: 197 | AZ40: 364 | BA40: 3193 | BB40: 2862 | BC40: 7820 | BD40: 974 | BE40: 202 | BF40: 1403
A41: 2012 | B41: Oklahoma | C41: 3762311 | D41: 3107367 | E41: 531347 | F41: 108972 | G41: 1030 | H41: 1279 | I41: 2974 | J41: 5777 | K41: 8950 | L41: 4717 | M41: 0 | N41: 380 | O41: 151 | P41: 5011 | Q41: 2581 | R41: 189 | S41: 905 | T41: 1100 | U41: 1490 | V41: 1088 | W41: 7065 | X41: 1354 | Y41: 2562 | Z41: 167 | AA41: 750 | AB41: 1233 | AC41: 1347 | AD41: 906 | AE41: 1850 | AF41: 5210 | AG41: 798 | AH41: 300 | AI41: 1101 | AJ41: 549 | AK41: 1523 | AL41: 1244 | AM41: 1981 | AN41: 1961 | AO41: 308 | AP41: 1148 | AQ41: N/A | AR41: 1261 | AS41: 494 | AT41: 0 | AU41: 569 | AV41: 108 | AW41: 2471 | AX41: 25508 | AY41: 2588 | AZ41: 197 | BA41: 1749 | BB41: 1574 | BC41: 368 | BD41: 1061 | BE41: 45 | BF41: 0
A42: 2012 | B42: Oregon | C42: 3857465 | D42: 3158450 | E42: 560673 | F42: 118925 | G42: 373 | H42: 2513 | I42: 7954 | J42: 165 | K42: 31862 | L42: 4472 | M42: 381 | N42: 0 | O42: 696 | P42: 1660 | Q42: 1032 | R42: 2501 | S42: 5093 | T42: 1676 | U42: 1380 | V42: 834 | W42: 556 | X42: 202 | Y42: 227 | Z42: 446 | AA42: 457 | AB42: 760 | AC42: 570 | AD42: 1792 | AE42: 186 | AF42: 403 | AG42: 2192 | AH42: 570 | AI42: 5935 | AJ42: 39 | AK42: 385 | AL42: 920 | AM42: 2379 | AN42: 1482 | AO42: 42 | AP42: 1411 | AQ42: 725 | AR42: N/A | AS42: 904 | AT42: 177 | AU42: 461 | AV42: 119 | AW42: 802 | AX42: 3347 | AY42: 4793 | AZ42: 367 | BA42: 676 | BB42: 21224 | BC42: 593 | BD42: 426 | BE42: 765 | BF42: 152
A43: 2012 | B43: Pennsylvania | C43: 12630082 | D43: 11107110 | E43: 1252378 | F43: 215500 | G43: 1926 | H43: 1658 | I43: 3529 | J43: 573 | K43: 7772 | L43: 2574 | M43: 3311 | N43: 4814 | O43: 2921 | P43: 14631 | Q43: 4337 | R43: 245 | S43: 359 | T43: 3749 | U43: 1599 | V43: 125 | W43: 967 | X43: 1233 | Y43: 694 | Z43: 988 | AA43: 17529 | AB43: 5900 | AC43: 2642 | AD43: 1169 | AE43: 55 | AF43: 1171 | AG43: 135 | AH43: 214 | AI43: 1600 | AJ43: 1138 | AK43: 33791 | AL43: 1001 | AM43: 32898 | AN43: 6380 | AO43: 166 | AP43: 14319 | AQ43: 378 | AR43: 234 | AS43: N/A | AT43: 771 | AU43: 3023 | AV43: 159 | AW43: 1273 | AX43: 6768 | AY43: 1276 | AZ43: 1012 | BA43: 11960 | BB43: 1787 | BC43: 6762 | BD43: 1550 | BE43: 434 | BF43: 7847
A44: 2012 | B44: Rhode Island | C44: 1040527 | D44: 899551 | E44: 101165 | F44: 33446 | G44: 20 | H44: 0 | I44: 93 | J44: 0 | K44: 2146 | L44: 332 | M44: 4170 | N44: 0 | O44: 313 | P44: 2752 | Q44: 168 | R44: 120 | S44: 0 | T44: 385 | U44: 0 | V44: 0 | W44: 27 | X44: 286 | Y44: 24 | Z44: 279 | AA44: 482 | AB44: 11253 | AC44: 230 | AD44: 131 | AE44: 0 | AF44: 210 | AG44: 0 | AH44: 188 | AI44: 25 | AJ44: 611 | AK44: 1219 | AL44: 36 | AM44: 3603 | AN44: 478 | AO44: 0 | AP44: 63 | AQ44: 0 | AR44: 139 | AS44: 735 | AT44: N/A | AU44: 481 | AV44: 0 | AW44: 120 | AX44: 823 | AY44: 0 | AZ44: 53 | BA44: 1008 | BB44: 287 | BC44: 0 | BD44: 135 | BE44: 21 | BF44: 116
A45: 2012 | B45: South Carolina | C45: 4668886 | D45: 3929626 | E45: 564350 | F45: 156705 | G45: 1665 | H45: 1244 | I45: 2222 | J45: 839 | K45: 5979 | L45: 1915 | M45: 1590 | N45: 697 | O45: 435 | P45: 11552 | Q45: 18570 | R45: 638 | S45: 198 | T45: 2125 | U45: 3802 | V45: 643 | W45: 1064 | X45: 1924 | Y45: 2709 | Z45: 2077 | AA45: 3565 | AB45: 2313 | AC45: 2966 | AD45: 757 | AE45: 1407 | AF45: 1884 | AG45: 93 | AH45: 158 | AI45: 1025 | AJ45: 917 | AK45: 6517 | AL45: 1052 | AM45: 10746 | AN45: 24764 | AO45: 656 | AP45: 4388 | AQ45: 555 | AR45: 255 | AS45: 6497 | AT45: 538 | AU45: N/A | AV45: 816 | AW45: 3550 | AX45: 5351 | AY45: 566 | AZ45: 298 | BA45: 9377 | BB45: 1629 | BC45: 1345 | BD45: 832 | BE45: 0 | BF45: 1070
A46: 2012 | B46: South Dakota | C46: 821669 | D46: 676014 | E46: 115606 | F46: 26051 | G46: 0 | H46: 855 | I46: 435 | J46: 227 | K46: 1494 | L46: 1744 | M46: 2 | N46: 0 | O46: 0 | P46: 970 | Q46: 122 | R46: 8 | S46: 78 | T46: 74 | U46: 210 | V46: 2441 | W46: 403 | X46: 0 | Y46: 0 | Z46: 0 | AA46: 60 | AB46: 61 | AC46: 892 | AD46: 3568 | AE46: 34 | AF46: 474 | AG46: 248 | AH46: 2175 | AI46: 135 | AJ46: 0 | AK46: 0 | AL46: 175 | AM46: 371 | AN46: 240 | AO46: 1725 | AP46: 64 | AQ46: 21 | AR46: 667 | AS46: 515 | AT46: 0 | AU46: 158 | AV46: N/A | AW46: 507 | AX46: 1715 | AY46: 388 | AZ46: 5 | BA46: 340 | BB46: 1026 | BC46: 131 | BD46: 314 | BE46: 979 | BF46: 134
A47: 2012 | B47: Tennessee | C47: 6378278 | D47: 5396833 | E47: 783077 | F47: 177098 | G47: 12116 | H47: 1281 | I47: 2250 | J47: 3306 | K47: 8396 | L47: 2473 | M47: 936 | N47: 176 | O47: 180 | P47: 15641 | Q47: 16012 | R47: 1058 | S47: 787 | T47: 7094 | U47: 5591 | V47: 617 | W47: 2630 | X47: 13202 | Y47: 2452 | Z47: 1040 | AA47: 1743 | AB47: 1525 | AC47: 4507 | AD47: 1178 | AE47: 10568 | AF47: 2694 | AG47: 308 | AH47: 432 | AI47: 735 | AJ47: 271 | AK47: 783 | AL47: 751 | AM47: 6279 | AN47: 5904 | AO47: 7 | AP47: 6200 | AQ47: 2495 | AR47: 1080 | AS47: 3329 | AT47: 26 | AU47: 4300 | AV47: 0 | AW47: N/A | AX47: 8716 | AY47: 784 | AZ47: 133 | BA47: 8008 | BB47: 1876 | BC47: 3248 | BD47: 1622 | BE47: 358 | BF47: 717
A48: 2012 | B48: Texas | C48: 25711791 | D48: 21354247 | E48: 3656070 | F48: 507752 | G48: 9993 | H48: 6759 | I48: 18908 | J48: 13781 | K48: 62702 | L48: 16616 | M48: 2769 | N48: 181 | O48: 1189 | P48: 31259 | Q48: 20362 | R48: 5040 | S48: 2387 | T48: 19672 | U48: 8264 | V48: 4934 | W48: 12699 | X48: 6040 | Y48: 29348 | Z48: 1293 | AA48: 4969 | AB48: 4813 | AC48: 9501 | AD48: 2803 | AE48: 6402 | AF48: 12319 | AG48: 1813 | AH48: 4794 | AI48: 8266 | AJ48: 761 | AK48: 6797 | AL48: 16762 | AM48: 20274 | AN48: 22660 | AO48: 989 | AP48: 8728 | AQ48: 26284 | AR48: 3827 | AS48: 10449 | AT48: 1763 | AU48: 4470 | AV48: 1264 | AW48: 10368 | AX48: N/A | AY48: 4610 | AZ48: 113 | BA48: 17734 | BB48: 11630 | BC48: 1729 | BD48: 4192 | BE48: 2472 | BF48: 4435
A49: 2012 | B49: Utah | C49: 2805440 | D49: 2324019 | E49: 373980 | F49: 87870 | G49: 126 | H49: 2819 | I49: 7966 | J49: 361 | K49: 15286 | L49: 5350 | M49: 142 | N49: 0 | O49: 0 | P49: 2428 | Q49: 1142 | R49: 1436 | S49: 5129 | T49: 1588 | U49: 475 | V49: 2791 | W49: 398 | X49: 217 | Y49: 345 | Z49: 380 | AA49: 613 | AB49: 1503 | AC49: 1670 | AD49: 385 | AE49: 284 | AF49: 1553 | AG49: 1057 | AH49: 489 | AI49: 5391 | AJ49: 507 | AK49: 437 | AL49: 686 | AM49: 2129 | AN49: 842 | AO49: 175 | AP49: 1875 | AQ49: 1338 | AR49: 4089 | AS49: 944 | AT49: 351 | AU49: 60 | AV49: 47 | AW49: 863 | AX49: 3605 | AY49: N/A | AZ49: 39 | BA49: 1369 | BB49: 3529 | BC49: 0 | BD49: 1445 | BE49: 2216 | BF49: 239
A50: 2012 | B50: Vermont | C50: 620224 | D50: 532237 | E50: 61242 | F50: 24431 | G50: 16 | H50: 93 | I50: 127 | J50: 0 | K50: 1112 | L50: 382 | M50: 1626 | N50: 0 | O50: 116 | P50: 966 | Q50: 56 | R50: 6 | S50: 0 | T50: 230 | U50: 68 | V50: 30 | W50: 0 | X50: 1243 | Y50: 73 | Z50: 883 | AA50: 862 | AB50: 3318 | AC50: 284 | AD50: 315 | AE50: 0 | AF50: 23 | AG50: 147 | AH50: 0 | AI50: 17 | AJ50: 2893 | AK50: 833 | AL50: 74 | AM50: 4780 | AN50: 328 | AO50: 0 | AP50: 214 | AQ50: 11 | AR50: 26 | AS50: 935 | AT50: 341 | AU50: 124 | AV50: 39 | AW50: 193 | AX50: 493 | AY50: 81 | AZ50: N/A | BA50: 728 | BB50: 98 | BC50: 0 | BD50: 151 | BE50: 96 | BF50: 0
A51: 2012 | B51: Virginia | C51: 8085389 | D51: 6857430 | E51: 915242 | F51: 250653 | G51: 2515 | H51: 1906 | I51: 2420 | J51: 445 | K51: 14780 | L51: 5352 | M51: 2725 | N51: 2279 | O51: 10964 | P51: 19574 | Q51: 9535 | R51: 3823 | S51: 652 | T51: 7089 | U51: 2663 | V51: 221 | W51: 1144 | X51: 3908 | Y51: 1638 | Z51: 1144 | AA51: 23925 | AB51: 3767 | AC51: 2982 | AD51: 2294 | AE51: 1344 | AF51: 1914 | AG51: 658 | AH51: 357 | AI51: 973 | AJ51: 535 | AK51: 9073 | AL51: 947 | AM51: 15893 | AN51: 25575 | AO51: 852 | AP51: 5622 | AQ51: 2810 | AR51: 1541 | AS51: 14190 | AT51: 1605 | AU51: 7936 | AV51: 35 | AW51: 6189 | AX51: 12944 | AY51: 2092 | AZ51: 423 | BA51: N/A | BB51: 4160 | BC51: 3839 | BD51: 1258 | BE51: 143 | BF51: 516
A52: 2012 | B52: Washington | C52: 6815763 | D52: 5648199 | E52: 904695 | F52: 215494 | G52: 1507 | H52: 4328 | I52: 8362 | J52: 1413 | K52: 45597 | L52: 5195 | M52: 2901 | N52: 100 | O52: 773 | P52: 9370 | Q52: 6363 | R52: 5239 | S52: 10604 | T52: 4298 | U52: 1089 | V52: 1159 | W52: 2544 | X52: 1368 | Y52: 1646 | Z52: 532 | AA52: 1191 | AB52: 2911 | AC52: 3470 | AD52: 2703 | AE52: 615 | AF52: 2802 | AG52: 2919 | AH52: 682 | AI52: 5671 | AJ52: 309 | AK52: 2300 | AL52: 872 | AM52: 5562 | AN52: 4088 | AO52: 217 | AP52: 3192 | AQ52: 1223 | AR52: 25525 | AS52: 3397 | AT52: 97 | AU52: 2727 | AV52: 94 | AW52: 3206 | AX52: 14196 | AY52: 5298 | AZ52: 223 | BA52: 3839 | BB52: N/A | BC52: 215 | BD52: 1168 | BE52: 394 | BF52: 1025
A53: 2012 | B53: West Virginia | C53: 1837518 | D53: 1613322 | E53: 174112 | F53: 47125 | G53: 477 | H53: 306 | I53: 79 | J53: 0 | K53: 1231 | L53: 104 | M53: 143 | N53: 674 | O53: 294 | P53: 1919 | Q53: 1108 | R53: 166 | S53: 181 | T53: 220 | U53: 328 | V53: 68 | W53: 39 | X53: 2249 | Y53: 90 | Z53: 35 | AA53: 5352 | AB53: 164 | AC53: 778 | AD53: 20 | AE53: 0 | AF53: 59 | AG53: 0 | AH53: 0 | AI53: 229 | AJ53: 129 | AK53: 1213 | AL53: 81 | AM53: 1721 | AN53: 4683 | AO53: 175 | AP53: 6757 | AQ53: 520 | AR53: 118 | AS53: 5208 | AT53: 0 | AU53: 1098 | AV53: 36 | AW53: 1061 | AX53: 622 | AY53: 0 | AZ53: 54 | BA53: 6317 | BB53: 297 | BC53: N/A | BD53: 470 | BE53: 252 | BF53: 79
A54: 2012 | B54: Wisconsin | C54: 5660677 | D54: 4849945 | E54: 693737 | F54: 99192 | G54: 323 | H54: 236 | I54: 3257 | J54: 253 | K54: 5347 | L54: 1600 | M54: 657 | N54: 296 | O54: 15 | P54: 4937 | Q54: 970 | R54: 333 | S54: 360 | T54: 22285 | U54: 2480 | V54: 4161 | W54: 1160 | X54: 635 | Y54: 598 | Z54: 233 | AA54: 1306 | AB54: 489 | AC54: 3917 | AD54: 18965 | AE54: 238 | AF54: 1263 | AG54: 784 | AH54: 324 | AI54: 1163 | AJ54: 3 | AK54: 606 | AL54: 526 | AM54: 2033 | AN54: 2939 | AO54: 284 | AP54: 2610 | AQ54: 289 | AR54: 945 | AS54: 1563 | AT54: 144 | AU54: 1053 | AV54: 329 | AW54: 1051 | AX54: 2765 | AY54: 900 | AZ54: 62 | BA54: 1267 | BB54: 1208 | BC54: 0 | BD54: N/A | BE54: 30 | BF54: 975
A55: 2012 | B55: Wyoming | C55: 569734 | D55: 459226 | E55: 77324 | F55: 31149 | G55: 260 | H55: 590 | I55: 2014 | J55: 244 | K55: 2035 | L55: 5599 | M55: 0 | N55: 0 | O55: 0 | P55: 733 | Q55: 166 | R55: 0 | S55: 745 | T55: 905 | U55: 179 | V55: 259 | W55: 539 | X55: 4 | Y55: 88 | Z55: 0 | AA55: 294 | AB55: 548 | AC55: 965 | AD55: 290 | AE55: 136 | AF55: 244 | AG55: 1901 | AH55: 1216 | AI55: 355 | AJ55: 0 | AK55: 121 | AL55: 604 | AM55: 231 | AN55: 459 | AO55: 338 | AP55: 819 | AQ55: 964 | AR55: 893 | AS55: 230 | AT55: 0 | AU55: 122 | AV55: 1175 | AW55: 4 | AX55: 1427 | AY55: 1710 | AZ55: 0 | BA55: 138 | BB55: 1323 | BC55: 0 | BD55: 282 | BE55: N/A | BF55: 16
A56: 2012 | B56: Puerto Rico | C56: 3628402 | D56: 3366593 | E56: 238042 | F56: 20044 | G56: 8 | H56: 57 | I56: 54 | J56: 93 | K56: 519 | L56: 0 | M56: 370 | N56: 0 | O56: 0 | P56: 4192 | Q56: 232 | R56: 110 | S56: 0 | T56: 1021 | U56: 121 | V56: 0 | W56: 143 | X56: 37 | Y56: 59 | Z56: 0 | AA56: 108 | AB56: 2258 | AC56: 435 | AD56: 0 | AE56: 0 | AF56: 0 | AG56: 0 | AH56: 0 | AI56: 0 | AJ56: 0 | AK56: 1922 | AL56: 28 | AM56: 2314 | AN56: 638 | AO56: 0 | AP56: 328 | AQ56: 0 | AR56: 0 | AS56: 2313 | AT56: 624 | AU56: 4 | AV56: 0 | AW56: 15 | AX56: 360 | AY56: 0 | AZ56: 0 | BA56: 684 | BB56: 0 | BC56: 8 | BD56: 989 | BE56: 0 | BF56: N/A
A57: 2011 | B57: (All) | C57: 307900319 | D57: 261087925 | E57: 37998701 | F57: 6987416 | G57: 106806 | H57: 88850 | I57: 211816 | J57: 77226 | K57: 562343 | L57: 160623 | M57: 91295 | N57: 26631 | O57: 49732 | P57: 437202 | Q57: 248892 | R57: 61940 | S57: 57831 | T57: 269008 | U57: 143228 | V57: 74516 | W57: 94180 | X57: 99256 | Y57: 86593 | Z57: 33729 | AA57: 165041 | AB57: 145869 | AC57: 186505 | AD57: 103253 | AE57: 68597 | AF57: 138404 | AG57: 31204 | AH57: 52809 | AI57: 115943 | AJ57: 43277 | AK57: 216369 | AL57: 61431 | AM57: 377800 | AN57: 225147 | AO57: 26563 | AP57: 206049 | AQ57: 81009 | AR57: 109795 | AS57: 215127 | AT57: 31065 | AU57: 121426 | AV57: 29383 | AW57: 154243 | AX57: 404839 | AY57: 73211 | AZ57: 18172 | BA57: 229227 | BB57: 190644 | BC57: 45956 | BD57: 105370 | BE57: 31991 | BF57: 76218
A58: 2011 | B58: Alabama | C58: 4745278 | D58: 4024442 | E58: 588293 | F58: 117726 | G58: N/A | H58: 1771 | I58: 1677 | J58: 1642 | K58: 3389 | L58: 348 | M58: 2921 | N58: 232 | O58: 399 | P58: 20063 | Q58: 19346 | R58: 1259 | S58: 137 | T58: 6991 | U58: 1434 | V58: 30 | W58: 842 | X58: 2686 | Y58: 2413 | Z58: 626 | AA58: 1606 | AB58: 112 | AC58: 2797 | AD58: 327 | AE58: 3945 | AF58: 1086 | AG58: 317 | AH58: 770 | AI58: 257 | AJ58: 64 | AK58: 1996 | AL58: 119 | AM58: 1108 | AN58: 2697 | AO58: 284 | AP58: 2596 | AQ58: 973 | AR58: 169 | AS58: 1075 | AT58: 0 | AU58: 2036 | AV58: 90 | AW58: 8710 | AX58: 7973 | AY58: 300 | AZ58: 66 | BA58: 4935 | BB58: 2621 | BC58: 65 | BD58: 417 | BE58: 9 | BF58: 569
A59: 2011 | B59: Alaska | C59: 711962 | D59: 571857 | E59: 100280 | F59: 35084 | G59: 93 | H59: N/A | I59: 2467 | J59: 190 | K59: 3098 | L59: 1583 | M59: 138 | N59: 11 | O59: 140 | P59: 1188 | Q59: 556 | R59: 1366 | S59: 475 | T59: 985 | U59: 181 | V59: 319 | W59: 750 | X59: 237 | Y59: 1077 | Z59: 0 | AA59: 216 | AB59: 141 | AC59: 771 | AD59: 593 | AE59: 554 | AF59: 921 | AG59: 248 | AH59: 5 | AI59: 532 | AJ59: 520 | AK59: 128 | AL59: 226 | AM59: 940 | AN59: 470 | AO59: 0 | AP59: 319 | AQ59: 616 | AR59: 2161 | AS59: 378 | AT59: 0 | AU59: 186 | AV59: 301 | AW59: 388 | AX59: 2492 | AY59: 662 | AZ59: 68 | BA59: 1488 | BB59: 4548 | BC59: 89 | BD59: 23 | BE59: 246 | BF59: 1044
A60: 2011 | B60: Arizona | C60: 6402301 | D60: 5107496 | E60: 1028366 | F60: 222877 | G60: 833 | H60: 5001 | I60: N/A | J60: 1066 | K60: 49635 | L60: 10189 | M60: 1875 | N60: 0 | O60: 389 | P60: 3732 | Q60: 2206 | R60: 2199 | S60: 2190 | T60: 10035 | U60: 5855 | V60: 4526 | W60: 1708 | X60: 2134 | Y60: 844 | Z60: 0 | AA60: 1918 | AB60: 743 | AC60: 9396 | AD60: 3297 | AE60: 1226 | AF60: 3872 | AG60: 2431 | AH60: 1393 | AI60: 8756 | AJ60: 228 | AK60: 3379 | AL60: 4610 | AM60: 3880 | AN60: 2548 | AO60: 1159 | AP60: 4682 | AQ60: 3219 | AR60: 4613 | AS60: 3436 | AT60: 72 | AU60: 1774 | AV60: 1657 | AW60: 1680 | AX60: 12688 | AY60: 10577 | AZ60: 0 | BA60: 2233 | BB60: 13940 | BC60: 70 | BD60: 6473 | BE60: 2510 | BF60: 871
A61: 2011 | B61: Arkansas | C61: 2906632 | D61: 2421746 | E61: 405831 | F61: 69845 | G61: 691 | H61: 560 | I61: 439 | J61: N/A | K61: 4077 | L61: 746 | M61: 519 | N61: 79 | O61: 0 | P61: 3067 | Q61: 1446 | R61: 13 | S61: 179 | T61: 3684 | U61: 1362 | V61: 851 | W61: 2008 | X61: 213 | Y61: 2120 | Z61: 30 | AA61: 133 | AB61: 781 | AC61: 1881 | AD61: 232 | AE61: 1731 | AF61: 7314 | AG61: 713 | AH61: 332 | AI61: 641 | AJ61: 52 | AK61: 341 | AL61: 775 | AM61: 674 | AN61: 1664 | AO61: 214 | AP61: 174 | AQ61: 3761 | AR61: 632 | AS61: 567 | AT61: 0 | AU61: 235 | AV61: 0 | AW61: 6462 | AX61: 14767 | AY61: 0 | AZ61: 0 | BA61: 1245 | BB61: 1477 | BC61: 24 | BD61: 687 | BE61: 252 | BF61: 529
A62: 2011 | B62: California | C62: 37222678 | D62: 31213310 | E62: 5271168 | F62: 468428 | G62: 2087 | H62: 7358 | I62: 35650 | J62: 2648 | K62: N/A | L62: 21245 | M62: 3073 | N62: 1302 | O62: 3240 | P62: 22094 | Q62: 13303 | R62: 9864 | S62: 4796 | T62: 20834 | U62: 4673 | V62: 3324 | W62: 2810 | X62: 1201 | Y62: 3600 | Z62: 1658 | AA62: 7793 | AB62: 10244 | AC62: 12069 | AD62: 5687 | AE62: 2092 | AF62: 7677 | AG62: 2599 | AH62: 1955 | AI62: 36159 | AJ62: 1222 | AK62: 8053 | AL62: 5904 | AM62: 25629 | AN62: 8708 | AO62: 1392 | AP62: 10474 | AQ62: 5113 | AR62: 18165 | AS62: 8550 | AT62: 1103 | AU62: 5758 | AV62: 1004 | AW62: 8761 | AX62: 37087 | AY62: 8944 | AZ62: 745 | BA62: 15753 | BB62: 36481 | BC62: 832 | BD62: 5668 | BE62: 2047 | BF62: 1344
A63: 2011 | B63: Colorado | C63: 5048443 | D63: 4048042 | E63: 763233 | F63: 202124 | G63: 2340 | H63: 3191 | I63: 12338 | J63: 1615 | K63: 23234 | L63: N/A | M63: 1567 | N63: 501 | O63: 298 | P63: 8075 | Q63: 3250 | R63: 1852 | S63: 1578 | T63: 6027 | U63: 2116 | V63: 3510 | W63: 3718 | X63: 1361 | Y63: 908 | Z63: 1358 | AA63: 3303 | AB63: 2157 | AC63: 3225 | AD63: 3055 | AE63: 879 | AF63: 4552 | AG63: 4079 | AH63: 4582 | AI63: 4061 | AJ63: 489 | AK63: 2863 | AL63: 8797 | AM63: 3998 | AN63: 4756 | AO63: 2249 | AP63: 5527 | AQ63: 3824 | AR63: 5543 | AS63: 3348 | AT63: 435 | AU63: 718 | AV63: 1340 | AW63: 3193 | AX63: 22390 | AY63: 3856 | AZ63: 914 | BA63: 6281 | BB63: 5524 | BC63: 412 | BD63: 3995 | BE63: 2942 | BF63: 476
A64: 2011 | B64: Connecticut | C64: 3548667 | D64: 3139496 | E64: 316883 | F64: 71502 | G64: 101 | H64: 180 | I64: 1387 | J64: 84 | K64: 3699 | L64: 1502 | M64: N/A | N64: 62 | O64: 607 | P64: 4771 | Q64: 2000 | R64: 587 | S64: 133 | T64: 1843 | U64: 168 | V64: 67 | W64: 16 | X64: 0 | Y64: 315 | Z64: 259 | AA64: 1267 | AB64: 8691 | AC64: 692 | AD64: 76 | AE64: 69 | AF64: 365 | AG64: 206 | AH64: 62 | AI64: 160 | AJ64: 1221 | AK64: 3809 | AL64: 265 | AM64: 20015 | AN64: 1029 | AO64: 0 | AP64: 1383 | AQ64: 217 | AR64: 117 | AS64: 3668 | AT64: 1488 | AU64: 997 | AV64: 0 | AW64: 123 | AX64: 1214 | AY64: 398 | AZ64: 608 | BA64: 2555 | BB64: 2255 | BC64: 46 | BD64: 660 | BE64: 65 | BF64: 2105
A65: 2011 | B65: Delaware | C65: 897187 | D65: 775414 | E65: 83156 | F65: 33912 | G65: 81 | H65: 329 | I65: 541 | J65: 0 | K65: 699 | L65: 169 | M65: 66 | N65: N/A | O65: 154 | P65: 810 | Q65: 639 | R65: 201 | S65: 441 | T65: 34 | U65: 210 | V65: 0 | W65: 7 | X65: 305 | Y65: 0 | Z65: 0 | AA65: 4238 | AB65: 806 | AC65: 43 | AD65: 201 | AE65: 0 | AF65: 713 | AG65: 0 | AH65: 12 | AI65: 0 | AJ65: 0 | AK65: 6297 | AL65: 0 | AM65: 3141 | AN65: 388 | AO65: 0 | AP65: 664 | AQ65: 27 | AR65: 0 | AS65: 8571 | AT65: 131 | AU65: 153 | AV65: 0 | AW65: 221 | AX65: 883 | AY65: 475 | AZ65: 0 | BA65: 1064 | BB65: 482 | BC65: 198 | BD65: 55 | BE65: 463 | BF65: 1008
A66: 2011 | B66: District of Columbia | C66: 611608 | D66: 489659 | E66: 66519 | F66: 48066 | G66: 13 | H66: 135 | I66: 43 | J66: 81 | K66: 3797 | L66: 452 | M66: 981 | N66: 128 | O66: N/A | P66: 1254 | Q66: 937 | R66: 372 | S66: 68 | T66: 1397 | U66: 128 | V66: 241 | W66: 6 | X66: 297 | Y66: 0 | Z66: 0 | AA66: 14129 | AB66: 2048 | AC66: 1108 | AD66: 409 | AE66: 83 | AF66: 112 | AG66: 38 | AH66: 79 | AI66: 238 | AJ66: 145 | AK66: 1035 | AL66: 0 | AM66: 2313 | AN66: 1716 | AO66: 285 | AP66: 306 | AQ66: 0 | AR66: 51 | AS66: 1589 | AT66: 50 | AU66: 357 | AV66: 104 | AW66: 421 | AX66: 1083 | AY66: 75 | AZ66: 445 | BA66: 7975 | BB66: 476 | BC66: 120 | BD66: 946 | BE66: 0 | BF66: 0
A67: 2011 | B67: Florida | C67: 18863948 | D67: 15742168 | E67: 2454255 | F67: 498597 | G67: 12635 | H67: 7405 | I67: 8451 | J67: 3025 | K67: 22420 | L67: 9383 | M67: 11704 | N67: 1264 | O67: 891 | P67: N/A | Q67: 38658 | R67: 3639 | S67: 312 | T67: 19152 | U67: 11472 | V67: 1846 | W67: 2661 | X67: 5441 | Y67: 6094 | Z67: 4689 | AA67: 15410 | AB67: 13701 | AC67: 19640 | AD67: 4663 | AE67: 5175 | AF67: 7114 | AG67: 559 | AH67: 3857 | AI67: 3527 | AJ67: 4324 | AK67: 25206 | AL67: 1376 | AM67: 59288 | AN67: 23983 | AO67: 514 | AP67: 18191 | AQ67: 2600 | AR67: 3315 | AS67: 20821 | AT67: 5002 | AU67: 11953 | AV67: 716 | AW67: 10451 | AX67: 25532 | AY67: 2343 | AZ67: 2019 | BA67: 16614 | BB67: 6339 | BC67: 4964 | BD67: 7412 | BE67: 846 | BF67: 21611
A68: 2011 | B68: Georgia | C68: 9699859 | D68: 8095407 | E68: 1289450 | F68: 271077 | G68: 18799 | H68: 1079 | I68: 4292 | J68: 2112 | K68: 14949 | L68: 2325 | M68: 709 | N68: 619 | O68: 364 | P68: 42666 | Q68: N/A | R68: 1006 | S68: 126 | T68: 6080 | U68: 2442 | V68: 950 | W68: 4513 | X68: 3686 | Y68: 6541 | Z68: 408 | AA68: 3708 | AB68: 4436 | AC68: 6992 | AD68: 1808 | AE68: 5380 | AF68: 2514 | AG68: 246 | AH68: 4144 | AI68: 774 | AJ68: 132 | AK68: 8371 | AL68: 791 | AM68: 14454 | AN68: 19138 | AO68: 201 | AP68: 6863 | AQ68: 1632 | AR68: 727 | AS68: 5791 | AT68: 337 | AU68: 16914 | AV68: 536 | AW68: 16898 | AX68: 15760 | AY68: 793 | AZ68: 361 | BA68: 9438 | BB68: 3701 | BC68: 1340 | BD68: 2727 | BE68: 504 | BF68: 1635
A69: 2011 | B69: Hawaii | C69: 1357806 | D69: 1160948 | E69: 122727 | F69: 57542 | G69: 1268 | H69: 844 | I69: 2900 | J69: 242 | K69: 10173 | L69: 950 | M69: 731 | N69: 784 | O69: 222 | P69: 3160 | Q69: 2519 | R69: N/A | S69: 112 | T69: 1884 | U69: 402 | V69: 478 | W69: 125 | X69: 18 | Y69: 179 | Z69: 106 | AA69: 341 | AB69: 92 | AC69: 1303 | AD69: 933 | AE69: 371 | AF69: 308 | AG69: 85 | AH69: 91 | AI69: 1548 | AJ69: 107 | AK69: 564 | AL69: 354 | AM69: 4246 | AN69: 2307 | AO69: 32 | AP69: 970 | AQ69: 685 | AR69: 2030 | AS69: 870 | AT69: 58 | AU69: 1681 | AV69: 0 | AW69: 636 | AX69: 3007 | AY69: 1040 | AZ69: 0 | BA69: 2523 | BB69: 3790 | BC69: 312 | BD69: 147 | BE69: 14 | BF69: 238
A70: 2011 | B70: Idaho | C70: 1559637 | D70: 1284530 | E70: 208434 | F70: 60336 | G70: 263 | H70: 4510 | I70: 3543 | J70: 224 | K70: 9021 | L70: 1813 | M70: 0 | N70: 0 | O70: 0 | P70: 1733 | Q70: 275 | R70: 254 | S70: N/A | T70: 390 | U70: 296 | V70: 318 | W70: 479 | X70: 120 | Y70: 51 | Z70: 0 | AA70: 0 | AB70: 396 | AC70: 615 | AD70: 566 | AE70: 62 | AF70: 384 | AG70: 1602 | AH70: 439 | AI70: 3581 | AJ70: 129 | AK70: 84 | AL70: 141 | AM70: 419 | AN70: 263 | AO70: 1201 | AP70: 260 | AQ70: 288 | AR70: 7170 | AS70: 343 | AT70: 0 | AU70: 55 | AV70: 842 | AW70: 296 | AX70: 1303 | AY70: 6059 | AZ70: 0 | BA70: 905 | BB70: 8991 | BC70: 0 | BD70: 165 | BE70: 487 | BF70: 249
A71: 2011 | B71: Illinois | C71: 12718402 | D71: 11076528 | E71: 1353853 | F71: 216204 | G71: 2823 | H71: 4119 | I71: 7657 | J71: 3185 | K71: 13930 | L71: 3271 | M71: 1819 | N71: 277 | O71: 1440 | P71: 17548 | Q71: 6042 | R71: 1269 | S71: 393 | T71: N/A | U71: 23491 | V71: 8420 | W71: 2533 | X71: 5569 | Y71: 1315 | Z71: 693 | AA71: 2565 | AB71: 3507 | AC71: 10274 | AD71: 4496 | AE71: 1521 | AF71: 13889 | AG71: 304 | AH71: 827 | AI71: 2454 | AJ71: 590 | AK71: 3009 | AL71: 1573 | AM71: 6412 | AN71: 4057 | AO71: 105 | AP71: 8384 | AQ71: 1002 | AR71: 792 | AS71: 3012 | AT71: 278 | AU71: 1582 | AV71: 1318 | AW71: 3223 | AX71: 11011 | AY71: 951 | AZ71: 49 | BA71: 5233 | BB71: 3075 | BC71: 352 | BD71: 14507 | BE71: 58 | BF71: 2387
A72: 2011 | B72: Indiana | C72: 6437155 | D72: 5478683 | E72: 809158 | F72: 127874 | G72: 1562 | H72: 371 | I72: 3975 | J72: 2016 | K72: 7649 | L72: 1930 | M72: 1227 | N72: 79 | O72: 0 | P72: 8595 | Q72: 2543 | R72: 1057 | S72: 1368 | T72: 23071 | U72: N/A | V72: 916 | W72: 1321 | X72: 10177 | Y72: 2241 | Z72: 275 | AA72: 480 | AB72: 952 | AC72: 7896 | AD72: 1168 | AE72: 469 | AF72: 1824 | AG72: 34 | AH72: 622 | AI72: 511 | AJ72: 90 | AK72: 651 | AL72: 504 | AM72: 2518 | AN72: 3038 | AO72: 70 | AP72: 11109 | AQ72: 844 | AR72: 505 | AS72: 3998 | AT72: 49 | AU72: 3306 | AV72: 235 | AW72: 3879 | AX72: 6326 | AY72: 123 | AZ72: 530 | BA72: 1486 | BB72: 1028 | BC72: 216 | BD72: 2923 | BE72: 117 | BF72: 132
A73: 2011 | B73: Iowa | C73: 3027718 | D73: 2573313 | E73: 370554 | F73: 70405 | G73: 207 | H73: 967 | I73: 1411 | J73: 433 | K73: 3297 | L73: 2891 | M73: 424 | N73: 0 | O73: 0 | P73: 707 | Q73: 1938 | R73: 299 | S73: 161 | T73: 13725 | U73: 349 | V73: N/A | W73: 1776 | X73: 387 | Y73: 228 | Z73: 26 | AA73: 487 | AB73: 466 | AC73: 1687 | AD73: 5634 | AE73: 408 | AF73: 3649 | AG73: 370 | AH73: 6490 | AI73: 2009 | AJ73: 0 | AK73: 185 | AL73: 421 | AM73: 2361 | AN73: 1760 | AO73: 604 | AP73: 993 | AQ73: 532 | AR73: 811 | AS73: 388 | AT73: 65 | AU73: 172 | AV73: 2842 | AW73: 623 | AX73: 2334 | AY73: 1482 | AZ73: 38 | BA73: 720 | BB73: 856 | BC73: 115 | BD73: 2537 | BE73: 140 | BF73: 57
A74: 2011 | B74: Kansas | C74: 2833584 | D74: 2372033 | E74: 362782 | F74: 83640 | G74: 434 | H74: 108 | I74: 2028 | J74: 998 | K74: 4743 | L74: 5030 | M74: 412 | N74: 74 | O74: 128 | P74: 1581 | Q74: 1146 | R74: 287 | S74: 264 | T74: 2760 | U74: 863 | V74: 1715 | W74: N/A | X74: 1167 | Y74: 519 | Z74: 481 | AA74: 3180 | AB74: 28 | AC74: 1947 | AD74: 679 | AE74: 1517 | AF74: 22033 | AG74: 270 | AH74: 1648 | AI74: 657 | AJ74: 27 | AK74: 1189 | AL74: 769 | AM74: 780 | AN74: 1223 | AO74: 379 | AP74: 1616 | AQ74: 5022 | AR74: 285 | AS74: 1494 | AT74: 180 | AU74: 1102 | AV74: 104 | AW74: 1066 | AX74: 6575 | AY74: 196 | AZ74: 0 | BA74: 1986 | BB74: 772 | BC74: 0 | BD74: 893 | BE74: 1285 | BF74: 775
A75: 2011 | B75: Kentucky | C75: 4316297 | D75: 3686232 | E75: 505741 | F75: 110031 | G75: 925 | H75: 0 | I75: 1818 | J75: 1058 | K75: 2130 | L75: 221 | M75: 176 | N75: 0 | O75: 201 | P75: 7400 | Q75: 2725 | R75: 63 | S75: 36 | T75: 4273 | U75: 11071 | V75: 536 | W75: 253 | X75: N/A | Y75: 1399 | Z75: 71 | AA75: 2076 | AB75: 1019 | AC75: 3178 | AD75: 475 | AE75: 1248 | AF75: 2793 | AG75: 216 | AH75: 471 | AI75: 1358 | AJ75: 52 | AK75: 1289 | AL75: 553 | AM75: 2174 | AN75: 3916 | AO75: 117 | AP75: 19617 | AQ75: 1256 | AR75: 459 | AS75: 1490 | AT75: 640 | AU75: 1387 | AV75: 0 | AW75: 16852 | AX75: 4661 | AY75: 140 | AZ75: 151 | BA75: 5154 | BB75: 1121 | BC75: 1174 | BD75: 581 | BE75: 57 | BF75: 192
A76: 2011 | B76: Louisiana | C76: 4518629 | D76: 3865118 | E76: 538691 | F76: 99138 | G76: 3065 | H76: 288 | I76: 2010 | J76: 2774 | K76: 3957 | L76: 1202 | M76: 358 | N76: 0 | O76: 195 | P76: 5193 | Q76: 4425 | R76: 688 | S76: 230 | T76: 1189 | U76: 1549 | V76: 468 | W76: 312 | X76: 1520 | Y76: N/A | Z76: 120 | AA76: 1221 | AB76: 439 | AC76: 1163 | AD76: 698 | AE76: 10255 | AF76: 1375 | AG76: 278 | AH76: 176 | AI76: 994 | AJ76: 15 | AK76: 453 | AL76: 1028 | AM76: 1360 | AN76: 2134 | AO76: 277 | AP76: 2641 | AQ76: 4235 | AR76: 1531 | AS76: 455 | AT76: 268 | AU76: 1573 | AV76: 37 | AW76: 2495 | AX76: 30292 | AY76: 179 | AZ76: 87 | BA76: 2055 | BB76: 1075 | BC76: 110 | BD76: 339 | BE76: 357 | BF76: 393
A77: 2011 | B77: Maine | C77: 1315833 | D77: 1120364 | E77: 157102 | F77: 33818 | G77: 634 | H77: 37 | I77: 325 | J77: 38 | K77: 829 | L77: 290 | M77: 2481 | N77: 238 | O77: 239 | P77: 4304 | Q77: 507 | R77: 177 | S77: 0 | T77: 675 | U77: 164 | V77: 275 | W77: 523 | X77: 158 | Y77: 138 | Z77: N/A | AA77: 52 | AB77: 4439 | AC77: 702 | AD77: 296 | AE77: 0 | AF77: 325 | AG77: 10 | AH77: 0 | AI77: 150 | AJ77: 4302 | AK77: 694 | AL77: 144 | AM77: 2589 | AN77: 1439 | AO77: 19 | AP77: 483 | AQ77: 25 | AR77: 471 | AS77: 915 | AT77: 234 | AU77: 587 | AV77: 42 | AW77: 394 | AX77: 1637 | AY77: 182 | AZ77: 612 | BA77: 570 | BB77: 88 | BC77: 43 | BD77: 321 | BE77: 21 | BF77: 65
A78: 2011 | B78: Maryland | C78: 5759087 | D78: 5008452 | E78: 553895 | F78: 153979 | G78: 228 | H78: 671 | I78: 945 | J78: 423 | K78: 8595 | L78: 1796 | M78: 1608 | N78: 6652 | O78: 18492 | P78: 7825 | Q78: 7113 | R78: 1170 | S78: 389 | T78: 2392 | U78: 1318 | V78: 110 | W78: 689 | X78: 848 | Y78: 860 | Z78: 1526 | AA78: N/A | AB78: 3470 | AC78: 2077 | AD78: 810 | AE78: 1109 | AF78: 1469 | AG78: 73 | AH78: 0 | AI78: 1105 | AJ78: 232 | AK78: 9627 | AL78: 797 | AM78: 9222 | AN78: 6686 | AO78: 0 | AP78: 3396 | AQ78: 845 | AR78: 276 | AS78: 14158 | AT78: 197 | AU78: 2882 | AV78: 0 | AW78: 1942 | AX78: 3619 | AY78: 223 | AZ78: 40 | BA78: 22089 | BB78: 1525 | BC78: 2027 | BD78: 353 | BE78: 80 | BF78: 779
A79: 2011 | B79: Massachusetts | C79: 6515057 | D79: 5658768 | E79: 656441 | F79: 139830 | G79: 1201 | H79: 225 | I79: 1017 | J79: 167 | K79: 11556 | L79: 1388 | M79: 9445 | N79: 399 | O79: 676 | P79: 11396 | Q79: 3264 | R79: 733 | S79: 412 | T79: 2991 | U79: 640 | V79: 138 | W79: 969 | X79: 180 | Y79: 977 | Z79: 4006 | AA79: 2762 | AB79: N/A | AC79: 2629 | AD79: 862 | AE79: 356 | AF79: 1261 | AG79: 596 | AH79: 637 | AI79: 163 | AJ79: 12010 | AK79: 8332 | AL79: 199 | AM79: 19431 | AN79: 3964 | AO79: 61 | AP79: 1757 | AQ79: 90 | AR79: 178 | AS79: 6538 | AT79: 10182 | AU79: 1621 | AV79: 44 | AW79: 371 | AX79: 5203 | AY79: 548 | AZ79: 2246 | BA79: 2984 | BB79: 1673 | BC79: 911 | BD79: 441 | BE79: 0 | BF79: 4413
A80: 2011 | B80: Michigan | C80: 9766574 | D80: 8340767 | E80: 1242917 | F80: 139158 | G80: 3527 | H80: 3456 | I80: 3840 | J80: 2054 | K80: 7793 | L80: 3425 | M80: 1656 | N80: 0 | O80: 256 | P80: 17712 | Q80: 4254 | R80: 630 | S80: 882 | T80: 9897 | U80: 7668 | V80: 1709 | W80: 1148 | X80: 2578 | Y80: 955 | Z80: 599 | AA80: 1035 | AB80: 2861 | AC80: N/A | AD80: 2671 | AE80: 715 | AF80: 2509 | AG80: 84 | AH80: 439 | AI80: 1215 | AJ80: 73 | AK80: 1849 | AL80: 508 | AM80: 6087 | AN80: 3405 | AO80: 159 | AP80: 11224 | AQ80: 917 | AR80: 647 | AS80: 2864 | AT80: 385 | AU80: 2185 | AV80: 571 | AW80: 3106 | AX80: 9935 | AY80: 642 | AZ80: 0 | BA80: 2327 | BB80: 1430 | BC80: 417 | BD80: 4018 | BE80: 841 | BF80: 908
A81: 2011 | B81: Minnesota | C81: 5277329 | D81: 4505462 | E81: 646176 | F81: 101029 | G81: 123 | H81: 893 | I81: 2314 | J81: 951 | K81: 6638 | L81: 2662 | M81: 74 | N81: 86 | O81: 367 | P81: 2820 | Q81: 840 | R81: 901 | S81: 402 | T81: 8209 | U81: 786 | V81: 6175 | W81: 606 | X81: 755 | Y81: 573 | Z81: 321 | AA81: 424 | AB81: 970 | AC81: 5164 | AD81: N/A | AE81: 549 | AF81: 1345 | AG81: 1457 | AH81: 1936 | AI81: 2682 | AJ81: 21 | AK81: 631 | AL81: 540 | AM81: 2416 | AN81: 845 | AO81: 7574 | AP81: 1961 | AQ81: 546 | AR81: 1800 | AS81: 870 | AT81: 0 | AU81: 447 | AV81: 5305 | AW81: 874 | AX81: 3062 | AY81: 919 | AZ81: 177 | BA81: 1034 | BB81: 1413 | BC81: 92 | BD81: 19255 | BE81: 224 | BF81: 54
A82: 2011 | B82: Mississippi | C82: 2943021 | D82: 2534036 | E82: 332934 | F82: 68511 | G82: 8922 | H82: 117 | I82: 556 | J82: 2315 | K82: 4723 | L82: 484 | M82: 54 | N82: 0 | O82: 415 | P82: 6152 | Q82: 3136 | R82: 369 | S82: 55 | T82: 2068 | U82: 611 | V82: 650 | W82: 66 | X82: 1626 | Y82: 7139 | Z82: 0 | AA82: 265 | AB82: 1445 | AC82: 1610 | AD82: 614 | AE82: N/A | AF82: 1581 | AG82: 0 | AH82: 118 | AI82: 84 | AJ82: 65 | AK82: 269 | AL82: 1075 | AM82: 364 | AN82: 483 | AO82: 0 | AP82: 991 | AQ82: 566 | AR82: 74 | AS82: 2568 | AT82: 41 | AU82: 398 | AV82: 6 | AW82: 7683 | AX82: 5243 | AY82: 332 | AZ82: 0 | BA82: 1453 | BB82: 286 | BC82: 303 | BD82: 1136 | BE82: 0 | BF82: 318
A83: 2011 | B83: Missouri | C83: 5937896 | D83: 4963040 | E83: 801046 | F83: 149439 | G83: 1395 | H83: 2043 | I83: 2356 | J83: 6168 | K83: 8386 | L83: 3144 | M83: 1516 | N83: 0 | O83: 215 | P83: 4513 | Q83: 2964 | R83: 871 | S83: 560 | T83: 20161 | U83: 4404 | V83: 4811 | W83: 20884 | X83: 1993 | Y83: 1728 | Z83: 291 | AA83: 716 | AB83: 463 | AC83: 2830 | AD83: 2026 | AE83: 1641 | AF83: N/A | AG83: 845 | AH83: 4860 | AI83: 1544 | AJ83: 769 | AK83: 1114 | AL83: 1016 | AM83: 2904 | AN83: 3669 | AO83: 977 | AP83: 3240 | AQ83: 6073 | AR83: 777 | AS83: 1810 | AT83: 359 | AU83: 267 | AV83: 361 | AW83: 2676 | AX83: 10293 | AY83: 1697 | AZ83: 88 | BA83: 2684 | BB83: 2518 | BC83: 196 | BD83: 1503 | BE83: 1120 | BF83: 709
A84: 2011 | B84: Montana | C84: 987076 | D84: 828254 | E84: 122210 | F84: 33553 | G84: 449 | H84: 1118 | I84: 1971 | J84: 49 | K84: 3033 | L84: 2856 | M84: 58 | N84: 365 | O84: 0 | P84: 291 | Q84: 231 | R84: 32 | S84: 1543 | T84: 765 | U84: 646 | V84: 417 | W84: 845 | X84: 0 | Y84: 0 | Z84: 71 | AA84: 57 | AB84: 10 | AC84: 353 | AD84: 969 | AE84: 0 | AF84: 158 | AG84: N/A | AH84: 384 | AI84: 688 | AJ84: 0 | AK84: 889 | AL84: 264 | AM84: 422 | AN84: 1173 | AO84: 360 | AP84: 321 | AQ84: 96 | AR84: 1959 | AS84: 840 | AT84: 0 | AU84: 77 | AV84: 227 | AW84: 266 | AX84: 1329 | AY84: 1232 | AZ84: 53 | BA84: 278 | BB84: 3835 | BC84: 14 | BD84: 146 | BE84: 2413 | BF84: 353
A85: 2011 | B85: Nebraska | C85: 1817126 | D85: 1505191 | E85: 253269 | F85: 52070 | G85: 169 | H85: 721 | I85: 1646 | J85: 161 | K85: 5124 | L85: 3245 | M85: 381 | N85: 0 | O85: 29 | P85: 1105 | Q85: 434 | R85: 275 | S85: 506 | T85: 1415 | U85: 615 | V85: 9575 | W85: 3040 | X85: 352 | Y85: 222 | Z85: 122 | AA85: 318 | AB85: 0 | AC85: 683 | AD85: 1455 | AE85: 424 | AF85: 1848 | AG85: 64 | AH85: N/A | AI85: 240 | AJ85: 0 | AK85: 119 | AL85: 242 | AM85: 544 | AN85: 829 | AO85: 292 | AP85: 268 | AQ85: 1255 | AR85: 1556 | AS85: 252 | AT85: 0 | AU85: 243 | AV85: 2999 | AW85: 226 | AX85: 5343 | AY85: 734 | AZ85: 0 | BA85: 615 | BB85: 835 | BC85: 24 | BD85: 560 | BE85: 965 | BF85: 0
A86: 2011 | B86: Nevada | C86: 2688336 | D86: 2084668 | E86: 480317 | F86: 110345 | G86: 280 | H86: 597 | I86: 10142 | J86: 310 | K86: 40114 | L86: 2714 | M86: 189 | N86: 184 | O86: 983 | P86: 2923 | Q86: 1731 | R86: 4093 | S86: 3929 | T86: 1668 | U86: 855 | V86: 114 | W86: 602 | X86: 628 | Y86: 78 | Z86: 49 | AA86: 931 | AB86: 256 | AC86: 1663 | AD86: 1055 | AE86: 203 | AF86: 335 | AG86: 1137 | AH86: 32 | AI86: N/A | AJ86: 0 | AK86: 2118 | AL86: 2136 | AM86: 1516 | AN86: 1333 | AO86: 0 | AP86: 1354 | AQ86: 258 | AR86: 1691 | AS86: 570 | AT86: 86 | AU86: 165 | AV86: 588 | AW86: 96 | AX86: 7249 | AY86: 3365 | AZ86: 0 | BA86: 1740 | BB86: 4680 | BC86: 0 | BD86: 2672 | BE86: 933 | BF86: 153
A87: 2011 | B87: New Hampshire | C87: 1305678 | D87: 1141236 | E87: 122129 | F87: 37000 | G87: 193 | H87: 0 | I87: 246 | J87: 22 | K87: 547 | L87: 403 | M87: 1617 | N87: 20 | O87: 68 | P87: 1970 | Q87: 535 | R87: 0 | S87: 0 | T87: 478 | U87: 470 | V87: 47 | W87: 0 | X87: 0 | Y87: 0 | Z87: 3080 | AA87: 222 | AB87: 15526 | AC87: 155 | AD87: 104 | AE87: 160 | AF87: 153 | AG87: 230 | AH87: 33 | AI87: 186 | AJ87: N/A | AK87: 294 | AL87: 186 | AM87: 1471 | AN87: 1297 | AO87: 47 | AP87: 248 | AQ87: 0 | AR87: 198 | AS87: 1015 | AT87: 608 | AU87: 588 | AV87: 86 | AW87: 126 | AX87: 605 | AY87: 158 | AZ87: 2138 | BA87: 880 | BB87: 428 | BC87: 0 | BD87: 0 | BE87: 162 | BF87: 0
A88: 2011 | B88: New Jersey | C88: 8719952 | D88: 7825661 | E88: 693380 | F88: 140194 | G88: 189 | H88: 1198 | I88: 3784 | J88: 57 | K88: 5986 | L88: 2203 | M88: 1924 | N88: 2100 | O88: 781 | P88: 12907 | Q88: 4268 | R88: 264 | S88: 256 | T88: 3690 | U88: 718 | V88: 332 | W88: 317 | X88: 102 | Y88: 871 | Z88: 624 | AA88: 5335 | AB88: 4675 | AC88: 1889 | AD88: 1261 | AE88: 510 | AF88: 583 | AG88: 49 | AH88: 312 | AI88: 899 | AJ88: 499 | AK88: N/A | AL88: 355 | AM88: 40815 | AN88: 2482 | AO88: 61 | AP88: 1121 | AQ88: 773 | AR88: 360 | AS88: 19733 | AT88: 463 | AU88: 1586 | AV88: 0 | AW88: 1412 | AX88: 3801 | AY88: 256 | AZ88: 0 | BA88: 4458 | BB88: 2454 | BC88: 1252 | BD88: 214 | BE88: 15 | BF88: 4312
A89: 2011 | B89: New Mexico | C89: 2055293 | D89: 1753413 | E89: 228218 | F89: 62130 | G89: 410 | H89: 416 | I89: 7444 | J89: 682 | K89: 7066 | L89: 5525 | M89: 0 | N89: 0 | O89: 212 | P89: 2806 | Q89: 676 | R89: 81 | S89: 355 | T89: 466 | U89: 2030 | V89: 0 | W89: 1333 | X89: 87 | Y89: 184 | Z89: 510 | AA89: 2277 | AB89: 252 | AC89: 908 | AD89: 438 | AE89: 556 | AF89: 1183 | AG89: 544 | AH89: 353 | AI89: 2099 | AJ89: 114 | AK89: 245 | AL89: N/A | AM89: 1445 | AN89: 522 | AO89: 264 | AP89: 1742 | AQ89: 234 | AR89: 916 | AS89: 492 | AT89: 0 | AU89: 145 | AV89: 240 | AW89: 899 | AX89: 13633 | AY89: 303 | AZ89: 71 | BA89: 425 | BB89: 924 | BC89: 0 | BD89: 340 | BE89: 283 | BF89: 99
A90: 2011 | B90: New York | C90: 19248685 | D90: 17055260 | E90: 1756105 | F90: 282209 | G90: 1812 | H90: 6124 | I90: 2821 | J90: 1041 | K90: 25761 | L90: 3724 | M90: 15123 | N90: 1124 | O90: 3702 | P90: 29344 | Q90: 10584 | R90: 1002 | S90: 434 | T90: 6914 | U90: 2198 | V90: 928 | W90: 838 | X90: 2414 | Y90: 1495 | Z90: 2915 | AA90: 5037 | AB90: 14646 | AC90: 3936 | AD90: 1824 | AE90: 401 | AF90: 1417 | AG90: 391 | AH90: 579 | AI90: 1785 | AJ90: 2972 | AK90: 41450 | AL90: 461 | AM90: N/A | AN90: 9336 | AO90: 374 | AP90: 5191 | AQ90: 1425 | AR90: 2189 | AS90: 26596 | AT90: 1393 | AU90: 6947 | AV90: 112 | AW90: 2660 | AX90: 9151 | AY90: 773 | AZ90: 3882 | BA90: 10800 | BB90: 2986 | BC90: 631 | BD90: 1878 | BE90: 688 | BF90: 10582
A91: 2011 | B91: North Carolina | C91: 9539412 | D91: 8070238 | E91: 1160510 | F91: 265291 | G91: 5420 | H91: 3991 | I91: 4286 | J91: 327 | K91: 15373 | L91: 3919 | M91: 1975 | N91: 954 | O91: 1135 | P91: 28044 | Q91: 16192 | R91: 1806 | S91: 675 | T91: 5971 | U91: 3228 | V91: 654 | W91: 4995 | X91: 1637 | Y91: 2936 | Z91: 824 | AA91: 10485 | AB91: 9053 | AC91: 7530 | AD91: 1294 | AE91: 1273 | AF91: 2638 | AG91: 563 | AH91: 1056 | AI91: 1048 | AJ91: 2078 | AK91: 10374 | AL91: 1737 | AM91: 18321 | AN91: N/A | AO91: 189 | AP91: 10187 | AQ91: 1390 | AR91: 1175 | AS91: 9450 | AT91: 444 | AU91: 20427 | AV91: 565 | AW91: 6057 | AX91: 6621 | AY91: 961 | AZ91: 212 | BA91: 27302 | BB91: 3295 | BC91: 2780 | BD91: 2291 | BE91: 153 | BF91: 844
A92: 2011 | B92: North Dakota | C92: 675161 | D92: 559906 | E92: 79837 | F92: 32510 | G92: 97 | H92: 393 | I92: 1313 | J92: 249 | K92: 1356 | L92: 1229 | M92: 0 | N92: 84 | O92: 0 | P92: 459 | Q92: 364 | R92: 138 | S92: 1209 | T92: 571 | U92: 130 | V92: 208 | W92: 75 | X92: 0 | Y92: 422 | Z92: 50 | AA92: 10 | AB92: 369 | AC92: 328 | AD92: 12244 | AE92: 80 | AF92: 330 | AG92: 1227 | AH92: 218 | AI92: 845 | AJ92: 0 | AK92: 183 | AL92: 99 | AM92: 264 | AN92: 900 | AO92: N/A | AP92: 286 | AQ92: 59 | AR92: 264 | AS92: 652 | AT92: 0 | AU92: 1 | AV92: 1293 | AW92: 113 | AX92: 1862 | AY92: 429 | AZ92: 0 | BA92: 166 | BB92: 404 | BC92: 0 | BD92: 1398 | BE92: 139 | BF92: 76
A93: 2011 | B93: Ohio | C93: 11418944 | D93: 9764366 | E93: 1425709 | F93: 191778 | G93: 1567 | H93: 1637 | I93: 6763 | J93: 1952 | K93: 9032 | L93: 2690 | M93: 1189 | N93: 263 | O93: 587 | P93: 16492 | Q93: 4290 | R93: 1044 | S93: 312 | T93: 7027 | U93: 11588 | V93: 1146 | W93: 657 | X93: 12744 | Y93: 1872 | Z93: 0 | AA93: 4982 | AB93: 2101 | AC93: 14330 | AD93: 1788 | AE93: 691 | AF93: 2003 | AG93: 101 | AH93: 1176 | AI93: 1851 | AJ93: 1992 | AK93: 3936 | AL93: 255 | AM93: 8784 | AN93: 4572 | AO93: 204 | AP93: N/A | AQ93: 2333 | AR93: 1326 | AS93: 14292 | AT93: 369 | AU93: 3826 | AV93: 34 | AW93: 6468 | AX93: 11987 | AY93: 691 | AZ93: 68 | BA93: 5425 | BB93: 1979 | BC93: 7548 | BD93: 2534 | BE93: 1280 | BF93: 1607
A94: 2011 | B94: Oklahoma | C94: 3742698 | D94: 3089041 | E94: 528498 | F94: 108878 | G94: 591 | H94: 1137 | I94: 3770 | J94: 6894 | K94: 8233 | L94: 3273 | M94: 97 | N94: 66 | O94: 191 | P94: 6056 | Q94: 3514 | R94: 140 | S94: 21 | T94: 2179 | U94: 2113 | V94: 580 | W94: 4626 | X94: 1398 | Y94: 1934 | Z94: 271 | AA94: 432 | AB94: 160 | AC94: 1038 | AD94: 497 | AE94: 199 | AF94: 5781 | AG94: 803 | AH94: 1979 | AI94: 705 | AJ94: 0 | AK94: 391 | AL94: 403 | AM94: 1858 | AN94: 1322 | AO94: 928 | AP94: 1608 | AQ94: N/A | AR94: 917 | AS94: 1116 | AT94: 152 | AU94: 2015 | AV94: 600 | AW94: 1700 | AX94: 31595 | AY94: 587 | AZ94: 0 | BA94: 1013 | BB94: 1246 | BC94: 44 | BD94: 942 | BE94: 1763 | BF94: 105
A95: 2011 | B95: Oregon | C95: 3828714 | D95: 3128121 | E95: 549332 | F95: 127906 | G95: 758 | H95: 1935 | I95: 7911 | J95: 988 | K95: 34214 | L95: 2110 | M95: 949 | N95: 251 | O95: 349 | P95: 3384 | Q95: 1946 | R95: 2491 | S95: 6236 | T95: 1350 | U95: 1371 | V95: 659 | W95: 1263 | X95: 71 | Y95: 0 | Z95: 269 | AA95: 453 | AB95: 1423 | AC95: 1652 | AD95: 1413 | AE95: 7 | AF95: 1172 | AG95: 1079 | AH95: 324 | AI95: 7222 | AJ95: 427 | AK95: 1322 | AL95: 537 | AM95: 2056 | AN95: 1099 | AO95: 313 | AP95: 949 | AQ95: 2034 | AR95: N/A | AS95: 1407 | AT95: 0 | AU95: 370 | AV95: 417 | AW95: 673 | AX95: 4498 | AY95: 3443 | AZ95: 176 | BA95: 1179 | BB95: 21862 | BC95: 66 | BD95: 914 | BE95: 914 | BF95: 4
A96: 2011 | B96: Pennsylvania | C96: 12610486 | D96: 11099077 | E96: 1224564 | F96: 234291 | G96: 1332 | H96: 759 | I96: 2278 | J96: 582 | K96: 10672 | L96: 2491 | M96: 4150 | N96: 5177 | O96: 1401 | P96: 19299 | Q96: 4627 | R96: 495 | S96: 236 | T96: 3902 | U96: 4086 | V96: 1176 | W96: 2323 | X96: 4013 | Y96: 615 | Z96: 608 | AA96: 17751 | AB96: 6284 | AC96: 4406 | AD96: 853 | AE96: 1238 | AF96: 1761 | AG96: 338 | AH96: 582 | AI96: 1057 | AJ96: 1326 | AK96: 36133 | AL96: 325 | AM96: 29436 | AN96: 11254 | AO96: 195 | AP96: 13075 | AQ96: 283 | AR96: 1594 | AS96: N/A | AT96: 799 | AU96: 3438 | AV96: 142 | AW96: 3742 | AX96: 7006 | AY96: 1246 | AZ96: 446 | BA96: 8419 | BB96: 3688 | BC96: 4631 | BD96: 2426 | BE96: 195 | BF96: 2723
A97: 2011 | B97: Rhode Island | C97: 1040022 | D97: 903786 | E97: 101689 | F97: 26769 | G97: 0 | H97: 0 | I97: 214 | J97: 0 | K97: 1949 | L97: 301 | M97: 2613 | N97: 0 | O97: 0 | P97: 2230 | Q97: 476 | R97: 0 | S97: 107 | T97: 373 | U97: 41 | V97: 82 | W97: 374 | X97: 211 | Y97: 121 | Z97: 228 | AA97: 472 | AB97: 7715 | AC97: 178 | AD97: 27 | AE97: 0 | AF97: 109 | AG97: 0 | AH97: 0 | AI97: 0 | AJ97: 941 | AK97: 1224 | AL97: 93 | AM97: 2776 | AN97: 259 | AO97: 0 | AP97: 60 | AQ97: 0 | AR97: 57 | AS97: 1125 | AT97: N/A | AU97: 223 | AV97: 0 | AW97: 210 | AX97: 207 | AY97: 181 | AZ97: 621 | BA97: 485 | BB97: 262 | BC97: 199 | BD97: 2 | BE97: 23 | BF97: 293
A98: 2011 | B98: South Carolina | C98: 4624180 | D98: 3899705 | E98: 546666 | F98: 157644 | G98: 2999 | H98: 2421 | I98: 1971 | J98: 1333 | K98: 6592 | L98: 1000 | M98: 1752 | N98: 841 | O98: 589 | P98: 15476 | Q98: 16355 | R98: 712 | S98: 55 | T98: 2371 | U98: 3249 | V98: 1379 | W98: 1885 | X98: 2454 | Y98: 878 | Z98: 652 | AA98: 3807 | AB98: 730 | AC98: 4483 | AD98: 471 | AE98: 2163 | AF98: 1522 | AG98: 915 | AH98: 204 | AI98: 1017 | AJ98: 372 | AK98: 4241 | AL98: 598 | AM98: 11317 | AN98: 23102 | AO98: 271 | AP98: 6327 | AQ98: 1008 | AR98: 833 | AS98: 3523 | AT98: 453 | AU98: N/A | AV98: 62 | AW98: 3324 | AX98: 8623 | AY98: 181 | AZ98: 91 | BA98: 7879 | BB98: 2510 | BC98: 1680 | BD98: 341 | BE98: 632 | BF98: 2166
A99: 2011 | B99: South Dakota | C99: 814175 | D99: 688436 | E99: 94655 | F99: 27506 | G99: 0 | H99: 554 | I99: 1422 | J99: 659 | K99: 1286 | L99: 1021 | M99: 0 | N99: 0 | O99: 0 | P99: 101 | Q99: 69 | R99: 0 | S99: 186 | T99: 267 | U99: 285 | V99: 4772 | W99: 144 | X99: 211 | Y99: 0 | Z99: 0 | AA99: 254 | AB99: 113 | AC99: 239 | AD99: 5342 | AE99: 129 | AF99: 354 | AG99: 232 | AH99: 1695 | AI99: 110 | AJ99: 0 | AK99: 441 | AL99: 513 | AM99: 6 | AN99: 166 | AO99: 2060 | AP99: 84 | AQ99: 40 | AR99: 15 | AS99: 57 | AT99: 7 | AU99: 529 | AV99: N/A | AW99: 0 | AX99: 1156 | AY99: 560 | AZ99: 0 | BA99: 79 | BB99: 557 | BC99: 0 | BD99: 481 | BE99: 1310 | BF99: 0
A100: 2011 | B100: Tennessee | C100: 6333466 | D100: 5342978 | E100: 794556 | F100: 170969 | G100: 9326 | H100: 531 | I100: 1346 | J100: 7393 | K100: 7130 | L100: 1372 | M100: 150 | N100: 155 | O100: 307 | P100: 15491 | Q100: 17507 | R100: 179 | S100: 0 | T100: 8593 | U100: 5645 | V100: 387 | W100: 1805 | X100: 13884 | Y100: 1901 | Z100: 9 | AA100: 1135 | AB100: 1690 | AC100: 5983 | AD100: 445 | AE100: 9172 | AF100: 3795 | AG100: 43 | AH100: 631 | AI100: 883 | AJ100: 132 | AK100: 1396 | AL100: 381 | AM100: 4921 | AN100: 9353 | AO100: 50 | AP100: 5944 | AQ100: 3166 | AR100: 726 | AS100: 3360 | AT100: 14 | AU100: 5531 | AV100: 181 | AW100: N/A | AX100: 7009 | AY100: 200 | AZ100: 38 | BA100: 6098 | BB100: 2852 | BC100: 1385 | BD100: 1213 | BE100: 131 | BF100: 1083
A101: 2011 | B101: Texas | C101: 25327104 | D101: 20984855 | E101: 3648260 | F101: 514726 | G101: 8747 | H101: 6670 | I101: 20073 | J101: 16461 | K101: 58992 | L101: 19126 | M101: 2927 | N101: 884 | O101: 2276 | P101: 35777 | Q101: 17401 | R101: 6106 | S101: 4379 | T101: 15064 | U101: 10265 | V101: 3236 | W101: 12766 | X101: 6616 | Y101: 25513 | Z101: 1357 | AA101: 9443 | AB101: 5035 | AC101: 15654 | AD101: 7691 | AE101: 6048 | AF101: 13473 | AG101: 537 | AH101: 3837 | AI101: 7793 | AJ101: 459 | AK101: 7578 | AL101: 15225 | AM101: 26155 | AN101: 14956 | AO101: 809 | AP101: 12315 | AQ101: 19302 | AR101: 3743 | AS101: 9107 | AT101: 1297 | AU101: 4075 | AV101: 1486 | AW101: 10788 | AX101: N/A | AY101: 5234 | AZ101: 349 | BA101: 13231 | BB101: 15325 | BC101: 663 | BD101: 5982 | BE101: 2500 | BF101: 5225
A102: 2011 | B102: Utah | C102: 2769627 | D102: 2295961 | E102: 373984 | F102: 85217 | G102: 486 | H102: 2151 | I102: 6585 | J102: 422 | K102: 18237 | L102: 3986 | M102: 562 | N102: 0 | O102: 132 | P102: 1643 | Q102: 1052 | R102: 1701 | S102: 7538 | T102: 1447 | U102: 545 | V102: 290 | W102: 1146 | X102: 611 | Y102: 494 | Z102: 0 | AA102: 342 | AB102: 959 | AC102: 1099 | AD102: 939 | AE102: 143 | AF102: 511 | AG102: 1241 | AH102: 195 | AI102: 4315 | AJ102: 34 | AK102: 506 | AL102: 1707 | AM102: 1937 | AN102: 1653 | AO102: 2 | AP102: 2584 | AQ102: 150 | AR102: 2037 | AS102: 1496 | AT102: 0 | AU102: 309 | AV102: 128 | AW102: 549 | AX102: 4507 | AY102: N/A | AZ102: 122 | BA102: 2413 | BB102: 4825 | BC102: 270 | BD102: 158 | BE102: 1058 | BF102: 0
A103: 2011 | B103: Vermont | C103: 621354 | D103: 537304 | E103: 60719 | F103: 20463 | G103: 0 | H103: 580 | I103: 310 | J103: 0 | K103: 819 | L103: 529 | M103: 2105 | N103: 107 | O103: 27 | P103: 366 | Q103: 101 | R103: 143 | S103: 0 | T103: 386 | U103: 258 | V103: 0 | W103: 7 | X103: 627 | Y103: 41 | Z103: 322 | AA103: 361 | AB103: 2378 | AC103: 335 | AD103: 206 | AE103: 0 | AF103: 69 | AG103: 0 | AH103: 0 | AI103: 15 | AJ103: 2244 | AK103: 962 | AL103: 56 | AM103: 3723 | AN103: 250 | AO103: 0 | AP103: 383 | AQ103: 0 | AR103: 124 | AS103: 389 | AT103: 401 | AU103: 21 | AV103: 0 | AW103: 327 | AX103: 185 | AY103: 182 | AZ103: N/A | BA103: 740 | BB103: 156 | BC103: 53 | BD103: 137 | BE103: 38 | BF103: 19
A104: 2011 | B104: Virginia | C104: 7996552 | D104: 6789620 | E104: 889751 | F104: 257130 | G104: 4930 | H104: 3202 | I104: 4679 | J104: 645 | K104: 19371 | L104: 4908 | M104: 5376 | N104: 961 | O104: 6854 | P104: 17773 | Q104: 8715 | R104: 2917 | S104: 434 | T104: 4000 | U104: 2703 | V104: 1503 | W104: 892 | X104: 3630 | Y104: 2496 | Z104: 2855 | AA104: 22051 | AB104: 5386 | AC104: 7323 | AD104: 834 | AE104: 1682 | AF104: 2277 | AG104: 617 | AH104: 256 | AI104: 1717 | AJ104: 1344 | AK104: 7327 | AL104: 1014 | AM104: 12455 | AN104: 22753 | AO104: 462 | AP104: 9570 | AQ104: 853 | AR104: 3499 | AS104: 12009 | AT104: 1897 | AU104: 6612 | AV104: 908 | AW104: 7482 | AX104: 11655 | AY104: 1426 | AZ104: 173 | BA104: N/A | BB104: 4615 | BC104: 9041 | BD104: 858 | BE104: 190 | BF104: 1222
A105: 2011 | B105: Washington | C105: 6748474 | D105: 5565069 | E105: 919925 | F105: 208507 | G105: 1821 | H105: 5266 | I105: 12397 | J105: 756 | K105: 38421 | L105: 3938 | M105: 1026 | N105: 0 | O105: 358 | P105: 6094 | Q105: 8705 | R105: 5940 | S105: 10895 | T105: 2062 | U105: 2303 | V105: 1000 | W105: 2820 | X105: 1271 | Y105: 1016 | Z105: 1313 | AA105: 1899 | AB105: 1580 | AC105: 3720 | AD105: 1543 | AE105: 1110 | AF105: 3307 | AG105: 2125 | AH105: 673 | AI105: 4925 | AJ105: 824 | AK105: 2006 | AL105: 1569 | AM105: 4512 | AN105: 3870 | AO105: 189 | AP105: 2686 | AQ105: 765 | AR105: 29168 | AS105: 2296 | AT105: 463 | AU105: 1519 | AV105: 227 | AW105: 2342 | AX105: 15491 | AY105: 4789 | AZ105: 119 | BA105: 4233 | BB105: N/A | BC105: 157 | BD105: 1491 | BE105: 1507 | BF105: 1083
A106: 2011 | B106: West Virginia | C106: 1836614 | D106: 1609110 | E106: 172262 | F106: 50068 | G106: 221 | H106: 598 | I106: 50 | J106: 225 | K106: 1442 | L106: 124 | M106: 594 | N106: 89 | O106: 300 | P106: 2949 | Q106: 1296 | R106: 147 | S106: 120 | T106: 1331 | U106: 210 | V106: 0 | W106: 0 | X106: 515 | Y106: 326 | Z106: 45 | AA106: 7515 | AB106: 236 | AC106: 459 | AD106: 0 | AE106: 0 | AF106: 309 | AG106: 60 | AH106: 78 | AI106: 293 | AJ106: 160 | AK106: 1431 | AL106: 0 | AM106: 2017 | AN106: 3865 | AO106: 0 | AP106: 8545 | AQ106: 97 | AR106: 132 | AS106: 4205 | AT106: 284 | AU106: 1857 | AV106: 0 | AW106: 546 | AX106: 1574 | AY106: 114 | AZ106: 23 | BA106: 5561 | BB106: 83 | BC106: N/A | BD106: 42 | BE106: 0 | BF106: 680
A107: 2011 | B107: Wisconsin | C107: 5647213 | D107: 4846550 | E107: 675623 | F107: 109439 | G107: 708 | H107: 432 | I107: 4045 | J107: 335 | K107: 6637 | L107: 2592 | M107: 993 | N107: 219 | O107: 123 | P107: 4338 | Q107: 1745 | R107: 1108 | S107: 566 | T107: 25521 | U107: 4017 | V107: 3306 | W107: 418 | X107: 1040 | Y107: 850 | Z107: 12 | AA107: 147 | AB107: 733 | AC107: 5623 | AD107: 17927 | AE107: 983 | AF107: 2090 | AG107: 143 | AH107: 483 | AI107: 663 | AJ107: 480 | AK107: 378 | AL107: 714 | AM107: 2213 | AN107: 2120 | AO107: 1383 | AP107: 1358 | AQ107: 118 | AR107: 1057 | AS107: 1294 | AT107: 368 | AU107: 377 | AV107: 590 | AW107: 744 | AX107: 1984 | AY107: 890 | AZ107: 342 | BA107: 2573 | BB107: 1555 | BC107: 1090 | BD107: N/A | BE107: 14 | BF107: 728
A108: 2011 | B108: Wyoming | C108: 561389 | D108: 462808 | E108: 66648 | F108: 30651 | G108: 51 | H108: 761 | I108: 369 | J108: 174 | K108: 2539 | L108: 6905 | M108: 11 | N108: 0 | O108: 0 | P108: 1525 | Q108: 46 | R108: 0 | S108: 2140 | T108: 450 | U108: 6 | V108: 342 | W108: 286 | X108: 83 | Y108: 114 | Z108: 0 | AA108: 0 | AB108: 152 | AC108: 849 | AD108: 357 | AE108: 70 | AF108: 241 | AG108: 1105 | AH108: 1784 | AI108: 427 | AJ108: 0 | AK108: 7 | AL108: 76 | AM108: 113 | AN108: 395 | AO108: 237 | AP108: 22 | AQ108: 462 | AR108: 960 | AS108: 284 | AT108: 13 | AU108: 219 | AV108: 1043 | AW108: 69 | AX108: 1398 | AY108: 2140 | AZ108: 4 | BA108: 451 | BB108: 1803 | BC108: 0 | BD108: 168 | BE108: N/A | BF108: 0
A109: 2011 | B109: Puerto Rico | C109: 3669195 | D109: 3403602 | E109: 238263 | F109: 22649 | G109: 35 | H109: 378 | I109: 229 | J109: 0 | K109: 207 | L109: 0 | M109: 1849 | N109: 13 | O109: 212 | P109: 6614 | Q109: 247 | R109: 0 | S109: 13 | T109: 624 | U109: 784 | V109: 0 | W109: 38 | X109: 0 | Y109: 0 | Z109: 0 | AA109: 70 | AB109: 1412 | AC109: 88 | AD109: 0 | AE109: 27 | AF109: 101 | AG109: 0 | AH109: 0 | AI109: 0 | AJ109: 0 | AK109: 2150 | AL109: 51 | AM109: 2615 | AN109: 200 | AO109: 0 | AP109: 0 | AQ109: 79 | AR109: 0 | AS109: 1978 | AT109: 490 | AU109: 3 | AV109: 113 | AW109: 224 | AX109: 444 | AY109: 0 | AZ109: 0 | BA109: 1077 | BB109: 41 | BC109: 14 | BD109: 229 | BE109: 0 | BF109: N/A
A110: 2010 | B110: (All) | C110: 305628607 | D110: 258552348 | E110: 38582885 | F110: 6743229 | G110: 99221 | H110: 94692 | I110: 176768 | J110: 64264 | K110: 573988 | L110: 140620 | M110: 89360 | N110: 30055 | O110: 56052 | P110: 427853 | Q110: 244992 | R110: 49218 | S110: 53122 | T110: 277579 | U110: 130170 | V110: 66922 | W110: 90681 | X110: 92999 | Y110: 88131 | Z110: 32209 | AA110: 159866 | AB110: 144152 | AC110: 178207 | AD110: 104765 | AE110: 68363 | AF110: 148055 | AG110: 35870 | AH110: 43531 | AI110: 109409 | AJ110: 38399 | AK110: 193972 | AL110: 50438 | AM110: 363139 | AN110: 207025 | AO110: 24450 | AP110: 188013 | AQ110: 90616 | AR110: 100185 | AS110: 209810 | AT110: 24948 | AU110: 117569 | AV110: 27915 | AW110: 143135 | AX110: 411641 | AY110: 75541 | AZ110: 18380 | BA110: 232002 | BB110: 166162 | BC110: 49349 | BD110: 111240 | BE110: 28186 | BF110: 59885
A111: 2010 | B111: Alabama | C111: 4729509 | D111: 3987155 | E111: 620465 | F111: 108723 | G111: N/A | H111: 3013 | I111: 676 | J111: 1481 | K111: 3827 | L111: 1278 | M111: 454 | N111: 811 | O111: 211 | P111: 15062 | Q111: 21644 | R111: 267 | S111: 304 | T111: 2503 | U111: 3945 | V111: 669 | W111: 649 | X111: 1967 | Y111: 1901 | Z111: 97 | AA111: 716 | AB111: 435 | AC111: 2334 | AD111: 386 | AE111: 7233 | AF111: 1373 | AG111: 229 | AH111: 169 | AI111: 265 | AJ111: 0 | AK111: 356 | AL111: 650 | AM111: 3686 | AN111: 2371 | AO111: 169 | AP111: 2222 | AQ111: 880 | AR111: 485 | AS111: 1477 | AT111: 0 | AU111: 2368 | AV111: 31 | AW111: 7409 | AX111: 6500 | AY111: 1336 | AZ111: 0 | BA111: 2490 | BB111: 1171 | BC111: 41 | BD111: 1155 | BE111: 27 | BF111: 228
A112: 2010 | B112: Alaska | C112: 702974 | D112: 565031 | E112: 95878 | F112: 36326 | G112: 477 | H112: N/A | I112: 1354 | J112: 47 | K112: 3906 | L112: 1930 | M112: 0 | N112: 0 | O112: 14 | P112: 2315 | Q112: 1251 | R112: 1705 | S112: 895 | T112: 388 | U112: 9 | V112: 262 | W112: 106 | X112: 1440 | Y112: 100 | Z112: 574 | AA112: 704 | AB112: 107 | AC112: 923 | AD112: 530 | AE112: 263 | AF112: 0 | AG112: 616 | AH112: 215 | AI112: 240 | AJ112: 316 | AK112: 413 | AL112: 421 | AM112: 255 | AN112: 698 | AO112: 69 | AP112: 156 | AQ112: 1455 | AR112: 1793 | AS112: 126 | AT112: 0 | AU112: 121 | AV112: 531 | AW112: 477 | AX112: 4123 | AY112: 1274 | AZ112: 353 | BA112: 714 | BB112: 2421 | BC112: 0 | BD112: 158 | BE112: 81 | BF112: 19
A113: 2010 | B113: Arizona | C113: 6332786 | D113: 5069002 | E113: 1001991 | F113: 222725 | G113: 416 | H113: 3109 | I113: N/A | J113: 689 | K113: 47164 | L113: 7687 | M113: 479 | N113: 738 | O113: 0 | P113: 7712 | Q113: 4261 | R113: 1966 | S113: 2147 | T113: 12250 | U113: 2690 | V113: 3008 | W113: 1935 | X113: 1705 | Y113: 2014 | Z113: 241 | AA113: 1284 | AB113: 1449 | AC113: 6354 | AD113: 5421 | AE113: 272 | AF113: 4567 | AG113: 1343 | AH113: 1750 | AI113: 10342 | AJ113: 64 | AK113: 1782 | AL113: 4419 | AM113: 6618 | AN113: 4463 | AO113: 826 | AP113: 5225 | AQ113: 2910 | AR113: 5430 | AS113: 5535 | AT113: 403 | AU113: 2310 | AV113: 1351 | AW113: 3061 | AX113: 14705 | AY113: 7164 | AZ113: 664 | BA113: 3413 | BB113: 12645 | BC113: 595 | BD113: 5556 | BE113: 593 | BF113: 599
A114: 2010 | B114: Arkansas | C114: 2888304 | D114: 2387806 | E114: 412997 | F114: 79127 | G114: 1405 | H114: 934 | I114: 777 | J114: N/A | K114: 4457 | L114: 2535 | M114: 451 | N114: 0 | O114: 154 | P114: 3578 | Q114: 3921 | R114: 129 | S114: 618 | T114: 3221 | U114: 722 | V114: 85 | W114: 3611 | X114: 2540 | Y114: 4012 | Z114: 0 | AA114: 306 | AB114: 190 | AC114: 1506 | AD114: 222 | AE114: 2764 | AF114: 7320 | AG114: 85 | AH114: 394 | AI114: 67 | AJ114: 0 | AK114: 77 | AL114: 0 | AM114: 289 | AN114: 1561 | AO114: 0 | AP114: 1137 | AQ114: 8607 | AR114: 239 | AS114: 731 | AT114: 0 | AU114: 1496 | AV114: 243 | AW114: 2653 | AX114: 13707 | AY114: 361 | AZ114: 0 | BA114: 494 | BB114: 264 | BC114: 0 | BD114: 821 | BE114: 443 | BF114: 87
A115: 2010 | B115: California | C115: 36907897 | D115: 30790221 | E115: 5413287 | F115: 444749 | G115: 3364 | H115: 9579 | I115: 33854 | J115: 4172 | K115: N/A | L115: 15662 | M115: 4631 | N115: 643 | O115: 3683 | P115: 20362 | Q115: 8820 | R115: 9528 | S115: 5719 | T115: 16482 | U115: 6550 | V115: 3163 | W115: 3857 | X115: 3394 | Y115: 2989 | Z115: 1796 | AA115: 10626 | AB115: 11969 | AC115: 10435 | AD115: 5095 | AE115: 2757 | AF115: 6921 | AG115: 3009 | AH115: 3062 | AI115: 27724 | AJ115: 1614 | AK115: 10108 | AL115: 4632 | AM115: 20981 | AN115: 9593 | AO115: 392 | AP115: 8170 | AQ115: 5708 | AR115: 20913 | AS115: 9948 | AT115: 526 | AU115: 5016 | AV115: 1604 | AW115: 4349 | AX115: 36582 | AY115: 10653 | AZ115: 525 | BA115: 14232 | BB115: 30544 | BC115: 1446 | BD115: 6031 | BE115: 1336 | BF115: 1223
A116: 2010 | B116: Colorado | C116: 4988190 | D116: 4042039 | E116: 725413 | F116: 186366 | G116: 954 | H116: 2225 | I116: 12287 | J116: 1034 | K116: 26089 | L116: N/A | M116: 459 | N116: 486 | O116: 479 | P116: 8849 | Q116: 6445 | R116: 2355 | S116: 839 | T116: 6950 | U116: 3296 | V116: 2140 | W116: 4308 | X116: 1961 | Y116: 968 | Z116: 532 | AA116: 1532 | AB116: 2242 | AC116: 4587 | AD116: 2878 | AE116: 1277 | AF116: 1978 | AG116: 2042 | AH116: 4065 | AI116: 4131 | AJ116: 791 | AK116: 1259 | AL116: 3921 | AM116: 4594 | AN116: 2940 | AO116: 802 | AP116: 2838 | AQ116: 3464 | AR116: 4330 | AS116: 3928 | AT116: 192 | AU116: 1231 | AV116: 1847 | AW116: 1628 | AX116: 22253 | AY116: 4748 | AZ116: 350 | BA116: 2739 | BB116: 7583 | BC116: 623 | BD116: 2499 | BE116: 4418 | BF116: 874
A117: 2010 | B117: Connecticut | C117: 3541146 | D117: 3100742 | E117: 342904 | F117: 77333 | G117: 896 | H117: 0 | I117: 664 | J117: 334 | K117: 4479 | L117: 547 | M117: N/A | N117: 149 | O117: 331 | P117: 9207 | Q117: 748 | R117: 182 | S117: 147 | T117: 3391 | U117: 1074 | V117: 108 | W117: 0 | X117: 400 | Y117: 0 | Z117: 528 | AA117: 1531 | AB117: 8510 | AC117: 770 | AD117: 934 | AE117: 67 | AF117: 42 | AG117: 0 | AH117: 0 | AI117: 507 | AJ117: 1049 | AK117: 3475 | AL117: 112 | AM117: 20727 | AN117: 1345 | AO117: 0 | AP117: 1296 | AQ117: 145 | AR117: 640 | AS117: 1955 | AT117: 1728 | AU117: 1140 | AV117: 0 | AW117: 430 | AX117: 1887 | AY117: 0 | AZ117: 458 | BA117: 1735 | BB117: 2084 | BC117: 442 | BD117: 1092 | BE117: 47 | BF117: 2027
A118: 2010 | B118: Delaware | C118: 889812 | D118: 764640 | E118: 90001 | F118: 30759 | G118: 128 | H118: 68 | I118: 60 | J118: 0 | K118: 353 | L118: 178 | M118: 714 | N118: N/A | O118: 432 | P118: 2362 | Q118: 585 | R118: 0 | S118: 0 | T118: 612 | U118: 0 | V118: 0 | W118: 28 | X118: 163 | Y118: 0 | Z118: 294 | AA118: 4969 | AB118: 689 | AC118: 61 | AD118: 55 | AE118: 0 | AF118: 539 | AG118: 73 | AH118: 0 | AI118: 106 | AJ118: 139 | AK118: 3678 | AL118: 59 | AM118: 4251 | AN118: 424 | AO118: 0 | AP118: 325 | AQ118: 0 | AR118: 0 | AS118: 7318 | AT118: 149 | AU118: 195 | AV118: 0 | AW118: 146 | AX118: 178 | AY118: 0 | AZ118: 0 | BA118: 1051 | BB118: 377 | BC118: 0 | BD118: 0 | BE118: 0 | BF118: 954
A119: 2010 | B119: District of Columbia | C119: 596747 | D119: 474676 | E119: 63766 | F119: 51244 | G119: 360 | H119: 591 | I119: 662 | J119: 155 | K119: 4205 | L119: 656 | M119: 926 | N119: 0 | O119: N/A | P119: 1100 | Q119: 1597 | R119: 0 | S119: 0 | T119: 615 | U119: 711 | V119: 392 | W119: 83 | X119: 94 | Y119: 0 | Z119: 76 | AA119: 13503 | AB119: 1376 | AC119: 126 | AD119: 87 | AE119: 0 | AF119: 272 | AG119: 0 | AH119: 62 | AI119: 0 | AJ119: 137 | AK119: 1924 | AL119: 61 | AM119: 3852 | AN119: 1897 | AO119: 98 | AP119: 598 | AQ119: 0 | AR119: 601 | AS119: 2378 | AT119: 249 | AU119: 380 | AV119: 0 | AW119: 591 | AX119: 1180 | AY119: 0 | AZ119: 199 | BA119: 7915 | BB119: 284 | BC119: 860 | BD119: 391 | BE119: 0 | BF119: 0
A120: 2010 | B120: Florida | C120: 18647600 | D120: 15554008 | E120: 2459530 | F120: 482889 | G120: 15830 | H120: 5887 | I120: 3907 | J120: 3611 | K120: 22130 | L120: 6428 | M120: 11183 | N120: 3099 | O120: 1110 | P120: N/A | Q120: 35615 | R120: 2021 | S120: 884 | T120: 17432 | U120: 9030 | V120: 2921 | W120: 4136 | X120: 6321 | Y120: 7232 | Z120: 5497 | AA120: 13241 | AB120: 13900 | AC120: 21359 | AD120: 5439 | AE120: 7929 | AF120: 7984 | AG120: 338 | AH120: 1544 | AI120: 7050 | AJ120: 3645 | AK120: 22344 | AL120: 900 | AM120: 55011 | AN120: 19108 | AO120: 794 | AP120: 21047 | AQ120: 3466 | AR120: 1655 | AS120: 19935 | AT120: 1982 | AU120: 10759 | AV120: 430 | AW120: 12882 | AX120: 24039 | AY120: 2833 | AZ120: 1442 | BA120: 20080 | BB120: 3573 | BC120: 5634 | BD120: 8081 | BE120: 191 | BF120: 12968
A121: 2010 | B121: Georgia | C121: 9587237 | D121: 8015409 | E121: 1278548 | F121: 249459 | G121: 13840 | H121: 3645 | I121: 2554 | J121: 599 | K121: 8909 | L121: 3224 | M121: 2619 | N121: 837 | O121: 1708 | P121: 49901 | Q121: N/A | R121: 1040 | S121: 414 | T121: 9736 | U121: 2649 | V121: 1096 | W121: 1355 | X121: 6525 | Y121: 3645 | Z121: 0 | AA121: 5382 | AB121: 3910 | AC121: 6857 | AD121: 1169 | AE121: 2380 | AF121: 3072 | AG121: 52 | AH121: 148 | AI121: 1155 | AJ121: 162 | AK121: 4151 | AL121: 826 | AM121: 12472 | AN121: 15361 | AO121: 0 | AP121: 9323 | AQ121: 2070 | AR121: 843 | AS121: 6294 | AT121: 43 | AU121: 15562 | AV121: 557 | AW121: 14445 | AX121: 11424 | AY121: 380 | AZ121: 361 | BA121: 8393 | BB121: 4495 | BC121: 358 | BD121: 3416 | BE121: 102 | BF121: 1010
A122: 2010 | B122: Hawaii | C122: 1346274 | D122: 1140572 | E122: 134315 | F122: 53581 | G122: 749 | H122: 743 | I122: 1398 | J122: 0 | K122: 12677 | L122: 1073 | M122: 307 | N122: 0 | O122: 0 | P122: 4599 | Q122: 2013 | R122: N/A | S122: 42 | T122: 715 | U122: 192 | V122: 68 | W122: 387 | X122: 95 | Y122: 88 | Z122: 89 | AA122: 990 | AB122: 1283 | AC122: 627 | AD122: 476 | AE122: 234 | AF122: 170 | AG122: 150 | AH122: 0 | AI122: 1925 | AJ122: 496 | AK122: 443 | AL122: 11 | AM122: 1339 | AN122: 1510 | AO122: 69 | AP122: 625 | AQ122: 57 | AR122: 1834 | AS122: 553 | AT122: 644 | AU122: 322 | AV122: 267 | AW122: 142 | AX122: 6694 | AY122: 467 | AZ122: 0 | BA122: 2644 | BB122: 2705 | BC122: 483 | BD122: 1168 | BE122: 18 | BF122: 0
A123: 2010 | B123: Idaho | C123: 1550967 | D123: 1279856 | E123: 209272 | F123: 55638 | G123: 376 | H123: 3264 | I123: 3086 | J123: 45 | K123: 8932 | L123: 1372 | M123: 0 | N123: 0 | O123: 144 | P123: 612 | Q123: 313 | R123: 123 | S123: N/A | T123: 169 | U123: 132 | V123: 773 | W123: 422 | X123: 315 | Y123: 59 | Z123: 202 | AA123: 44 | AB123: 115 | AC123: 427 | AD123: 465 | AE123: 37 | AF123: 425 | AG123: 1509 | AH123: 0 | AI123: 2110 | AJ123: 109 | AK123: 97 | AL123: 694 | AM123: 155 | AN123: 134 | AO123: 96 | AP123: 325 | AQ123: 711 | AR123: 3202 | AS123: 172 | AT123: 0 | AU123: 0 | AV123: 296 | AW123: 1153 | AX123: 1746 | AY123: 8014 | AZ123: 0 | BA123: 611 | BB123: 10876 | BC123: 133 | BD123: 233 | BE123: 1410 | BF123: 233
A124: 2010 | B124: Illinois | C124: 12680126 | D124: 11009852 | E124: 1404525 | F124: 203959 | G124: 1397 | H124: 1764 | I124: 5921 | J124: 1194 | K124: 16205 | L124: 3850 | M124: 2264 | N124: 56 | O124: 1047 | P124: 8051 | Q124: 6781 | R124: 1224 | S124: 313 | T124: N/A | U124: 21918 | V124: 9141 | W124: 1970 | X124: 2921 | Y124: 1419 | Z124: 55 | AA124: 1985 | AB124: 2811 | AC124: 11865 | AD124: 4300 | AE124: 1093 | AF124: 16703 | AG124: 928 | AH124: 546 | AI124: 2541 | AJ124: 206 | AK124: 2331 | AL124: 996 | AM124: 8479 | AN124: 5504 | AO124: 1112 | AP124: 5103 | AQ124: 1459 | AR124: 1224 | AS124: 5190 | AT124: 838 | AU124: 1565 | AV124: 292 | AW124: 3999 | AX124: 12245 | AY124: 658 | AZ124: 260 | BA124: 3831 | BB124: 1642 | BC124: 812 | BD124: 15364 | BE124: 586 | BF124: 2055
A125: 2010 | B125: Indiana | C125: 6414862 | D125: 5431015 | E125: 833086 | F125: 127353 | G125: 1502 | H125: 177 | I125: 2210 | J125: 1548 | K125: 8959 | L125: 1362 | M125: 544 | N125: 0 | O125: 181 | P125: 5496 | Q125: 1623 | R125: 267 | S125: 772 | T125: 27950 | U125: N/A | V125: 1885 | W125: 1582 | X125: 10643 | Y125: 749 | Z125: 30 | AA125: 1641 | AB125: 103 | AC125: 9361 | AD125: 916 | AE125: 270 | AF125: 3893 | AG125: 164 | AH125: 705 | AI125: 227 | AJ125: 114 | AK125: 1876 | AL125: 188 | AM125: 2564 | AN125: 2828 | AO125: 0 | AP125: 13272 | AQ125: 681 | AR125: 423 | AS125: 2668 | AT125: 174 | AU125: 584 | AV125: 216 | AW125: 3093 | AX125: 6335 | AY125: 444 | AZ125: 45 | BA125: 3673 | BB125: 571 | BC125: 669 | BD125: 1762 | BE125: 413 | BF125: 572
A126: 2010 | B126: Iowa | C126: 3013053 | D126: 2553210 | E126: 375650 | F126: 72557 | G126: 330 | H126: 519 | I126: 1483 | J126: 247 | K126: 2847 | L126: 2554 | M126: 114 | N126: 0 | O126: 53 | P126: 1364 | Q126: 973 | R126: 866 | S126: 315 | T126: 17016 | U126: 1710 | V126: N/A | W126: 1520 | X126: 334 | Y126: 315 | Z126: 0 | AA126: 134 | AB126: 189 | AC126: 1439 | AD126: 7564 | AE126: 117 | AF126: 6031 | AG126: 836 | AH126: 4783 | AI126: 623 | AJ126: 381 | AK126: 472 | AL126: 492 | AM126: 273 | AN126: 1123 | AO126: 601 | AP126: 632 | AQ126: 679 | AR126: 1071 | AS126: 378 | AT126: 0 | AU126: 591 | AV126: 1992 | AW126: 1617 | AX126: 4131 | AY126: 146 | AZ126: 45 | BA126: 303 | BB126: 538 | BC126: 0 | BD126: 2705 | BE126: 111 | BF126: 149
A127: 2010 | B127: Kansas | C127: 2820894 | D127: 2341401 | E127: 372161 | F127: 95059 | G127: 44 | H127: 1050 | I127: 2238 | J127: 1596 | K127: 6125 | L127: 6022 | M127: 85 | N127: 238 | O127: 0 | P127: 2863 | Q127: 1916 | R127: 128 | S127: 398 | T127: 2943 | U127: 1544 | V127: 1875 | W127: N/A | X127: 1048 | Y127: 890 | Z127: 0 | AA127: 1369 | AB127: 100 | AC127: 806 | AD127: 1562 | AE127: 167 | AF127: 23384 | AG127: 289 | AH127: 2678 | AI127: 1318 | AJ127: 76 | AK127: 1743 | AL127: 873 | AM127: 2390 | AN127: 1083 | AO127: 225 | AP127: 1509 | AQ127: 7568 | AR127: 514 | AS127: 563 | AT127: 39 | AU127: 137 | AV127: 352 | AW127: 1152 | AX127: 9217 | AY127: 238 | AZ127: 75 | BA127: 1648 | BB127: 1175 | BC127: 0 | BD127: 1233 | BE127: 573 | BF127: 68
A128: 2010 | B128: Kentucky | C128: 4296639 | D128: 3638259 | E128: 519887 | F128: 118443 | G128: 2161 | H128: 3017 | I128: 2598 | J128: 558 | K128: 3779 | L128: 329 | M128: 698 | N128: 38 | O128: 147 | P128: 10119 | Q128: 6397 | R128: 520 | S128: 71 | T128: 4659 | U128: 11906 | V128: 656 | W128: 1109 | X128: N/A | Y128: 437 | Z128: 0 | AA128: 1395 | AB128: 1036 | AC128: 4672 | AD128: 930 | AE128: 1442 | AF128: 3153 | AG128: 0 | AH128: 858 | AI128: 76 | AJ128: 0 | AK128: 1147 | AL128: 122 | AM128: 2057 | AN128: 3758 | AO128: 0 | AP128: 15598 | AQ128: 1153 | AR128: 181 | AS128: 2618 | AT128: 289 | AU128: 1286 | AV128: 163 | AW128: 11153 | AX128: 5758 | AY128: 905 | AZ128: 525 | BA128: 3671 | BB128: 716 | BC128: 2297 | BD128: 1993 | BE128: 292 | BF128: 179
A129: 2010 | B129: Louisiana | C129: 4483529 | D129: 3826390 | E129: 547291 | F129: 97889 | G129: 5740 | H129: 1504 | I129: 1960 | J129: 2382 | K129: 5751 | L129: 1215 | M129: 89 | N129: 0 | O129: 264 | P129: 9394 | Q129: 5766 | R129: 342 | S129: 202 | T129: 2131 | U129: 948 | V129: 625 | W129: 706 | X129: 1656 | Y129: N/A | Z129: 162 | AA129: 963 | AB129: 995 | AC129: 1301 | AD129: 569 | AE129: 7032 | AF129: 2852 | AG129: 40 | AH129: 119 | AI129: 1552 | AJ129: 462 | AK129: 171 | AL129: 294 | AM129: 2161 | AN129: 1443 | AO129: 438 | AP129: 1100 | AQ129: 1074 | AR129: 281 | AS129: 1350 | AT129: 0 | AU129: 1130 | AV129: 0 | AW129: 1853 | AX129: 26134 | AY129: 473 | AZ129: 0 | BA129: 1278 | BB129: 1509 | BC129: 210 | BD129: 237 | BE129: 31 | BF129: 402
A130: 2010 | B130: Maine | C130: 1313902 | D130: 1136780 | E130: 146735 | F130: 27758 | G130: 402 | H130: 424 | I130: 254 | J130: 67 | K130: 1066 | L130: 478 | M130: 1361 | N130: 174 | O130: 55 | P130: 3025 | Q130: 844 | R130: 62 | S130: 0 | T130: 311 | U130: 259 | V130: 337 | W130: 56 | X130: 484 | Y130: 115 | Z130: N/A | AA130: 243 | AB130: 3521 | AC130: 122 | AD130: 91 | AE130: 0 | AF130: 201 | AG130: 275 | AH130: 204 | AI130: 345 | AJ130: 4058 | AK130: 902 | AL130: 234 | AM130: 2339 | AN130: 1001 | AO130: 55 | AP130: 315 | AQ130: 124 | AR130: 0 | AS130: 375 | AT130: 379 | AU130: 148 | AV130: 0 | AW130: 249 | AX130: 458 | AY130: 390 | AZ130: 420 | BA130: 654 | BB130: 381 | BC130: 0 | BD130: 0 | BE130: 500 | BF130: 204
A131: 2010 | B131: Maryland | C131: 5716785 | D131: 4917637 | E131: 588879 | F131: 164484 | G131: 1641 | H131: 2672 | I131: 1124 | J131: 273 | K131: 8206 | L131: 2501 | M131: 1603 | N131: 8340 | O131: 23202 | P131: 6564 | Q131: 3454 | R131: 422 | S131: 357 | T131: 3300 | U131: 431 | V131: 160 | W131: 781 | X131: 396 | Y131: 1376 | Z131: 53 | AA131: N/A | AB131: 1983 | AC131: 3572 | AD131: 820 | AE131: 403 | AF131: 1147 | AG131: 86 | AH131: 54 | AI131: 979 | AJ131: 1369 | AK131: 9058 | AL131: 238 | AM131: 10736 | AN131: 5787 | AO131: 0 | AP131: 3277 | AQ131: 607 | AR131: 723 | AS131: 13467 | AT131: 782 | AU131: 1710 | AV131: 49 | AW131: 2669 | AX131: 5883 | AY131: 655 | AZ131: 350 | BA131: 24765 | BB131: 1542 | BC131: 4363 | BD131: 324 | BE131: 230 | BF131: 612
A132: 2010 | B132: Massachusetts | C132: 6489250 | D132: 5583650 | E132: 706624 | F132: 140162 | G132: 583 | H132: 1891 | I132: 1572 | J132: 206 | K132: 14971 | L132: 1051 | M132: 13270 | N132: 131 | O132: 1539 | P132: 11118 | Q132: 1409 | R132: 682 | S132: 79 | T132: 2842 | U132: 1891 | V132: 307 | W132: 0 | X132: 340 | Y132: 0 | Z132: 4666 | AA132: 3660 | AB132: N/A | AC132: 1624 | AD132: 2185 | AE132: 453 | AF132: 1957 | AG132: 388 | AH132: 46 | AI132: 792 | AJ132: 9911 | AK132: 4709 | AL132: 161 | AM132: 20002 | AN132: 2798 | AO132: 0 | AP132: 2163 | AQ132: 158 | AR132: 228 | AS132: 5316 | AT132: 6965 | AU132: 1659 | AV132: 0 | AW132: 918 | AX132: 7073 | AY132: 207 | AZ132: 1526 | BA132: 4542 | BB132: 1627 | BC132: 0 | BD132: 546 | BE132: 0 | BF132: 3085
A133: 2010 | B133: Michigan | C133: 9762127 | D133: 8310098 | E133: 1291901 | F133: 116149 | G133: 2403 | H133: 1040 | I133: 3197 | J133: 636 | K133: 6726 | L133: 2031 | M133: 277 | N133: 167 | O133: 471 | P133: 11646 | Q133: 3913 | R133: 313 | S133: 66 | T133: 10651 | U133: 7816 | V133: 758 | W133: 640 | X133: 2353 | Y133: 1342 | Z133: 645 | AA133: 620 | AB133: 1206 | AC133: N/A | AD133: 1275 | AE133: 656 | AF133: 2921 | AG133: 312 | AH133: 213 | AI133: 1874 | AJ133: 437 | AK133: 1676 | AL133: 669 | AM133: 3135 | AN133: 2444 | AO133: 53 | AP133: 9783 | AQ133: 2276 | AR133: 537 | AS133: 3134 | AT133: 653 | AU133: 1446 | AV133: 706 | AW133: 4453 | AX133: 7184 | AY133: 545 | AZ133: 45 | BA133: 2073 | BB133: 1427 | BC133: 446 | BD133: 6291 | BE133: 568 | BF133: 1432
A134: 2010 | B134: Minnesota | C134: 5244256 | D134: 4480630 | E134: 647946 | F134: 89872 | G134: 266 | H134: 1169 | I134: 4165 | J134: 279 | K134: 6233 | L134: 2521 | M134: 211 | N134: 176 | O134: 306 | P134: 2575 | Q134: 1776 | R134: 227 | S134: 231 | T134: 6641 | U134: 1120 | V134: 4948 | W134: 1067 | X134: 402 | Y134: 519 | Z134: 172 | AA134: 1259 | AB134: 1092 | AC134: 2631 | AD134: N/A | AE134: 196 | AF134: 1549 | AG134: 1020 | AH134: 734 | AI134: 540 | AJ134: 183 | AK134: 513 | AL134: 151 | AM134: 1309 | AN134: 1673 | AO134: 7316 | AP134: 1035 | AQ134: 284 | AR134: 738 | AS134: 730 | AT134: 123 | AU134: 1597 | AV134: 3237 | AW134: 1155 | AX134: 2619 | AY134: 1013 | AZ134: 0 | BA134: 2371 | BB134: 1328 | BC134: 200 | BD134: 17929 | BE134: 343 | BF134: 39
A135: 2010 | B135: Mississippi | C135: 2931228 | D135: 2510729 | E135: 340266 | F135: 72321 | G135: 8306 | H135: 1192 | I135: 187 | J135: 4941 | K135: 3000 | L135: 1167 | M135: 71 | N135: 0 | O135: 0 | P135: 4814 | Q135: 4014 | R135: 276 | S135: 121 | T135: 3030 | U135: 1403 | V135: 114 | W135: 330 | X135: 407 | Y135: 7390 | Z135: 0 | AA135: 649 | AB135: 107 | AC135: 2495 | AD135: 863 | AE135: N/A | AF135: 959 | AG135: 314 | AH135: 0 | AI135: 408 | AJ135: 0 | AK135: 403 | AL135: 633 | AM135: 1026 | AN135: 2227 | AO135: 0 | AP135: 1312 | AQ135: 663 | AR135: 0 | AS135: 750 | AT135: 145 | AU135: 1860 | AV135: 56 | AW135: 8158 | AX135: 5755 | AY135: 232 | AZ135: 0 | BA135: 572 | BB135: 508 | BC135: 94 | BD135: 879 | BE135: 490 | BF135: 814
A136: 2010 | B136: Missouri | C136: 5920858 | D136: 4968921 | E136: 786726 | F136: 145226 | G136: 819 | H136: 1051 | I136: 2988 | J136: 4381 | K136: 9840 | L136: 1903 | M136: 243 | N136: 314 | O136: 478 | P136: 8317 | Q136: 2492 | R136: 380 | S136: 830 | T136: 21277 | U136: 3351 | V136: 4708 | W136: 23427 | X136: 2552 | Y136: 2238 | Z136: 171 | AA136: 1359 | AB136: 1395 | AC136: 2610 | AD136: 1701 | AE136: 1183 | AF136: N/A | AG136: 220 | AH136: 2636 | AI136: 1060 | AJ136: 108 | AK136: 1320 | AL136: 150 | AM136: 2630 | AN136: 1825 | AO136: 848 | AP136: 2163 | AQ136: 4647 | AR136: 314 | AS136: 1639 | AT136: 0 | AU136: 954 | AV136: 512 | AW136: 3311 | AX136: 12884 | AY136: 1319 | AZ136: 498 | BA136: 3206 | BB136: 1107 | BC136: 177 | BD136: 1331 | BE136: 359 | BF136: 867
A137: 2010 | B137: Montana | C137: 978507 | D137: 821709 | E137: 117752 | F137: 35630 | G137: 212 | H137: 650 | I137: 1909 | J137: 672 | K137: 5756 | L137: 2185 | M137: 128 | N137: 71 | O137: 0 | P137: 1373 | Q137: 46 | R137: 0 | S137: 1458 | T137: 1094 | U137: 251 | V137: 169 | W137: 60 | X137: 321 | Y137: 85 | Z137: 76 | AA137: 51 | AB137: 59 | AC137: 648 | AD137: 1323 | AE137: 242 | AF137: 564 | AG137: N/A | AH137: 340 | AI137: 548 | AJ137: 0 | AK137: 0 | AL137: 660 | AM137: 246 | AN137: 1072 | AO137: 1677 | AP137: 89 | AQ137: 182 | AR137: 1620 | AS137: 419 | AT137: 0 | AU137: 110 | AV137: 295 | AW137: 111 | AX137: 2101 | AY137: 964 | AZ137: 0 | BA137: 497 | BB137: 3250 | BC137: 0 | BD137: 357 | BE137: 1689 | BF137: 11
A138: 2010 | B138: Nebraska | C138: 1802697 | D138: 1497138 | E138: 247005 | F138: 51290 | G138: 232 | H138: 35 | I138: 2322 | J138: 674 | K138: 4430 | L138: 4182 | M138: 361 | N138: 177 | O138: 0 | P138: 1775 | Q138: 1202 | R138: 257 | S138: 127 | T138: 1820 | U138: 639 | V138: 5536 | W138: 2484 | X138: 153 | Y138: 89 | Z138: 0 | AA138: 77 | AB138: 100 | AC138: 726 | AD138: 2254 | AE138: 823 | AF138: 2723 | AG138: 112 | AH138: N/A | AI138: 232 | AJ138: 0 | AK138: 143 | AL138: 831 | AM138: 111 | AN138: 442 | AO138: 777 | AP138: 1232 | AQ138: 702 | AR138: 506 | AS138: 345 | AT138: 0 | AU138: 65 | AV138: 2936 | AW138: 77 | AX138: 4445 | AY138: 537 | AZ138: 0 | BA138: 772 | BB138: 1230 | BC138: 73 | BD138: 1046 | BE138: 1478 | BF138: 0
A139: 2010 | B139: Nevada | C139: 2667364 | D139: 2030410 | E139: 517261 | F139: 102677 | G139: 150 | H139: 511 | I139: 7818 | J139: 530 | K139: 35472 | L139: 2935 | M139: 648 | N139: 0 | O139: 0 | P139: 3579 | Q139: 1187 | R139: 4363 | S139: 1686 | T139: 1711 | U139: 739 | V139: 543 | W139: 453 | X139: 569 | Y139: 733 | Z139: 0 | AA139: 485 | AB139: 1275 | AC139: 2202 | AD139: 805 | AE139: 946 | AF139: 1747 | AG139: 770 | AH139: 1129 | AI139: N/A | AJ139: 59 | AK139: 1528 | AL139: 1220 | AM139: 1204 | AN139: 957 | AO139: 37 | AP139: 1554 | AQ139: 886 | AR139: 2629 | AS139: 1567 | AT139: 167 | AU139: 312 | AV139: 1203 | AW139: 706 | AX139: 5224 | AY139: 4500 | AZ139: 197 | BA139: 1832 | BB139: 3290 | BC139: 56 | BD139: 419 | BE139: 144 | BF139: 502
A140: 2010 | B140: New Hampshire | C140: 1303865 | D140: 1118359 | E140: 141213 | F140: 39367 | G140: 152 | H140: 0 | I140: 544 | J140: 0 | K140: 1692 | L140: 240 | M140: 3134 | N140: 0 | O140: 298 | P140: 1659 | Q140: 0 | R140: 51 | S140: 66 | T140: 850 | U140: 23 | V140: 109 | W140: 57 | X140: 0 | Y140: 19 | Z140: 3242 | AA140: 49 | AB140: 13752 | AC140: 230 | AD140: 240 | AE140: 25 | AF140: 295 | AG140: 486 | AH140: 0 | AI140: 95 | AJ140: N/A | AK140: 540 | AL140: 276 | AM140: 2462 | AN140: 471 | AO140: 0 | AP140: 28 | AQ140: 0 | AR140: 508 | AS140: 674 | AT140: 988 | AU140: 51 | AV140: 0 | AW140: 372 | AX140: 1570 | AY140: 279 | AZ140: 2566 | BA140: 745 | BB140: 261 | BC140: 0 | BD140: 268 | BE140: 0 | BF140: 56
A141: 2010 | B141: New Jersey | C141: 8709933 | D141: 7841470 | E141: 684482 | F141: 127369 | G141: 616 | H141: 383 | I141: 1625 | J141: 258 | K141: 8777 | L141: 807 | M141: 2503 | N141: 1543 | O141: 431 | P141: 9841 | Q141: 4588 | R141: 385 | S141: 91 | T141: 2656 | U141: 402 | V141: 332 | W141: 442 | X141: 91 | Y141: 249 | Z141: 95 | AA141: 4231 | AB141: 2626 | AC141: 1070 | AD141: 322 | AE141: 450 | AF141: 727 | AG141: 122 | AH141: 261 | AI141: 874 | AJ141: 705 | AK141: N/A | AL141: 421 | AM141: 41374 | AN141: 3052 | AO141: 0 | AP141: 1584 | AQ141: 32 | AR141: 613 | AS141: 22225 | AT141: 332 | AU141: 1134 | AV141: 0 | AW141: 852 | AX141: 3434 | AY141: 178 | AZ141: 57 | BA141: 2670 | BB141: 964 | BC141: 358 | BD141: 586 | BE141: 0 | BF141: 2732
A142: 2010 | B142: New Mexico | C142: 2039549 | D142: 1735950 | E142: 220663 | F142: 73605 | G142: 751 | H142: 969 | I142: 6117 | J142: 77 | K142: 6547 | L142: 2852 | M142: 25 | N142: 391 | O142: 56 | P142: 3259 | Q142: 1977 | R142: 122 | S142: 755 | T142: 526 | U142: 465 | V142: 0 | W142: 751 | X142: 739 | Y142: 65 | Z142: 94 | AA142: 1968 | AB142: 2076 | AC142: 1460 | AD142: 179 | AE142: 719 | AF142: 138 | AG142: 1003 | AH142: 530 | AI142: 4192 | AJ142: 79 | AK142: 160 | AL142: N/A | AM142: 784 | AN142: 1793 | AO142: 79 | AP142: 1712 | AQ142: 1182 | AR142: 1659 | AS142: 809 | AT142: 46 | AU142: 152 | AV142: 204 | AW142: 1269 | AX142: 18511 | AY142: 1601 | AZ142: 309 | BA142: 290 | BB142: 3004 | BC142: 0 | BD142: 407 | BE142: 752 | BF142: 632
A143: 2010 | B143: New York | C143: 19171916 | D143: 16976205 | E143: 1779540 | F143: 269427 | G143: 1310 | H143: 5070 | I143: 2649 | J143: 362 | K143: 25177 | L143: 3135 | M143: 15338 | N143: 2603 | O143: 1983 | P143: 30553 | Q143: 7676 | R143: 259 | S143: 198 | T143: 6533 | U143: 2497 | V143: 477 | W143: 1189 | X143: 804 | Y143: 1321 | Z143: 2270 | AA143: 5912 | AB143: 16855 | AC143: 4779 | AD143: 1649 | AE143: 872 | AF143: 1870 | AG143: 237 | AH143: 886 | AI143: 2077 | AJ143: 2636 | AK143: 35333 | AL143: 829 | AM143: N/A | AN143: 13322 | AO143: 0 | AP143: 6510 | AQ143: 2298 | AR143: 2284 | AS143: 20514 | AT143: 1913 | AU143: 7161 | AV143: 521 | AW143: 1730 | AX143: 9692 | AY143: 910 | AZ143: 2900 | BA143: 8881 | BB143: 2503 | BC143: 444 | BD143: 2354 | BE143: 151 | BF143: 6740
A144: 2010 | B144: North Carolina | C144: 9443000 | D144: 7982017 | E144: 1141001 | F144: 263256 | G144: 3044 | H144: 1618 | I144: 2847 | J144: 550 | K144: 16699 | L144: 1842 | M144: 3752 | N144: 479 | O144: 1691 | P144: 28983 | Q144: 15943 | R144: 1567 | S144: 724 | T144: 5657 | U144: 4132 | V144: 1077 | W144: 2192 | X144: 4419 | Y144: 2180 | Z144: 2259 | AA144: 9881 | AB144: 4052 | AC144: 5789 | AD144: 1839 | AE144: 1187 | AF144: 1932 | AG144: 230 | AH144: 516 | AI144: 698 | AJ144: 2130 | AK144: 7195 | AL144: 1186 | AM144: 19406 | AN144: N/A | AO144: 243 | AP144: 8661 | AQ144: 1453 | AR144: 1796 | AS144: 11155 | AT144: 97 | AU144: 23196 | AV144: 362 | AW144: 8685 | AX144: 14329 | AY144: 790 | AZ144: 350 | BA144: 25662 | BB144: 2874 | BC144: 3025 | BD144: 2012 | BE144: 870 | BF144: 1950
A145: 2010 | B145: North Dakota | C145: 665654 | D145: 556222 | E145: 75720 | F145: 30100 | G145: 109 | H145: 1066 | I145: 662 | J145: 168 | K145: 1411 | L145: 873 | M145: 30 | N145: 0 | O145: 175 | P145: 492 | Q145: 799 | R145: 53 | S145: 69 | T145: 39 | U145: 45 | V145: 289 | W145: 114 | X145: 97 | Y145: 374 | Z145: 0 | AA145: 121 | AB145: 52 | AC145: 298 | AD145: 12350 | AE145: 0 | AF145: 197 | AG145: 1236 | AH145: 328 | AI145: 382 | AJ145: 0 | AK145: 144 | AL145: 380 | AM145: 188 | AN145: 637 | AO145: N/A | AP145: 134 | AQ145: 108 | AR145: 313 | AS145: 392 | AT145: 0 | AU145: 0 | AV145: 1038 | AW145: 273 | AX145: 2513 | AY145: 462 | AZ145: 0 | BA145: 25 | BB145: 696 | BC145: 0 | BD145: 749 | BE145: 219 | BF145: 0
A146: 2010 | B146: Ohio | C146: 11405101 | D146: 9745227 | E146: 1453401 | F146: 172633 | G146: 1289 | H146: 1556 | I146: 4715 | J146: 434 | K146: 8997 | L146: 2859 | M146: 1307 | N146: 15 | O146: 972 | P146: 16495 | Q146: 9502 | R146: 436 | S146: 564 | T146: 7092 | U146: 9438 | V146: 1270 | W146: 1016 | X146: 9159 | Y146: 743 | Z146: 291 | AA146: 3828 | AB146: 3686 | AC146: 15130 | AD146: 2298 | AE146: 89 | AF146: 1171 | AG146: 460 | AH146: 1531 | AI146: 2240 | AJ146: 175 | AK146: 2465 | AL146: 515 | AM146: 5988 | AN146: 5985 | AO146: 26 | AP146: N/A | AQ146: 1228 | AR146: 342 | AS146: 12012 | AT146: 444 | AU146: 2479 | AV146: 207 | AW146: 4987 | AX146: 7465 | AY146: 485 | AZ146: 182 | BA146: 6769 | BB146: 2567 | BC146: 7814 | BD146: 1771 | BE146: 144 | BF146: 2140
A147: 2010 | B147: Oklahoma | C147: 3716264 | D147: 3065497 | E147: 528824 | F147: 106511 | G147: 1612 | H147: 1397 | I147: 2759 | J147: 5873 | K147: 9429 | L147: 3184 | M147: 68 | N147: 109 | O147: 0 | P147: 5438 | Q147: 3159 | R147: 773 | S147: 611 | T147: 2679 | U147: 957 | V147: 1108 | W147: 5024 | X147: 877 | Y147: 2208 | Z147: 298 | AA147: 382 | AB147: 465 | AC147: 1047 | AD147: 599 | AE147: 1733 | AF147: 4102 | AG147: 448 | AH147: 829 | AI147: 1079 | AJ147: 69 | AK147: 890 | AL147: 2723 | AM147: 1118 | AN147: 1991 | AO147: 139 | AP147: 1385 | AQ147: N/A | AR147: 398 | AS147: 1316 | AT147: 119 | AU147: 596 | AV147: 83 | AW147: 1872 | AX147: 28238 | AY147: 428 | AZ147: 93 | BA147: 2286 | BB147: 2035 | BC147: 221 | BD147: 551 | BE147: 1713 | BF147: 209
A148: 2010 | B148: Oregon | C148: 3794008 | D148: 3110896 | E148: 545841 | F148: 116700 | G148: 400 | H148: 2027 | I148: 5264 | J148: 246 | K148: 34190 | L148: 2050 | M148: 270 | N148: 0 | O148: 217 | P148: 2273 | Q148: 688 | R148: 2323 | S148: 4129 | T148: 1565 | U148: 317 | V148: 161 | W148: 678 | X148: 0 | Y148: 0 | Z148: 0 | AA148: 595 | AB148: 1471 | AC148: 1159 | AD148: 668 | AE148: 735 | AF148: 1786 | AG148: 3386 | AH148: 777 | AI148: 2805 | AJ148: 317 | AK148: 544 | AL148: 981 | AM148: 2538 | AN148: 1040 | AO148: 592 | AP148: 1541 | AQ148: 821 | AR148: N/A | AS148: 1689 | AT148: 0 | AU148: 989 | AV148: 741 | AW148: 787 | AX148: 3826 | AY148: 2879 | AZ148: 456 | BA148: 1124 | BB148: 22793 | BC148: 358 | BD148: 1981 | BE148: 523 | BF148: 821
A149: 2010 | B149: Pennsylvania | C149: 12577555 | D149: 11053022 | E149: 1239199 | F149: 235580 | G149: 369 | H149: 2185 | I149: 3668 | J149: 807 | K149: 12077 | L149: 3657 | M149: 4007 | N149: 4608 | O149: 1621 | P149: 18212 | Q149: 4644 | R149: 332 | S149: 380 | T149: 4490 | U149: 2018 | V149: 227 | W149: 1426 | X149: 1675 | Y149: 625 | Z149: 1621 | AA149: 18281 | AB149: 4455 | AC149: 4961 | AD149: 1491 | AE149: 563 | AF149: 1725 | AG149: 339 | AH149: 551 | AI149: 1810 | AJ149: 729 | AK149: 42456 | AL149: 1250 | AM149: 30481 | AN149: 7611 | AO149: 521 | AP149: 14545 | AQ149: 1254 | AR149: 918 | AS149: N/A | AT149: 377 | AU149: 1315 | AV149: 966 | AW149: 1611 | AX149: 7778 | AY149: 1048 | AZ149: 215 | BA149: 10558 | BB149: 2495 | BC149: 4258 | BD149: 1300 | BE149: 1069 | BF149: 6275
A150: 2010 | B150: Rhode Island | C150: 1042240 | D150: 900283 | E150: 99603 | F150: 32059 | G150: 136 | H150: 0 | I150: 324 | J150: 0 | K150: 1697 | L150: 59 | M150: 4090 | N150: 0 | O150: 146 | P150: 1336 | Q150: 382 | R150: 274 | S150: 0 | T150: 1210 | U150: 206 | V150: 48 | W150: 0 | X150: 0 | Y150: 0 | Z150: 447 | AA150: 977 | AB150: 8639 | AC150: 77 | AD150: 47 | AE150: 0 | AF150: 47 | AG150: 0 | AH150: 0 | AI150: 297 | AJ150: 333 | AK150: 1868 | AL150: 0 | AM150: 4583 | AN150: 1376 | AO150: 62 | AP150: 0 | AQ150: 199 | AR150: 0 | AS150: 560 | AT150: N/A | AU150: 61 | AV150: 48 | AW150: 71 | AX150: 678 | AY150: 0 | AZ150: 72 | BA150: 1399 | BB150: 160 | BC150: 150 | BD150: 0 | BE150: 0 | BF150: 276
A151: 2010 | B151: South Carolina | C151: 4577399 | D151: 3870879 | E151: 537961 | F151: 152441 | G151: 1741 | H151: 1670 | I151: 1457 | J151: 365 | K151: 4691 | L151: 1867 | M151: 3998 | N151: 249 | O151: 38 | P151: 16060 | Q151: 17486 | R151: 813 | S151: 233 | T151: 4253 | U151: 2174 | V151: 703 | W151: 514 | X151: 2211 | Y151: 2059 | Z151: 603 | AA151: 5184 | AB151: 3765 | AC151: 3709 | AD151: 818 | AE151: 1175 | AF151: 1371 | AG151: 0 | AH151: 0 | AI151: 1173 | AJ151: 486 | AK151: 4908 | AL151: 1390 | AM151: 7912 | AN151: 20749 | AO151: 118 | AP151: 3883 | AQ151: 1458 | AR151: 1020 | AS151: 4689 | AT151: 154 | AU151: N/A | AV151: 95 | AW151: 3816 | AX151: 4965 | AY151: 455 | AZ151: 478 | BA151: 9786 | BB151: 3070 | BC151: 1190 | BD151: 1057 | BE151: 382 | BF151: 269
A152: 2010 | B152: South Dakota | C152: 805616 | D152: 680993 | E152: 96805 | F152: 25777 | G152: 325 | H152: 25 | I152: 745 | J152: 61 | K152: 1338 | L152: 807 | M152: 0 | N152: 0 | O152: 0 | P152: 251 | Q152: 24 | R152: 75 | S152: 457 | T152: 80 | U152: 439 | V152: 3520 | W152: 571 | X152: 82 | Y152: 129 | Z152: 0 | AA152: 0 | AB152: 407 | AC152: 144 | AD152: 4615 | AE152: 201 | AF152: 252 | AG152: 560 | AH152: 2260 | AI152: 38 | AJ152: 0 | AK152: 0 | AL152: 38 | AM152: 758 | AN152: 262 | AO152: 2020 | AP152: 160 | AQ152: 296 | AR152: 122 | AS152: 209 | AT152: 0 | AU152: 0 | AV152: N/A | AW152: 0 | AX152: 1334 | AY152: 0 | AZ152: 0 | BA152: 224 | BB152: 1564 | BC152: 0 | BD152: 736 | BE152: 648 | BF152: 0
A153: 2010 | B153: Tennessee | C153: 6282706 | D153: 5299496 | E153: 801355 | F153: 159778 | G153: 8897 | H153: 343 | I153: 2291 | J153: 4736 | K153: 8019 | L153: 1858 | M153: 765 | N153: 248 | O153: 394 | P153: 14168 | Q153: 11065 | R153: 243 | S153: 333 | T153: 3162 | U153: 4764 | V153: 1052 | W153: 2506 | X153: 11188 | Y153: 2602 | Z153: 84 | AA153: 1450 | AB153: 1733 | AC153: 5529 | AD153: 1504 | AE153: 9029 | AF153: 4342 | AG153: 290 | AH153: 187 | AI153: 2433 | AJ153: 197 | AK153: 2230 | AL153: 621 | AM153: 4800 | AN153: 7102 | AO153: 0 | AP153: 4462 | AQ153: 669 | AR153: 430 | AS153: 2562 | AT153: 805 | AU153: 4765 | AV153: 63 | AW153: N/A | AX153: 8701 | AY153: 2062 | AZ153: 0 | BA153: 8650 | BB153: 1412 | BC153: 2201 | BD153: 2831 | BE153: 0 | BF153: 0
A154: 2010 | B154: Texas | C154: 24899075 | D154: 20500156 | E154: 3740344 | F154: 486558 | G154: 8636 | H154: 11613 | I154: 16521 | J154: 15251 | K154: 68959 | L154: 16361 | M154: 924 | N154: 704 | O154: 460 | P154: 26668 | Q154: 16671 | R154: 3718 | S154: 2033 | T154: 20169 | U154: 6985 | V154: 3946 | W154: 11598 | X154: 5153 | Y154: 31149 | Z154: 1318 | AA154: 4724 | AB154: 7139 | AC154: 13775 | AD154: 6088 | AE154: 7773 | AF154: 12061 | AG154: 1027 | AH154: 4893 | AI154: 8324 | AJ154: 1067 | AK154: 7058 | AL154: 11752 | AM154: 16624 | AN154: 12183 | AO154: 2452 | AP154: 8317 | AQ154: 22969 | AR154: 4373 | AS154: 7161 | AT154: 975 | AU154: 5249 | AV154: 1936 | AW154: 13044 | AX154: N/A | AY154: 4123 | AZ154: 52 | BA154: 13713 | BB154: 8847 | BC154: 2221 | BD154: 5927 | BE154: 1874 | BF154: 4180
A155: 2010 | B155: Utah | C155: 2724064 | D155: 2240636 | E155: 388410 | F155: 77780 | G155: 93 | H155: 1798 | I155: 8147 | J155: 316 | K155: 12187 | L155: 3987 | M155: 119 | N155: 0 | O155: 138 | P155: 2097 | Q155: 966 | R155: 932 | S155: 7692 | T155: 1831 | U155: 517 | V155: 483 | W155: 299 | X155: 235 | Y155: 46 | Z155: 148 | AA155: 426 | AB155: 246 | AC155: 261 | AD155: 914 | AE155: 127 | AF155: 1255 | AG155: 1929 | AH155: 118 | AI155: 4549 | AJ155: 0 | AK155: 247 | AL155: 518 | AM155: 1462 | AN155: 1167 | AO155: 0 | AP155: 1527 | AQ155: 886 | AR155: 2525 | AS155: 557 | AT155: 0 | AU155: 838 | AV155: 875 | AW155: 459 | AX155: 5305 | AY155: N/A | AZ155: 297 | BA155: 3005 | BB155: 3792 | BC155: 0 | BD155: 338 | BE155: 2126 | BF155: 383
A156: 2010 | B156: Vermont | C156: 619363 | D156: 534975 | E156: 59032 | F156: 22529 | G156: 0 | H156: 184 | I156: 65 | J156: 0 | K156: 1001 | L156: 326 | M156: 1287 | N156: 87 | O156: 9 | P156: 2063 | Q156: 496 | R156: 49 | S156: 0 | T156: 370 | U156: 0 | V156: 91 | W156: 0 | X156: 176 | Y156: 0 | Z156: 824 | AA156: 300 | AB156: 3599 | AC156: 201 | AD156: 85 | AE156: 0 | AF156: 51 | AG156: 236 | AH156: 0 | AI156: 58 | AJ156: 2760 | AK156: 751 | AL156: 0 | AM156: 4056 | AN156: 539 | AO156: 30 | AP156: 50 | AQ156: 0 | AR156: 100 | AS156: 524 | AT156: 227 | AU156: 134 | AV156: 153 | AW156: 125 | AX156: 565 | AY156: 0 | AZ156: N/A | BA156: 400 | BB156: 128 | BC156: 0 | BD156: 377 | BE156: 52 | BF156: 0
A157: 2010 | B157: Virginia | C157: 7930773 | D157: 6752310 | E157: 870491 | F157: 259507 | G157: 2671 | H157: 3296 | I157: 3807 | J157: 1233 | K157: 17088 | L157: 3229 | M157: 2468 | N157: 1265 | O157: 10593 | P157: 18165 | Q157: 11927 | R157: 2347 | S157: 1159 | T157: 7576 | U157: 2892 | V157: 1135 | W157: 2103 | X157: 2051 | Y157: 2148 | Z157: 1494 | AA157: 24822 | AB157: 4104 | AC157: 5733 | AD157: 462 | AE157: 1858 | AF157: 4262 | AG157: 866 | AH157: 523 | AI157: 748 | AJ157: 372 | AK157: 6825 | AL157: 1098 | AM157: 17525 | AN157: 23829 | AO157: 201 | AP157: 7708 | AQ157: 781 | AR157: 2137 | AS157: 11796 | AT157: 1543 | AU157: 8339 | AV157: 98 | AW157: 5842 | AX157: 12938 | AY157: 1551 | AZ157: 676 | BA157: N/A | BB157: 4373 | BC157: 6779 | BD157: 2648 | BE157: 423 | BF157: 1306
A158: 2010 | B158: Washington | C158: 6661321 | D158: 5464985 | E158: 946923 | F158: 191784 | G158: 1322 | H158: 5644 | I158: 5971 | J158: 658 | K158: 39468 | L158: 4883 | M158: 642 | N158: 202 | O158: 243 | P158: 5378 | Q158: 3107 | R158: 4246 | S158: 12661 | T158: 3931 | U158: 1912 | V158: 1685 | W158: 1694 | X158: 886 | Y158: 1011 | Z158: 717 | AA158: 629 | AB158: 1448 | AC158: 2871 | AD158: 1323 | AE158: 737 | AF158: 3727 | AG158: 5094 | AH158: 323 | AI158: 5310 | AJ158: 282 | AK158: 721 | AL158: 1012 | AM158: 4140 | AN158: 2143 | AO158: 515 | AP158: 2727 | AQ158: 1986 | AR158: 26235 | AS158: 2893 | AT158: 220 | AU158: 3047 | AV158: 866 | AW158: 789 | AX158: 11338 | AY158: 4020 | AZ158: 981 | BA158: 7266 | BB158: N/A | BC158: 62 | BD158: 2180 | BE158: 638 | BF158: 0
A159: 2010 | B159: West Virginia | C159: 1833535 | D159: 1625125 | E159: 166168 | F159: 39609 | G159: 41 | H159: 1326 | I159: 0 | J159: 0 | K159: 760 | L159: 608 | M159: 84 | N159: 556 | O159: 480 | P159: 1842 | Q159: 485 | R159: 0 | S159: 88 | T159: 356 | U159: 366 | V159: 0 | W159: 161 | X159: 851 | Y159: 60 | Z159: 0 | AA159: 4249 | AB159: 191 | AC159: 657 | AD159: 0 | AE159: 44 | AF159: 160 | AG159: 39 | AH159: 0 | AI159: 25 | AJ159: 107 | AK159: 906 | AL159: 0 | AM159: 611 | AN159: 2552 | AO159: 268 | AP159: 7925 | AQ159: 229 | AR159: 0 | AS159: 4908 | AT159: 238 | AU159: 647 | AV159: 0 | AW159: 1160 | AX159: 968 | AY159: 112 | AZ159: 208 | BA159: 4999 | BB159: 192 | BC159: N/A | BD159: 150 | BE159: 0 | BF159: 182
A160: 2010 | B160: Wisconsin | C160: 5623196 | D160: 4824045 | E160: 691592 | F160: 93065 | G160: 552 | H160: 798 | I160: 1854 | J160: 518 | K160: 4506 | L160: 1890 | M160: 359 | N160: 351 | O160: 98 | P160: 4492 | Q160: 1656 | R160: 550 | S160: 902 | T160: 20299 | U160: 2563 | V160: 2300 | W160: 752 | X160: 287 | Y160: 331 | Z160: 448 | AA160: 1088 | AB160: 992 | AC160: 6317 | AD160: 16741 | AE160: 810 | AF160: 1716 | AG160: 154 | AH160: 853 | AI160: 1049 | AJ160: 69 | AK160: 632 | AL160: 123 | AM160: 1291 | AN160: 1817 | AO160: 497 | AP160: 1674 | AQ160: 89 | AR160: 1444 | AS160: 2211 | AT160: 0 | AU160: 1142 | AV160: 235 | AW160: 856 | AX160: 3039 | AY160: 476 | AZ160: 75 | BA160: 771 | BB160: 1013 | BC160: 256 | BD160: N/A | BE160: 129 | BF160: 521
A161: 2010 | B161: Wyoming | C161: 556954 | D161: 444614 | E161: 82255 | F161: 28046 | G161: 172 | H161: 0 | I161: 1511 | J161: 0 | K161: 2784 | L161: 4390 | M161: 0 | N161: 0 | O161: 0 | P161: 396 | Q161: 745 | R161: 25 | S161: 942 | T161: 415 | U161: 132 | V161: 462 | W161: 532 | X161: 519 | Y161: 107 | Z161: 0 | AA161: 51 | AB161: 252 | AC161: 570 | AD161: 218 | AE161: 0 | AF161: 421 | AG161: 2528 | AH161: 1711 | AI161: 416 | AJ161: 0 | AK161: 0 | AL161: 707 | AM161: 146 | AN161: 34 | AO161: 233 | AP161: 56 | AQ161: 62 | AR161: 14 | AS161: 95 | AT161: 0 | AU161: 220 | AV161: 258 | AW161: 495 | AX161: 1990 | AY161: 3226 | AZ161: 75 | BA161: 580 | BB161: 556 | BC161: 0 | BD161: 0 | BE161: N/A | BF161: 0
A162: 2010 | B162: Puerto Rico | C162: 3676493 | D162: 3392179 | E162: 247593 | F162: 31732 | G162: 629 | H162: 156 | I162: 288 | J162: 0 | K162: 1177 | L162: 388 | M162: 899 | N162: 0 | O162: 0 | P162: 11262 | Q162: 207 | R162: 0 | S162: 0 | T162: 1642 | U162: 109 | V162: 0 | W162: 112 | X162: 254 | Y162: 109 | Z162: 0 | AA162: 59 | AB162: 2004 | AC162: 89 | AD162: 50 | AE162: 170 | AF162: 221 | AG162: 0 | AH162: 0 | AI162: 0 | AJ162: 0 | AK162: 1244 | AL162: 364 | AM162: 4768 | AN162: 146 | AO162: 0 | AP162: 69 | AQ162: 0 | AR162: 0 | AS162: 1516 | AT162: 684 | AU162: 109 | AV162: 0 | AW162: 30 | AX162: 977 | AY162: 882 | AZ162: 0 | BA162: 392 | BB162: 0 | BC162: 141 | BD162: 585 | BE162: 0 | BF162: N/A

Sheet LOV
A1: State | C1: Year
A2: (All) | C2: 3 years
A3: Alabama | C3: 2012
A4: Alaska | C4: 2011
A5: Arizona | C5: 2010
A6: Arkansas
A7: California
A8: Colorado
A9: Connecticut
A10: Delaware
A11: District of Columbia
A12: Florida
A13: Georgia
A14: Hawaii
A15: Idaho
A16: Illinois
A17: Indiana
A18: Iowa
A19: Kansas
A20: Kentucky
A21: Louisiana
A22: Maine
A23: Maryland
A24: Massachusetts
A25: Michigan
A26: Minnesota
A27: Mississippi
A28: Missouri
A29: Montana
A30: Nebraska
A31: Nevada
A32: New Hampshire
A33: New Jersey
A34: New Mexico
A35: New York
A36: North Carolina
A37: North Dakota
A38: Ohio
A39: Oklahoma
A40: Oregon
A41: Pennsylvania
A42: Rhode Island
A43: South Carolina
A44: South Dakota
A45: Tennessee
A46: Texas
A47: Utah
A48: Vermont
A49: Virginia
A50: Washington
A51: West Virginia
A52: Wisconsin
A53: Wyoming
A54: Puerto Rico
